Body Name,Date Paid,Transaction Number,Amount,Supplier Name,Supplier Type,Expense Area,Cost Centre Description,Expense Type
Cambridgeshire County Council,01-Jul-21,51301598453,"-2,040.00",Keys PCE Ltd,CARE ESTABLISHMENT,LAC Placements,Placements - residential homes,Agency Placements - Out of  County
Cambridgeshire County Council,01-Jul-21,51301598462,"-1,800.00",Keys PCE Ltd,CARE ESTABLISHMENT,LAC Placements,Placements - residential homes,Agency Placements - Out of  County
Cambridgeshire County Council,01-Jul-21,51301598458,"-1,320.00",Keys PCE Ltd,CARE ESTABLISHMENT,LAC Placements,Placements - residential homes,Agency Placements - Out of  County
Cambridgeshire County Council,01-Jul-21,51301598219,"-1,075.66",Redacted Personal Data,SERVICE USER,OP - City & South Locality - Cost of Care,Older People - City & South - Care,Direct Payments
Cambridgeshire County Council,01-Jul-21,51301598219,"-1,075.66",Redacted Personal Data,SERVICE USER,OP - City & South Locality - Cost of Care,Older People - City & South - Care,Direct Payments
Cambridgeshire County Council,01-Jul-21,51301598219,"-1,075.66",Redacted Personal Data,SERVICE USER,OP - City & South Locality - Cost of Care,Older People - City & South - Care,Direct Payments
Cambridgeshire County Council,01-Jul-21,51301598219,"-1,075.66",Redacted Personal Data,SERVICE USER,OP - City & South Locality - Cost of Care,Older People - City & South - Care,Direct Payments
Cambridgeshire County Council,01-Jul-21,51301598219,"-1,075.66",Redacted Personal Data,SERVICE USER,OP - City & South Locality - Cost of Care,Older People - City & South - Care,Direct Payments
Cambridgeshire County Council,01-Jul-21,51301598219,-921.99,Redacted Personal Data,SERVICE USER,OP - City & South Locality - Cost of Care,Older People - City & South - Care,Direct Payments
Cambridgeshire County Council,01-Jul-21,51301598217,-693.00,Redacted Personal Data,INDIVIDUAL,Physical Disablity - Cost of Care,Countywide PD Service - Care,Direct Payments
Cambridgeshire County Council,01-Jul-21,51301598217,-693.00,Redacted Personal Data,INDIVIDUAL,Physical Disablity - Cost of Care,Countywide PD Service - Care,Direct Payments
Cambridgeshire County Council,01-Jul-21,51301598217,-693.00,Redacted Personal Data,INDIVIDUAL,Physical Disablity - Cost of Care,Countywide PD Service - Care,Direct Payments
Cambridgeshire County Council,01-Jul-21,51301598217,-693.00,Redacted Personal Data,INDIVIDUAL,Physical Disablity - Cost of Care,Countywide PD Service - Care,Direct Payments
Cambridgeshire County Council,01-Jul-21,51301598217,-693.00,Redacted Personal Data,INDIVIDUAL,Physical Disablity - Cost of Care,Countywide PD Service - Care,Direct Payments
Cambridgeshire County Council,01-Jul-21,51301598217,-693.00,Redacted Personal Data,INDIVIDUAL,Physical Disablity - Cost of Care,Countywide PD Service - Care,Direct Payments
Cambridgeshire County Council,01-Jul-21,51301598217,-693.00,Redacted Personal Data,INDIVIDUAL,Physical Disablity - Cost of Care,Countywide PD Service - Care,Direct Payments
Cambridgeshire County Council,01-Jul-21,51301598217,-693.00,Redacted Personal Data,INDIVIDUAL,Physical Disablity - Cost of Care,Countywide PD Service - Care,Direct Payments
Cambridgeshire County Council,01-Jul-21,51301598217,-693.00,Redacted Personal Data,INDIVIDUAL,Physical Disablity - Cost of Care,Countywide PD Service - Care,Direct Payments
Cambridgeshire County Council,01-Jul-21,51301598217,-594.00,Redacted Personal Data,INDIVIDUAL,Physical Disablity - Cost of Care,Countywide PD Service - Care,Direct Payments
Cambridgeshire County Council,01-Jul-21,51301598541,504.87,STAGECOACH SERVICES LTD,TRADE SUPPLIER,Passenger Transport other,Tendered Bus Costs,Support - subsidised bus routes
Cambridgeshire County Council,01-Jul-21,51301598271,520.80,FLEXESERVICES LIMITED,TRADE SUPPLIER,Home to School Transport - Special,Home to School Transport Special - Out of County,Home to School - Contract
Cambridgeshire County Council,01-Jul-21,51301598531,534.60,STAGECOACH SERVICES LTD,TRADE SUPPLIER,Passenger Transport other,Cambridgeshire Future Transport,Support - subsidised bus routes
Cambridgeshire County Council,01-Jul-21,51301598226,548.22,Redacted Personal Data,INDIVIDUAL,OP - Fenland Locality - Cost of Care,Older People - Fenland - Care,Direct Payments
Cambridgeshire County Council,01-Jul-21,51301598226,548.22,Redacted Personal Data,INDIVIDUAL,OP - Fenland Locality - Cost of Care,Older People - Fenland - Care,Direct Payments
Cambridgeshire County Council,01-Jul-21,51301598226,548.22,Redacted Personal Data,INDIVIDUAL,OP - Fenland Locality - Cost of Care,Older People - Fenland - Care,Direct Payments
Cambridgeshire County Council,01-Jul-21,51301598226,548.22,Redacted Personal Data,INDIVIDUAL,OP - Fenland Locality - Cost of Care,Older People - Fenland - Care,Direct Payments
Cambridgeshire County Council,01-Jul-21,51301598226,548.22,Redacted Personal Data,INDIVIDUAL,OP - Fenland Locality - Cost of Care,Older People - Fenland - Care,Direct Payments
Cambridgeshire County Council,01-Jul-21,51301598428,560.00,Redacted Personal Data,INDIVIDUAL,Children's Disability Direct Payments,CSC Direct Payments,Direct Payments
Cambridgeshire County Council,01-Jul-21,51301598339,565.44,Smart Cars UK,COMPANY,Home to School Transport - Special,Home to School Transport Special - Secondary,Home to School - Contract
Cambridgeshire County Council,01-Jul-21,51301598250,576.00,Fairstead Community Primary School,EDUCATION,Schools Partnership Service,Virtual School LACPP Financing,Discretionary Student Awards
Cambridgeshire County Council,01-Jul-21,51301598534,580.95,STAGECOACH SERVICES LTD,TRADE SUPPLIER,Passenger Transport other,Cambridgeshire Future Transport,Support - subsidised bus routes
Cambridgeshire County Council,01-Jul-21,51301598217,582.43,Redacted Personal Data,INDIVIDUAL,Physical Disablity - Cost of Care,Countywide PD Service - Care,Direct Payments
Cambridgeshire County Council,01-Jul-21,51301598198,586.75,HOLDSWORTH,TRADE SUPPLIER,Grafham Water,Grafham Water Centre,Catering Provisions
Cambridgeshire County Council,01-Jul-21,51301598434,597.67,Redacted Personal Data,INDIVIDUAL,Children's Disability Direct Payments,CSC Direct Payments,Direct Payments
Cambridgeshire County Council,01-Jul-21,51301598223,599.34,Redacted Personal Data,SERVICE USER,OP - Hunts Locality - Cost of Care,Hunts OP Team - Care,Direct Payments
Cambridgeshire County Council,01-Jul-21,51301598402,599.95,REDPALM TECHNOLOGY SERVICES LTD,TRADE SUPPLIER,Assistive Telecare & Technology,Sensory Services,Computer hardware - purchase
Cambridgeshire County Council,01-Jul-21,51301598546,601.11,STAGECOACH SERVICES LTD,TRADE SUPPLIER,Passenger Transport other,Cambridgeshire Future Transport,Support - subsidised bus routes
Cambridgeshire County Council,01-Jul-21,51301598211,615.00,PATACAKE DAY NURSERY ICP,NURSERY,Nursery Schools,Early Years - Funded 3s/4s,Care & Ed Childcare Settings
Cambridgeshire County Council,01-Jul-21,51301598210,615.00,MELBOURN PLAYGROUP AND OUT OF SCHOOL CLUB,NURSERY,Nursery Schools,Early Years - Funded 3s/4s,Care & Ed Childcare Settings
Cambridgeshire County Council,01-Jul-21,51301598212,615.00,PETER PAN PRE-SCHOOL,NURSERY,Nursery Schools,Early Years - Funded 3s/4s,Care & Ed Childcare Settings
Cambridgeshire County Council,01-Jul-21,51301598284,648.00,KHOLYO CARS,TRADE SUPPLIER,Home to School Transport - Special,Home to School Transport Special - Post 16,Home to School - Contract
Cambridgeshire County Council,01-Jul-21,51301598529,673.70,LORDS TRAVEL,TRADE SUPPLIER,Passenger Transport other,Cambridgeshire Future Transport,Support - subsidised bus routes
Cambridgeshire County Council,01-Jul-21,51301598217,679.50,Redacted Personal Data,INDIVIDUAL,Physical Disablity - Cost of Care,Countywide PD Service - Care,Direct Payments
Cambridgeshire County Council,01-Jul-21,51301598217,679.50,Redacted Personal Data,INDIVIDUAL,Physical Disablity - Cost of Care,Countywide PD Service - Care,Direct Payments
Cambridgeshire County Council,01-Jul-21,51301598217,679.50,Redacted Personal Data,INDIVIDUAL,Physical Disablity - Cost of Care,Countywide PD Service - Care,Direct Payments
Cambridgeshire County Council,01-Jul-21,51301598217,679.50,Redacted Personal Data,INDIVIDUAL,Physical Disablity - Cost of Care,Countywide PD Service - Care,Direct Payments
Cambridgeshire County Council,01-Jul-21,51301598217,679.50,Redacted Personal Data,INDIVIDUAL,Physical Disablity - Cost of Care,Countywide PD Service - Care,Direct Payments
Cambridgeshire County Council,01-Jul-21,51301598217,679.50,Redacted Personal Data,INDIVIDUAL,Physical Disablity - Cost of Care,Countywide PD Service - Care,Direct Payments
Cambridgeshire County Council,01-Jul-21,51301598217,679.50,Redacted Personal Data,INDIVIDUAL,Physical Disablity - Cost of Care,Countywide PD Service - Care,Direct Payments
Cambridgeshire County Council,01-Jul-21,51301598217,679.50,Redacted Personal Data,INDIVIDUAL,Physical Disablity - Cost of Care,Countywide PD Service - Care,Direct Payments
Cambridgeshire County Council,01-Jul-21,51301598217,679.50,Redacted Personal Data,INDIVIDUAL,Physical Disablity - Cost of Care,Countywide PD Service - Care,Direct Payments
Cambridgeshire County Council,01-Jul-21,51301598539,697.02,STAGECOACH SERVICES LTD,TRADE SUPPLIER,Passenger Transport other,Cambridgeshire Future Transport,Support - subsidised bus routes
Cambridgeshire County Council,01-Jul-21,51301598223,699.23,Redacted Personal Data,SERVICE USER,OP - Hunts Locality - Cost of Care,Hunts OP Team - Care,Direct Payments
Cambridgeshire County Council,01-Jul-21,51301598223,699.23,Redacted Personal Data,SERVICE USER,OP - Hunts Locality - Cost of Care,Hunts OP Team - Care,Direct Payments
Cambridgeshire County Council,01-Jul-21,51301598223,699.23,Redacted Personal Data,SERVICE USER,OP - Hunts Locality - Cost of Care,Hunts OP Team - Care,Direct Payments
Cambridgeshire County Council,01-Jul-21,51301598223,699.23,Redacted Personal Data,SERVICE USER,OP - Hunts Locality - Cost of Care,Hunts OP Team - Care,Direct Payments
Cambridgeshire County Council,01-Jul-21,51301598427,702.00,Redacted Personal Data,INDIVIDUAL,Children's Disability Direct Payments,CSC Direct Payments,Direct Payments
Cambridgeshire County Council,01-Jul-21,51301598432,706.00,Redacted Personal Data,INDIVIDUAL,Children's Disability Direct Payments,CSC Direct Payments,Direct Payments
Cambridgeshire County Council,01-Jul-21,51301598437,706.39,Redacted Personal Data,INDIVIDUAL,Children's Disability Direct Payments,CSC Direct Payments,Direct Payments
Cambridgeshire County Council,01-Jul-21,51301598375,737.20,A & J COACHES,TRADE SUPPLIER,Home to School Transport - Special,Home to School Transport Special - Secondary,Home to School - Contract
Cambridgeshire County Council,01-Jul-21,51301598380,759.00,ALANS TAXI LTD,TRADE SUPPLIER,Home to School Transport - Special,Home to School Transport Special - Out of County,Home to School - Contract
Cambridgeshire County Council,01-Jul-21,51301598282,775.20,KHOLYO CARS,TRADE SUPPLIER,Home to School Transport - Mainstream,Home to School Transport Mainstream - Primary,Home to School - Contract
Cambridgeshire County Council,01-Jul-21,51301598435,789.00,Redacted Personal Data,INDIVIDUAL,Children's Disability Direct Payments,CSC Direct Payments,Direct Payments
Cambridgeshire County Council,01-Jul-21,51301598526,790.91,A2B Travel Group,TRADE SUPPLIER,Passenger Transport other,Tendered Bus Costs,Support - subsidised bus routes
Cambridgeshire County Council,01-Jul-21,51301598359,795.72,Smart Cars UK,COMPANY,Home to School Transport - Special,Home to School Transport Special - Out of County,Home to School - Contract
Cambridgeshire County Council,01-Jul-21,51301598530,812.67,STAGECOACH SERVICES LTD,TRADE SUPPLIER,Passenger Transport other,Cambridgeshire Future Transport,Support - subsidised bus routes
Cambridgeshire County Council,01-Jul-21,51301598398,819.00,GUYS AND ST THOMAS NHS FOUNDATION TRUST,TRUST (OTHER),SH STI - PH Sexual Health & Health Checks,SH STI - Hospital SH Services - Out of Area Trusts,Professional Fees and Hired Services
Cambridgeshire County Council,01-Jul-21,51301598549,819.99,WHIPPET COACHES LIMITED,TRADE SUPPLIER,Passenger Transport other,Tendered Bus Costs,Support - subsidised bus routes
Cambridgeshire County Council,01-Jul-21,51301598274,820.80,KING CARZ LIMITED,TRADE SUPPLIER,Home to School Transport - Mainstream,Home to School Transport Mainstream - Primary,Home to School - Contract
Cambridgeshire County Council,01-Jul-21,51301598354,838.32,Smart Cars UK,COMPANY,Home to School Transport - Special,Home to School Transport Special - Post 16,Home to School - Contract
Cambridgeshire County Council,01-Jul-21,51301598379,912.00,ALANS TAXI LTD,TRADE SUPPLIER,Home to School Transport - Special,Home to School Transport Special - Primary,Home to School - Contract
Cambridgeshire County Council,01-Jul-21,51301598423,936.00,Sensory Childcare,CARE ESTABLISHMENT,Children's Disability Direct Payments,CSC Direct Payments,Direct Payments
Cambridgeshire County Council,01-Jul-21,51301598430,982.60,Redacted Personal Data,INDIVIDUAL,Children's Disability Direct Payments,CSC Direct Payments,Direct Payments
Cambridgeshire County Council,01-Jul-21,51301598543,"1,042.98",STAGECOACH SERVICES LTD,TRADE SUPPLIER,Passenger Transport other,Tendered Bus Costs,Support - subsidised bus routes
Cambridgeshire County Council,01-Jul-21,51301598269,"1,071.60",FENCABS LTD T/A FENCARS,TRADE SUPPLIER,Home to School Transport - Special,Home to School Transport Special - Primary,Home to School - Contract
Cambridgeshire County Council,01-Jul-21,51301598342,"1,074.84",Smart Cars UK,COMPANY,Home to School Transport - Special,Home to School Transport Special - Special School,Home to School - Contract
Cambridgeshire County Council,01-Jul-21,51301598377,"1,083.00",ALANS TAXI LTD,TRADE SUPPLIER,Home to School Transport - Mainstream,Home to School Transport Mainstream - Secondary,Home to School - Contract
Cambridgeshire County Council,01-Jul-21,51301598291,"1,108.80",NEWTAX LTD,TRADE SUPPLIER,Home to School Transport - Mainstream,Home to School Transport Mainstream - Secondary,Home to School - Contract
Cambridgeshire County Council,01-Jul-21,51301592470,"1,125.08",AVAILL HEALTHCARE,CARE ESTABLISHMENT,IHPS - South Accommodation Services,IHPS Jasmine House,Agency Staff
Cambridgeshire County Council,01-Jul-21,51301598352,"1,174.20",Smart Cars UK,COMPANY,Home to School Transport - Special,Home to School Transport Special - Secondary,Home to School - Contract
Cambridgeshire County Council,01-Jul-21,51301598353,"1,174.20",Smart Cars UK,COMPANY,Home to School Transport - Mainstream,Home to School Transport Mainstream - Secondary,Home to School - Contract
Cambridgeshire County Council,01-Jul-21,51301598544,"1,181.70",STAGECOACH SERVICES LTD,TRADE SUPPLIER,Passenger Transport other,Cambridgeshire Future Transport,Support - subsidised bus routes
Cambridgeshire County Council,01-Jul-21,51301598367,"1,188.00",DART TAXIS (MARCH),TRADE SUPPLIER,Home to School Transport - Special,Home to School Transport Special - Out of County,Home to School - Contract
Cambridgeshire County Council,01-Jul-21,51301598283,"1,224.00",KHOLYO CARS,TRADE SUPPLIER,Home to School Transport - Special,Home to School Transport Special - Out of County,Home to School - Contract
Cambridgeshire County Council,01-Jul-21,51301598281,"1,242.00",KHOLYO CARS,TRADE SUPPLIER,Home to School Transport - Special,Home to School Transport Special - Special School,Home to School - Contract
Cambridgeshire County Council,01-Jul-21,51301598270,"1,248.00",FENCABS LTD T/A FENCARS,TRADE SUPPLIER,Home to School Transport - Special,Home to School Transport Special - Out of County,Home to School - Contract
Cambridgeshire County Council,01-Jul-21,51301598219,"1,256.11",Redacted Personal Data,SERVICE USER,OP - City & South Locality - Cost of Care,Older People - City & South - Care,Direct Payments
Cambridgeshire County Council,01-Jul-21,51301598264,"1,275.00",ASH SCHOOL TRANSPORT,TRADE SUPPLIER,Home to School Transport - Special,Home to School Transport Special - Out of County,Home to School - Contract
Cambridgeshire County Council,01-Jul-21,51301598459,"1,320.00",Keys PCE Ltd,CARE ESTABLISHMENT,LAC Placements,Placements - residential homes,Agency Placements - Out of  County
Cambridgeshire County Council,01-Jul-21,51301598324,"1,322.40",Sam Private Hire,COMPANY,Home to School Transport - Special,Home to School Transport Special - Secondary,Home to School - Contract
Cambridgeshire County Council,01-Jul-21,51301598384,"1,332.00",CAMCAB LTD,TRADE SUPPLIER,Home to School Transport - Special,Home to School Transport Special - Secondary,Home to School - Contract
Cambridgeshire County Council,01-Jul-21,51301598438,"1,347.28",Redacted Personal Data,INDIVIDUAL,Children's Disability Direct Payments,CSC Direct Payments,Direct Payments
Cambridgeshire County Council,01-Jul-21,51301598556,"1,379.80",STAGECOACH SERVICES LTD,TRADE SUPPLIER,Passenger Transport other,Cambridgeshire Future Transport,Support - subsidised bus routes
Cambridgeshire County Council,01-Jul-21,51301598262,"1,382.40",A2B TAXIS,TRADE SUPPLIER,Home to School Transport - Special,Home to School Transport Special - Out of County,Home to School - Contract
Cambridgeshire County Council,01-Jul-21,51301598319,"1,386.00",Sam Private Hire,COMPANY,Home to School Transport - Special,Home to School Transport Special - Out of County,Home to School - Contract
Cambridgeshire County Council,01-Jul-21,51301598287,"1,397.40",KHOLYO CARS,TRADE SUPPLIER,Home to School Transport - Mainstream,Home to School Transport Mainstream - Secondary,Home to School - Contract
Cambridgeshire County Council,01-Jul-21,51301598386,"1,425.00",COXS TAXIS,TRADE SUPPLIER,Home to School Transport - Mainstream,Home to School Transport Mainstream - Primary,Home to School - Contract
Cambridgeshire County Council,01-Jul-21,51301598330,"1,436.40",Sam Private Hire,COMPANY,Home to School Transport - Special,Home to School Transport Special - Post 16,Home to School - Contract
Cambridgeshire County Council,01-Jul-21,51301598219,"1,465.46",Redacted Personal Data,SERVICE USER,OP - City & South Locality - Cost of Care,Older People - City & South - Care,Direct Payments
Cambridgeshire County Council,01-Jul-21,51301598219,"1,465.46",Redacted Personal Data,SERVICE USER,OP - City & South Locality - Cost of Care,Older People - City & South - Care,Direct Payments
Cambridgeshire County Council,01-Jul-21,51301598219,"1,465.46",Redacted Personal Data,SERVICE USER,OP - City & South Locality - Cost of Care,Older People - City & South - Care,Direct Payments
Cambridgeshire County Council,01-Jul-21,51301598219,"1,465.46",Redacted Personal Data,SERVICE USER,OP - City & South Locality - Cost of Care,Older People - City & South - Care,Direct Payments
Cambridgeshire County Council,01-Jul-21,51301598219,"1,465.46",Redacted Personal Data,SERVICE USER,OP - City & South Locality - Cost of Care,Older People - City & South - Care,Direct Payments
Cambridgeshire County Council,01-Jul-21,51301598341,"1,539.00",Smart Cars UK,COMPANY,Home to School Transport - Special,Home to School Transport Special - Special School,Home to School - Contract
Cambridgeshire County Council,01-Jul-21,51301598331,"1,573.20",Sam Private Hire,COMPANY,Home to School Transport - Special,Home to School Transport Special - Secondary,Home to School - Contract
Cambridgeshire County Council,01-Jul-21,51301598303,"1,674.00",Sam Private Hire,COMPANY,Home to School Transport - Special,Home to School Transport Special - Special School,Home to School - Contract
Cambridgeshire County Council,01-Jul-21,51301598364,"1,687.20",ST TRANSPORT SOLUTIONS LTD,TRADE SUPPLIER,Home to School Transport - Special,Home to School Transport Special - Secondary,Home to School - Contract
Cambridgeshire County Council,01-Jul-21,51301598340,"1,689.00",Smart Cars UK,COMPANY,Home to School Transport - Mainstream,Home to School Transport Mainstream - Primary,Home to School - Contract
Cambridgeshire County Council,01-Jul-21,51301598419,"1,728.00",NATIONAL TEACHING & ADVISORY SERVICE FOR LOOKED AFTER CHILDREN (NT & AS),OTHER PUBLIC BODIES,Out of School Tuition,Out of School Provision - Education and Settings,Independent School Placements
Cambridgeshire County Council,01-Jul-21,51301598346,"1,732.80",Smart Cars UK,COMPANY,Home to School Transport - Special,Home to School Transport Special - Secondary,Home to School - Contract
Cambridgeshire County Council,01-Jul-21,51301598333,"1,778.17",Smart Cars UK,COMPANY,Home to School Transport - Special,Home to School Transport Special - Secondary,Home to School - Contract
Cambridgeshire County Council,01-Jul-21,51301598253,"1,780.80",GOLDSTAR CABS LTD,TRADE SUPPLIER,Home to School Transport - Mainstream,Home to School Transport Mainstream - Primary,Home to School - Contract
Cambridgeshire County Council,01-Jul-21,51301598463,"1,800.00",Keys PCE Ltd,CARE ESTABLISHMENT,LAC Placements,Placements - residential homes,Agency Placements - Out of  County
Cambridgeshire County Council,01-Jul-21,51301598302,"1,801.20",Sam Private Hire,COMPANY,Home to School Transport - Special,Home to School Transport Special - Special School,Home to School - Contract
Cambridgeshire County Council,01-Jul-21,51301598312,"1,801.20",Sam Private Hire,COMPANY,Home to School Transport - Special,Home to School Transport Special - Special School,Home to School - Contract
Cambridgeshire County Council,01-Jul-21,51301598460,"1,815.95",Keys PCE Ltd,CARE ESTABLISHMENT,LAC Placements,Placements - residential homes,Agency Placements - Out of  County
Cambridgeshire County Council,01-Jul-21,51301598440,"1,821.40",Redacted Personal Data,INDIVIDUAL,Children's Disability Direct Payments,CSC Direct Payments,Direct Payments
Cambridgeshire County Council,01-Jul-21,51301598280,"1,846.80",KHOLYO CARS,TRADE SUPPLIER,Home to School Transport - Special,Home to School Transport Special - Post 16,Home to School - Contract
Cambridgeshire County Council,01-Jul-21,51301598289,"1,848.00",NEWTAX LTD,TRADE SUPPLIER,Home to School Transport - Special,Home to School Transport Special - Post 16,Home to School - Contract
Cambridgeshire County Council,01-Jul-21,51301598263,"1,915.20",A2B TAXIS,TRADE SUPPLIER,Home to School Transport - Mainstream,Home to School Transport Mainstream - Secondary,Home to School - Contract
Cambridgeshire County Council,01-Jul-21,51301598547,"1,915.65",STAR CABS LTD,TRADE SUPPLIER,Passenger Transport other,Cambridgeshire Future Transport,Support - subsidised bus routes
Cambridgeshire County Council,01-Jul-21,51301598209,"1,920.00",Allies and Morrison LLP,COMPANY,Housing Schemes,Housing Schemes,Construction - External Professional Fees
Cambridgeshire County Council,01-Jul-21,51301598301,"1,938.00",Sam Private Hire,COMPANY,Home to School Transport - Special,Home to School Transport Special - Special School,Home to School - Contract
Cambridgeshire County Council,01-Jul-21,51301598347,"1,938.00",Smart Cars UK,COMPANY,Home to School Transport - Special,Home to School Transport Special - Special School,Home to School - Contract
Cambridgeshire County Council,01-Jul-21,51301598311,"1,983.60",Sam Private Hire,COMPANY,Home to School Transport - Special,Home to School Transport Special - Special School,Home to School - Contract
Cambridgeshire County Council,01-Jul-21,51301598385,"1,993.00",COXS TAXIS,TRADE SUPPLIER,Home to School Transport - Mainstream,Home to School Transport - Post 16,Home to School - Contract
Cambridgeshire County Council,01-Jul-21,51301598426,"2,000.00",Redacted Personal Data,INDIVIDUAL,Children's Disability Direct Payments,CSC Direct Payments,Direct Payments
Cambridgeshire County Council,01-Jul-21,51301598456,"2,040.00",Keys PCE Ltd,CARE ESTABLISHMENT,LAC Placements,Placements - residential homes,Agency Placements - Out of  County
Cambridgeshire County Council,01-Jul-21,51301598321,"2,074.80",Sam Private Hire,COMPANY,Home to School Transport - Special,Home to School Transport Special - Out of County,Home to School - Contract
Cambridgeshire County Council,01-Jul-21,51301598344,"2,142.00",Smart Cars UK,COMPANY,Home to School Transport - Special,Home to School Transport Special - Post 16,Home to School - Contract
Cambridgeshire County Council,01-Jul-21,51301598304,"2,143.20",Sam Private Hire,COMPANY,Home to School Transport - Special,Home to School Transport Special - Secondary,Home to School - Contract
Cambridgeshire County Council,01-Jul-21,51301598457,"2,146.12",Keys PCE Ltd,CARE ESTABLISHMENT,LAC Placements,Placements - residential homes,Agency Placements - Out of  County
Cambridgeshire County Council,01-Jul-21,51301598332,"2,154.60",Smart Cars UK,COMPANY,Home to School Transport - Mainstream,Home to School Transport Mainstream - Primary,Home to School - Contract
Cambridgeshire County Council,01-Jul-21,51301598240,"2,167.56",EASTFIELD PLAYGROUP (CLUB 4 U),NURSERY,SEND High Needs Top Up,SEND Specialist Services-High needs top-up-Early Years,Independent School Placements
Cambridgeshire County Council,01-Jul-21,51301598355,"2,188.80",Smart Cars UK,COMPANY,Home to School Transport - Special,Home to School Transport Special - Special School,Home to School - Contract
Cambridgeshire County Council,01-Jul-21,51301598286,"2,234.40",KHOLYO CARS,TRADE SUPPLIER,Home to School Transport - Special,Home to School Transport Special - Out of County,Home to School - Contract
Cambridgeshire County Council,01-Jul-21,51301598357,"2,257.20",Smart Cars UK,COMPANY,Home to School Transport - Special,Home to School Transport Special - Post 16,Home to School - Contract
Cambridgeshire County Council,01-Jul-21,51301598343,"2,286.00",Smart Cars UK,COMPANY,Home to School Transport - Special,Home to School Transport Special - Post 16,Home to School - Contract
Cambridgeshire County Council,01-Jul-21,51301598391,"2,310.00",COLLINS COACHES,TRADE SUPPLIER,Home to School Transport - Special,Home to School Transport Special - Out of County,Home to School - Contract
Cambridgeshire County Council,01-Jul-21,51301598461,"2,311.20",Keys PCE Ltd,CARE ESTABLISHMENT,LAC Placements,Placements - residential homes,Agency Placements - Out of  County
Cambridgeshire County Council,01-Jul-21,51301598285,"2,371.20",KHOLYO CARS,TRADE SUPPLIER,Home to School Transport - Mainstream,Home to School Transport Mainstream - Primary,Home to School - Contract
Cambridgeshire County Council,01-Jul-21,51301598313,"2,394.00",Sam Private Hire,COMPANY,Home to School Transport - Special,Home to School Transport Special - Secondary,Home to School - Contract
Cambridgeshire County Council,01-Jul-21,51301598327,"2,394.00",Sam Private Hire,COMPANY,Home to School Transport - Special,Home to School Transport Special - Special School,Home to School - Contract
Cambridgeshire County Council,01-Jul-21,51301598325,"2,439.60",Sam Private Hire,COMPANY,Home to School Transport - Special,Home to School Transport Special - Secondary,Home to School - Contract
Cambridgeshire County Council,01-Jul-21,51301598322,"2,485.20",Sam Private Hire,COMPANY,Home to School Transport - Special,Home to School Transport Special - Out of County,Home to School - Contract
Cambridgeshire County Council,01-Jul-21,51301598254,"2,529.60",Sam Private Hire,COMPANY,Home to School Transport - Special,Home to School Transport Special - Special School,Home to School - Contract
Cambridgeshire County Council,01-Jul-21,51301598315,"2,530.80",Sam Private Hire,COMPANY,Home to School Transport - Special,Home to School Transport Special - Special School,Home to School - Contract
Cambridgeshire County Council,01-Jul-21,51301598350,"2,553.60",Smart Cars UK,COMPANY,Home to School Transport - Special,Home to School Transport Special - Secondary,Home to School - Contract
Cambridgeshire County Council,01-Jul-21,51301598300,"2,576.40",Sam Private Hire,COMPANY,Home to School Transport - Special,Home to School Transport Special - Special School,Home to School - Contract
Cambridgeshire County Council,01-Jul-21,51301598290,"2,587.20",NEWTAX LTD,TRADE SUPPLIER,Home to School Transport - Special,Home to School Transport Special - Special School,Home to School - Contract
Cambridgeshire County Council,01-Jul-21,51301598277,"2,667.60",KHOLYO CARS,TRADE SUPPLIER,Home to School Transport - Special,Home to School Transport Special - Post 16,Home to School - Contract
Cambridgeshire County Council,01-Jul-21,51301598316,"2,713.20",Sam Private Hire,COMPANY,Home to School Transport - Special,Home to School Transport Special - Special School,Home to School - Contract
Cambridgeshire County Council,01-Jul-21,51301598351,"2,713.20",Smart Cars UK,COMPANY,Home to School Transport - Special,Home to School Transport Special - Primary,Home to School - Contract
Cambridgeshire County Council,01-Jul-21,51301598337,"2,726.70",Smart Cars UK,COMPANY,Home to School Transport - Special,Home to School Transport Special - Post 16,Home to School - Contract
Cambridgeshire County Council,01-Jul-21,51301598338,"2,726.70",Smart Cars UK,COMPANY,Home to School Transport - Special,Home to School Transport Special - Secondary,Home to School - Contract
Cambridgeshire County Council,01-Jul-21,51301598329,"2,804.40",Sam Private Hire,COMPANY,Home to School Transport - Special,Home to School Transport Special - Special School,Home to School - Contract
Cambridgeshire County Council,01-Jul-21,51301598358,"2,815.80",Smart Cars UK,COMPANY,Home to School Transport - Special,Home to School Transport Special - Post 16,Home to School - Contract
Cambridgeshire County Council,01-Jul-21,51301598429,"2,816.00",Redacted Personal Data,INDIVIDUAL,Children's Disability Direct Payments,CSC Direct Payments,Direct Payments
Cambridgeshire County Council,01-Jul-21,51301598273,"2,827.20",KING CARZ LIMITED,TRADE SUPPLIER,Home to School Transport - Special,Home to School Transport Special - Primary,Home to School - Contract
Cambridgeshire County Council,01-Jul-21,51301598323,"2,827.20",Sam Private Hire,COMPANY,Home to School Transport - Special,Home to School Transport Special - Out of County,Home to School - Contract
Cambridgeshire County Council,01-Jul-21,51301598335,"2,847.72",Smart Cars UK,COMPANY,Home to School Transport - Special,Home to School Transport Special - Post 16,Home to School - Contract
Cambridgeshire County Council,01-Jul-21,51301598334,"2,850.00",Smart Cars UK,COMPANY,Home to School Transport - Special,Home to School Transport Special - Special School,Home to School - Contract
Cambridgeshire County Council,01-Jul-21,51301598365,"2,938.45",ACME TRANSPORT SERVICES,TRADE SUPPLIER,Home to School Transport - Special,Home to School Transport Special - Special School,Home to School - Contract
Cambridgeshire County Council,01-Jul-21,51301598349,"2,941.20",Smart Cars UK,COMPANY,Home to School Transport - Special,Home to School Transport Special - Special School,Home to School - Contract
Cambridgeshire County Council,01-Jul-21,51301598276,"2,964.00",KHOLYO CARS,TRADE SUPPLIER,Home to School Transport - Special,Home to School Transport Special - Post 16,Home to School - Contract
Cambridgeshire County Council,01-Jul-21,51301598275,"2,964.00",KHOLYO CARS,TRADE SUPPLIER,Home to School Transport - Special,Home to School Transport Special - Post 16,Home to School - Contract
Cambridgeshire County Council,01-Jul-21,51301598279,"3,000.00",KHOLYO CARS,TRADE SUPPLIER,Home to School Transport - Special,Home to School Transport Special - Special School,Home to School - Contract
Cambridgeshire County Council,01-Jul-21,51301598310,"3,018.60",Sam Private Hire,COMPANY,Home to School Transport - Special,Home to School Transport Special - Special School,Home to School - Contract
Cambridgeshire County Council,01-Jul-21,51301598314,"3,032.40",Sam Private Hire,COMPANY,Home to School Transport - Special,Home to School Transport Special - Special School,Home to School - Contract
Cambridgeshire County Council,01-Jul-21,51301598298,"3,064.80",PANTHER TAXIS LTD,TRADE SUPPLIER,Home to School Transport - Special,Home to School Transport Special - Out of County,Home to School - Contract
Cambridgeshire County Council,01-Jul-21,51301598309,"3,210.00",Sam Private Hire,COMPANY,Home to School Transport - Special,Home to School Transport Special - Special School,Home to School - Contract
Cambridgeshire County Council,01-Jul-21,51301598308,"3,260.40",Sam Private Hire,COMPANY,Home to School Transport - Special,Home to School Transport Special - Special School,Home to School - Contract
Cambridgeshire County Council,01-Jul-21,51301598326,"3,351.60",Sam Private Hire,COMPANY,Home to School Transport - Special,Home to School Transport Special - Special School,Home to School - Contract
Cambridgeshire County Council,01-Jul-21,51301598328,"3,420.00",Sam Private Hire,COMPANY,Home to School Transport - Special,Home to School Transport Special - Special School,Home to School - Contract
Cambridgeshire County Council,01-Jul-21,51301598278,"3,444.00",KHOLYO CARS,TRADE SUPPLIER,Home to School Transport - Special,Home to School Transport Special - Post 16,Home to School - Contract
Cambridgeshire County Council,01-Jul-21,51301598317,"3,465.60",Sam Private Hire,COMPANY,Home to School Transport - Special,Home to School Transport Special - Special School,Home to School - Contract
Cambridgeshire County Council,01-Jul-21,51301598348,"3,540.00",Smart Cars UK,COMPANY,Home to School Transport - Special,Home to School Transport Special - Special School,Home to School - Contract
Cambridgeshire County Council,01-Jul-21,51301598318,"3,556.80",Sam Private Hire,COMPANY,Home to School Transport - Special,Home to School Transport Special - Out of County,Home to School - Contract
Cambridgeshire County Council,01-Jul-21,51301598378,"3,705.00",ALANS TAXI LTD,TRADE SUPPLIER,Home to School Transport - Mainstream,Home to School Transport Mainstream - Primary,Home to School - Contract
Cambridgeshire County Council,01-Jul-21,51301598356,"3,739.20",Smart Cars UK,COMPANY,Home to School Transport - Special,Home to School Transport Special - Special School,Home to School - Contract
Cambridgeshire County Council,01-Jul-21,51301598396,"3,750.00",Ambu Kare Ltd,COMPANY,Home to School Transport - Special,Home to School Transport Special - Special School,Home to School - Contract
Cambridgeshire County Council,01-Jul-21,51301598320,"3,762.00",Sam Private Hire,COMPANY,Home to School Transport - Special,Home to School Transport Special - Special School,Home to School - Contract
Cambridgeshire County Council,01-Jul-21,51301598336,"3,770.40",Smart Cars UK,COMPANY,Home to School Transport - Special,Home to School Transport Special - Primary,Home to School - Contract
Cambridgeshire County Council,01-Jul-21,51301598297,"3,885.00",PANTHER TAXIS LTD,TRADE SUPPLIER,Home to School Transport - Special,Home to School Transport Special - Primary,Home to School - Contract
Cambridgeshire County Council,01-Jul-21,51301598395,"3,950.00",Ambu Kare Ltd,COMPANY,Home to School Transport - Special,Home to School Transport Special - Special School,Home to School - Contract
Cambridgeshire County Council,01-Jul-21,51301598345,"4,081.20",Smart Cars UK,COMPANY,Home to School Transport - Special,Home to School Transport Special - Post 16,Home to School - Contract
Cambridgeshire County Council,01-Jul-21,51301598363,"4,285.26",ST TRANSPORT SOLUTIONS LTD,TRADE SUPPLIER,Home to School Transport - Mainstream,Home to School Transport Mainstream - Secondary,Home to School - Contract
Cambridgeshire County Council,01-Jul-21,51301598387,"4,370.00",J & R TAXIS R P LEBRUN,TRADE SUPPLIER,Home to School Transport - Special,Home to School Transport Special - Special School,Home to School - Contract
Cambridgeshire County Council,01-Jul-21,51301598550,"4,425.00",STAGECOACH SERVICES LTD,TRADE SUPPLIER,Home to School Transport - Mainstream,Home to School Transport Mainstream - Covid Grant,Support - subsidised bus routes
Cambridgeshire County Council,01-Jul-21,51301598551,"4,425.00",STAGECOACH SERVICES LTD,TRADE SUPPLIER,Home to School Transport - Mainstream,Home to School Transport Mainstream - Covid Grant,Support - subsidised bus routes
Cambridgeshire County Council,01-Jul-21,51301598257,"4,582.80",A2B TAXIS,TRADE SUPPLIER,Home to School Transport - Special,Home to School Transport Special - Secondary,Home to School - Contract
Cambridgeshire County Council,01-Jul-21,51301598525,"4,655.75",A2B Travel Group,TRADE SUPPLIER,Passenger Transport other,Cambridgeshire Future Transport,Support - subsidised bus routes
Cambridgeshire County Council,01-Jul-21,51301598361,"4,729.26",ST TRANSPORT SOLUTIONS LTD,TRADE SUPPLIER,Home to School Transport - Mainstream,Home to School Transport Mainstream - Primary,Home to School - Contract
Cambridgeshire County Council,01-Jul-21,51301598394,"4,750.00",Ambu Kare Ltd,COMPANY,Home to School Transport - Special,Home to School Transport Special - Special School,Home to School - Contract
Cambridgeshire County Council,01-Jul-21,51301598450,"4,980.38",ARC HD SERVICES LTD,CARE ESTABLISHMENT,LAC Placements,Placements - residential disability,Agency Placements - Out of  County
Cambridgeshire County Council,01-Jul-21,51301598259,"5,084.40",A2B TAXIS,TRADE SUPPLIER,Home to School Transport - Special,Home to School Transport Special - Primary,Home to School - Contract
Cambridgeshire County Council,01-Jul-21,51301598272,"5,426.40",KING CARZ LIMITED,TRADE SUPPLIER,Home to School Transport - Special,Home to School Transport Special - Out of County,Home to School - Contract
Cambridgeshire County Council,01-Jul-21,51301598548,"5,443.25",WHIPPET COACHES LIMITED,TRADE SUPPLIER,Passenger Transport other,Cambridgeshire Future Transport,Support - subsidised bus routes
Cambridgeshire County Council,01-Jul-21,51301598554,"5,945.20",LORDS TRAVEL,TRADE SUPPLIER,Passenger Transport other,Cambridgeshire Future Transport,Support - subsidised bus routes
Cambridgeshire County Council,01-Jul-21,51301598258,"5,950.80",A2B TAXIS,TRADE SUPPLIER,Home to School Transport - Mainstream,Home to School Transport Mainstream - Primary,Home to School - Contract
Cambridgeshire County Council,01-Jul-21,51301598261,"6,484.32",A2B TAXIS,TRADE SUPPLIER,Home to School Transport - Special,Home to School Transport Special - Secondary,Home to School - Contract
Cambridgeshire County Council,01-Jul-21,51301598260,"6,498.00",A2B TAXIS,TRADE SUPPLIER,Home to School Transport - Special,Home to School Transport Special - Special School,Home to School - Contract
Cambridgeshire County Council,01-Jul-21,51301598218,"6,654.14",Redacted Personal Data,SERVICE USER,Physical Disablity - Cost of Care,Countywide PD Service - Care,Direct Payments
Cambridgeshire County Council,01-Jul-21,51301598388,"7,030.00",MIL-KEN TRAVEL LTD,TRADE SUPPLIER,Home to School Transport - Mainstream,Home to School Transport Mainstream - Secondary,Home to School - Contract
Cambridgeshire County Council,01-Jul-21,51301598528,"7,175.90",DEWS COACHES,TRADE SUPPLIER,Passenger Transport other,Cambridgeshire Future Transport,Support - subsidised bus routes
Cambridgeshire County Council,01-Jul-21,51301598553,"7,391.16",A2B Travel Group,TRADE SUPPLIER,Passenger Transport other,Tendered Bus Costs,Support - subsidised bus routes
Cambridgeshire County Council,01-Jul-21,51301598267,"7,404.30",FENCABS LTD T/A FENCARS,TRADE SUPPLIER,Home to School Transport - Mainstream,Home to School Transport Mainstream - Secondary,Home to School - Contract
Cambridgeshire County Council,01-Jul-21,51301598294,"7,506.02",PANTHER TAXIS LTD,TRADE SUPPLIER,Home to School Transport - Special,Home to School Transport Special - Post 16,Home to School - Contract
Cambridgeshire County Council,01-Jul-21,51301598266,"7,540.20",FENCABS LTD T/A FENCARS,TRADE SUPPLIER,Home to School Transport - Special,Home to School Transport Special - Post 16,Home to School - Contract
Cambridgeshire County Council,01-Jul-21,51301598268,"7,551.60",FENCABS LTD T/A FENCARS,TRADE SUPPLIER,Home to School Transport - Mainstream,Home to School Transport Mainstream - Primary,Home to School - Contract
Cambridgeshire County Council,01-Jul-21,51301598228,"7,680.00",Allies and Morrison LLP,COMPANY,Housing Schemes,Housing Schemes,Construction - External Professional Fees
Cambridgeshire County Council,01-Jul-21,51301598360,"8,026.20",ST TRANSPORT SOLUTIONS LTD,TRADE SUPPLIER,Home to School Transport - Special,Home to School Transport Special - Special School,Home to School - Contract
Cambridgeshire County Council,01-Jul-21,51301598514,"8,723.19",David Smith St Ives Limited,COMPANY,Connecting Cambridgeshire,CC Digital Technology Grants,Grants
Cambridgeshire County Council,01-Jul-21,51301598390,"8,895.50",COLLINS COACHES,TRADE SUPPLIER,Home to School Transport - Mainstream,Home to School Transport Mainstream - Primary,Home to School - Contract
Cambridgeshire County Council,01-Jul-21,51301598393,"9,162.00",NEALS TRAVEL LTD,TRADE SUPPLIER,Home to School Transport - Mainstream,Home to School Transport Mainstream - Primary,Home to School - Contract
Cambridgeshire County Council,01-Jul-21,51301598293,"9,336.96",PANTHER TAXIS LTD,TRADE SUPPLIER,Home to School Transport - Mainstream,Home to School Transport Mainstream - Primary,Home to School - Contract
Cambridgeshire County Council,01-Jul-21,51301598292,"10,327.03",PANTHER TAXIS LTD,TRADE SUPPLIER,Home to School Transport - Special,Home to School Transport Special - Secondary,Home to School - Contract
Cambridgeshire County Council,01-Jul-21,51301598296,"10,366.97",PANTHER TAXIS LTD,TRADE SUPPLIER,Home to School Transport - Mainstream,Home to School Transport Mainstream - Secondary,Home to School - Contract
Cambridgeshire County Council,01-Jul-21,51301598383,"10,477.40",C & G COACH SERVICES LTD,TRADE SUPPLIER,Home to School Transport - Mainstream,Home to School Transport Mainstream - Primary,Home to School - Contract
Cambridgeshire County Council,01-Jul-21,51301598443,"16,128.00",DUXFORD PARISH COUNCIL,OTHER PUBLIC BODIES,Highways Development Management,Section 278 Deposits,Developers Funds
Cambridgeshire County Council,01-Jul-21,51301598265,"21,074.40",FENCABS LTD T/A FENCARS,TRADE SUPPLIER,Home to School Transport - Special,Home to School Transport Special - Special School,Home to School - Contract
Cambridgeshire County Council,01-Jul-21,51301598362,"23,854.50",ST TRANSPORT SOLUTIONS LTD,TRADE SUPPLIER,Home to School Transport - Special,Home to School Transport Special - Out of County,Home to School - Contract
Cambridgeshire County Council,01-Jul-21,51301598445,"30,000.00",GODMANCHESTER FOOTBALL & SPORTS ASSOCIATION TRUST,CHARITY,Cambridgeshire Community Capital Fund,Cambridgeshire Community Capital Fund,Expenditure on Grants
Cambridgeshire County Council,01-Jul-21,51301598507,"33,561.46",Cala Homes (North Home Counties) Ltd in Trust for Cala Management Ltd,COMPANY,Highways Development Management,Section 278 Deposits,Developers Funds
Cambridgeshire County Council,01-Jul-21,51301598295,"34,093.66",PANTHER TAXIS LTD,TRADE SUPPLIER,Home to School Transport - Special,Home to School Transport Special - Special School,Home to School - Contract
Cambridgeshire County Council,01-Jul-21,51301598389,"34,492.50",COLLINS COACHES,TRADE SUPPLIER,Home to School Transport - Mainstream,Home to School Transport Mainstream - Secondary,Home to School - Contract
Cambridgeshire County Council,01-Jul-21,51301598392,"34,722.00",NEALS TRAVEL LTD,TRADE SUPPLIER,Home to School Transport - Mainstream,Home to School Transport Mainstream - Secondary,Home to School - Contract
Cambridgeshire County Council,01-Jul-21,51301598552,"41,197.82",A2B Travel Group,TRADE SUPPLIER,Passenger Transport other,Cambridgeshire Future Transport,Support - subsidised bus routes
Cambridgeshire County Council,01-Jul-21,51301598382,"46,987.00",C & G COACH SERVICES LTD,TRADE SUPPLIER,Home to School Transport - Mainstream,Home to School Transport Mainstream - Secondary,Home to School - Contract
Cambridgeshire County Council,01-Jul-21,51301598555,"53,409.60",DEWS COACHES,TRADE SUPPLIER,Passenger Transport other,Cambridgeshire Future Transport,Support - subsidised bus routes
Cambridgeshire County Council,01-Jul-21,51301577998,"236,723.98",NHS CAMBRIDGESHIRE&PETERBOROUGH CCG,CARE ESTABLISHMENT,SEND High Needs Top Up,SEND Specialist Services-High needs top-up-Mainstream,Independent School Placements
Cambridgeshire County Council,01-Jul-21,51301598213,"475,000.00",CAMBRIDGE REGIONAL COLLEGE,EDUCATION,SEND High Needs Top Up,SEND Specialist Services-High needs top-up-Post 16,Independent School Placements
Cambridgeshire County Council,02-Jul-21,51301598766,"-6,191.14",CREDO CARE,CARE ESTABLISHMENT,LAC Placements,Placements - independent fostering,Agency Placements - Out of  County
Cambridgeshire County Council,02-Jul-21,51301598762,"-6,191.14",CREDO CARE,CARE ESTABLISHMENT,LAC Placements,Placements - independent fostering,Agency Placements - Out of  County
Cambridgeshire County Council,02-Jul-21,51301598742,"-6,191.14",CREDO CARE,CARE ESTABLISHMENT,LAC Placements,Placements - independent fostering,Agency Placements - Out of  County
Cambridgeshire County Council,02-Jul-21,51301598746,"-6,191.14",CREDO CARE,CARE ESTABLISHMENT,LAC Placements,Placements - independent fostering,Agency Placements - Out of  County
Cambridgeshire County Council,02-Jul-21,51301598748,"-6,191.14",CREDO CARE,CARE ESTABLISHMENT,LAC Placements,Placements - independent fostering,Agency Placements - Out of  County
Cambridgeshire County Council,02-Jul-21,51301598752,"-6,191.14",CREDO CARE,CARE ESTABLISHMENT,LAC Placements,Placements - independent fostering,Agency Placements - Out of  County
Cambridgeshire County Council,02-Jul-21,51301598758,"-6,191.14",CREDO CARE,CARE ESTABLISHMENT,LAC Placements,Placements - independent fostering,Agency Placements - Out of  County
Cambridgeshire County Council,02-Jul-21,51301598756,"-6,191.14",CREDO CARE,CARE ESTABLISHMENT,LAC Placements,Placements - independent fostering,Agency Placements - Out of  County
Cambridgeshire County Council,02-Jul-21,51301598754,"-5,991.43",CREDO CARE,CARE ESTABLISHMENT,LAC Placements,Placements - independent fostering,Agency Placements - Out of  County
Cambridgeshire County Council,02-Jul-21,51301598750,"-5,991.43",CREDO CARE,CARE ESTABLISHMENT,LAC Placements,Placements - independent fostering,Agency Placements - Out of  County
Cambridgeshire County Council,02-Jul-21,51301598744,"-5,991.43",CREDO CARE,CARE ESTABLISHMENT,LAC Placements,Placements - independent fostering,Agency Placements - Out of  County
Cambridgeshire County Council,02-Jul-21,51301598740,"-5,991.43",CREDO CARE,CARE ESTABLISHMENT,LAC Placements,Placements - independent fostering,Agency Placements - Out of  County
Cambridgeshire County Council,02-Jul-21,51301598764,"-5,991.43",CREDO CARE,CARE ESTABLISHMENT,LAC Placements,Placements - independent fostering,Agency Placements - Out of  County
Cambridgeshire County Council,02-Jul-21,51301598760,"-5,592.00",CREDO CARE,CARE ESTABLISHMENT,LAC Placements,Placements - independent fostering,Agency Placements - Out of  County
Cambridgeshire County Council,02-Jul-21,51301598622,"-1,522.13",THE EDMUND TRUST,CARE ESTABLISHMENT,LD - East Locality - Cost of Care,LD - East Cambs - Care,Supported Living
Cambridgeshire County Council,02-Jul-21,51301598622,"-1,522.13",THE EDMUND TRUST,CARE ESTABLISHMENT,LD - East Locality - Cost of Care,LD - East Cambs - Care,Supported Living
Cambridgeshire County Council,02-Jul-21,51301598622,"-1,522.13",THE EDMUND TRUST,CARE ESTABLISHMENT,LD - East Locality - Cost of Care,LD - East Cambs - Care,Supported Living
Cambridgeshire County Council,02-Jul-21,51301598622,"-1,522.13",THE EDMUND TRUST,CARE ESTABLISHMENT,LD - East Locality - Cost of Care,LD - East Cambs - Care,Supported Living
Cambridgeshire County Council,02-Jul-21,51301598622,"-1,522.13",THE EDMUND TRUST,CARE ESTABLISHMENT,LD - East Locality - Cost of Care,LD - East Cambs - Care,Supported Living
Cambridgeshire County Council,02-Jul-21,51301598622,"-1,522.13",THE EDMUND TRUST,CARE ESTABLISHMENT,LD - East Locality - Cost of Care,LD - East Cambs - Care,Supported Living
Cambridgeshire County Council,02-Jul-21,51301598622,"-1,522.13",THE EDMUND TRUST,CARE ESTABLISHMENT,LD - East Locality - Cost of Care,LD - East Cambs - Care,Supported Living
Cambridgeshire County Council,02-Jul-21,51301598622,"-1,522.13",THE EDMUND TRUST,CARE ESTABLISHMENT,LD - East Locality - Cost of Care,LD - East Cambs - Care,Supported Living
Cambridgeshire County Council,02-Jul-21,51301598622,"-1,522.13",THE EDMUND TRUST,CARE ESTABLISHMENT,LD - East Locality - Cost of Care,LD - East Cambs - Care,Supported Living
Cambridgeshire County Council,02-Jul-21,51301598622,"-1,522.13",THE EDMUND TRUST,CARE ESTABLISHMENT,LD - East Locality - Cost of Care,LD - East Cambs - Care,Supported Living
Cambridgeshire County Council,02-Jul-21,51301598622,"-1,522.13",THE EDMUND TRUST,CARE ESTABLISHMENT,LD - East Locality - Cost of Care,LD - East Cambs - Care,Supported Living
Cambridgeshire County Council,02-Jul-21,51301598616,-813.42,CARDINAL GATE 55,CARE ESTABLISHMENT,AMH - Hunts & Fens,Hunts Mental Health Team,Supported Living
Cambridgeshire County Council,02-Jul-21,51301598616,-813.42,CARDINAL GATE 55,CARE ESTABLISHMENT,AMH - Hunts & Fens,Hunts Mental Health Team,Supported Living
Cambridgeshire County Council,02-Jul-21,51301598616,-813.42,CARDINAL GATE 55,CARE ESTABLISHMENT,AMH - Hunts & Fens,Hunts Mental Health Team,Supported Living
Cambridgeshire County Council,02-Jul-21,51301598616,-813.42,CARDINAL GATE 55,CARE ESTABLISHMENT,AMH - Hunts & Fens,Hunts Mental Health Team,Supported Living
Cambridgeshire County Council,02-Jul-21,51301598616,-813.42,CARDINAL GATE 55,CARE ESTABLISHMENT,AMH - Hunts & Fens,Hunts Mental Health Team,Supported Living
Cambridgeshire County Council,02-Jul-21,51301598616,-813.42,CARDINAL GATE 55,CARE ESTABLISHMENT,AMH - Hunts & Fens,Hunts Mental Health Team,Supported Living
Cambridgeshire County Council,02-Jul-21,51301598616,-813.42,CARDINAL GATE 55,CARE ESTABLISHMENT,AMH - Hunts & Fens,Hunts Mental Health Team,Supported Living
Cambridgeshire County Council,02-Jul-21,51301598616,-813.42,CARDINAL GATE 55,CARE ESTABLISHMENT,AMH - Hunts & Fens,Hunts Mental Health Team,Supported Living
Cambridgeshire County Council,02-Jul-21,51301598616,-813.42,CARDINAL GATE 55,CARE ESTABLISHMENT,AMH - Hunts & Fens,Hunts Mental Health Team,Supported Living
Cambridgeshire County Council,02-Jul-21,51301598616,-813.42,CARDINAL GATE 55,CARE ESTABLISHMENT,AMH - Hunts & Fens,Hunts Mental Health Team,Supported Living
Cambridgeshire County Council,02-Jul-21,51301598616,-813.42,CARDINAL GATE 55,CARE ESTABLISHMENT,AMH - Hunts & Fens,Hunts Mental Health Team,Supported Living
Cambridgeshire County Council,02-Jul-21,51301598616,-813.42,CARDINAL GATE 55,CARE ESTABLISHMENT,AMH - Hunts & Fens,Hunts Mental Health Team,Supported Living
Cambridgeshire County Council,02-Jul-21,51301598616,-813.42,CARDINAL GATE 55,CARE ESTABLISHMENT,AMH - Hunts & Fens,Hunts Mental Health Team,Supported Living
Cambridgeshire County Council,02-Jul-21,51301598616,-813.42,CARDINAL GATE 55,CARE ESTABLISHMENT,AMH - Hunts & Fens,Hunts Mental Health Team,Supported Living
Cambridgeshire County Council,02-Jul-21,51301598616,-813.42,CARDINAL GATE 55,CARE ESTABLISHMENT,AMH - Hunts & Fens,Hunts Mental Health Team,Supported Living
Cambridgeshire County Council,02-Jul-21,51301598616,-813.42,CARDINAL GATE 55,CARE ESTABLISHMENT,AMH - Hunts & Fens,Hunts Mental Health Team,Supported Living
Cambridgeshire County Council,02-Jul-21,51301598616,-813.42,CARDINAL GATE 55,CARE ESTABLISHMENT,AMH - Hunts & Fens,Hunts Mental Health Team,Supported Living
Cambridgeshire County Council,02-Jul-21,51301598616,-813.42,CARDINAL GATE 55,CARE ESTABLISHMENT,AMH - Hunts & Fens,Hunts Mental Health Team,Supported Living
Cambridgeshire County Council,02-Jul-21,51301598616,-813.42,CARDINAL GATE 55,CARE ESTABLISHMENT,AMH - Hunts & Fens,Hunts Mental Health Team,Supported Living
Cambridgeshire County Council,02-Jul-21,51301598616,-813.42,CARDINAL GATE 55,CARE ESTABLISHMENT,AMH - Hunts & Fens,Hunts Mental Health Team,Supported Living
Cambridgeshire County Council,02-Jul-21,51301598616,-813.42,CARDINAL GATE 55,CARE ESTABLISHMENT,AMH - Hunts & Fens,Hunts Mental Health Team,Supported Living
Cambridgeshire County Council,02-Jul-21,51301598616,-813.42,CARDINAL GATE 55,CARE ESTABLISHMENT,AMH - Hunts & Fens,Hunts Mental Health Team,Supported Living
Cambridgeshire County Council,02-Jul-21,51301598616,-813.42,CARDINAL GATE 55,CARE ESTABLISHMENT,AMH - Hunts & Fens,Hunts Mental Health Team,Supported Living
Cambridgeshire County Council,02-Jul-21,51301598616,-813.42,CARDINAL GATE 55,CARE ESTABLISHMENT,AMH - Hunts & Fens,Hunts Mental Health Team,Supported Living
Cambridgeshire County Council,02-Jul-21,51301598616,-813.42,CARDINAL GATE 55,CARE ESTABLISHMENT,AMH - Hunts & Fens,Hunts Mental Health Team,Supported Living
Cambridgeshire County Council,02-Jul-21,51301598616,-813.42,CARDINAL GATE 55,CARE ESTABLISHMENT,AMH - Hunts & Fens,Hunts Mental Health Team,Supported Living
Cambridgeshire County Council,02-Jul-21,51301598616,-813.42,CARDINAL GATE 55,CARE ESTABLISHMENT,AMH - Hunts & Fens,Hunts Mental Health Team,Supported Living
Cambridgeshire County Council,02-Jul-21,51301598616,-813.42,CARDINAL GATE 55,CARE ESTABLISHMENT,AMH - Hunts & Fens,Hunts Mental Health Team,Supported Living
Cambridgeshire County Council,02-Jul-21,51301598616,-813.42,CARDINAL GATE 55,CARE ESTABLISHMENT,AMH - Hunts & Fens,Hunts Mental Health Team,Supported Living
Cambridgeshire County Council,02-Jul-21,51301598616,-813.42,CARDINAL GATE 55,CARE ESTABLISHMENT,AMH - Hunts & Fens,Hunts Mental Health Team,Supported Living
Cambridgeshire County Council,02-Jul-21,51301598616,-813.42,CARDINAL GATE 55,CARE ESTABLISHMENT,AMH - Hunts & Fens,Hunts Mental Health Team,Supported Living
Cambridgeshire County Council,02-Jul-21,51301598616,-813.42,CARDINAL GATE 55,CARE ESTABLISHMENT,AMH - Hunts & Fens,Hunts Mental Health Team,Supported Living
Cambridgeshire County Council,02-Jul-21,51301598616,-813.42,CARDINAL GATE 55,CARE ESTABLISHMENT,AMH - Hunts & Fens,Hunts Mental Health Team,Supported Living
Cambridgeshire County Council,02-Jul-21,51301598616,-813.42,CARDINAL GATE 55,CARE ESTABLISHMENT,AMH - Hunts & Fens,Hunts Mental Health Team,Supported Living
Cambridgeshire County Council,02-Jul-21,51301598616,-813.42,CARDINAL GATE 55,CARE ESTABLISHMENT,AMH - Hunts & Fens,Hunts Mental Health Team,Supported Living
Cambridgeshire County Council,02-Jul-21,51301598616,-813.42,CARDINAL GATE 55,CARE ESTABLISHMENT,AMH - Hunts & Fens,Hunts Mental Health Team,Supported Living
Cambridgeshire County Council,02-Jul-21,51301598616,-813.42,CARDINAL GATE 55,CARE ESTABLISHMENT,AMH - Hunts & Fens,Hunts Mental Health Team,Supported Living
Cambridgeshire County Council,02-Jul-21,51301598616,-813.42,CARDINAL GATE 55,CARE ESTABLISHMENT,AMH - Hunts & Fens,Hunts Mental Health Team,Supported Living
Cambridgeshire County Council,02-Jul-21,51301598616,-813.42,CARDINAL GATE 55,CARE ESTABLISHMENT,AMH - Hunts & Fens,Hunts Mental Health Team,Supported Living
Cambridgeshire County Council,02-Jul-21,51301598616,-813.42,CARDINAL GATE 55,CARE ESTABLISHMENT,AMH - Hunts & Fens,Hunts Mental Health Team,Supported Living
Cambridgeshire County Council,02-Jul-21,51301598616,-813.42,CARDINAL GATE 55,CARE ESTABLISHMENT,AMH - Hunts & Fens,Hunts Mental Health Team,Supported Living
Cambridgeshire County Council,02-Jul-21,51301598616,-813.42,CARDINAL GATE 55,CARE ESTABLISHMENT,AMH - Hunts & Fens,Hunts Mental Health Team,Supported Living
Cambridgeshire County Council,02-Jul-21,51301598616,-813.42,CARDINAL GATE 55,CARE ESTABLISHMENT,AMH - Hunts & Fens,Hunts Mental Health Team,Supported Living
Cambridgeshire County Council,02-Jul-21,51301598616,-813.42,CARDINAL GATE 55,CARE ESTABLISHMENT,AMH - Hunts & Fens,Hunts Mental Health Team,Supported Living
Cambridgeshire County Council,02-Jul-21,51301598616,-813.42,CARDINAL GATE 55,CARE ESTABLISHMENT,AMH - Hunts & Fens,Hunts Mental Health Team,Supported Living
Cambridgeshire County Council,02-Jul-21,51301598616,-813.42,CARDINAL GATE 55,CARE ESTABLISHMENT,AMH - Hunts & Fens,Hunts Mental Health Team,Supported Living
Cambridgeshire County Council,02-Jul-21,51301598616,-813.42,CARDINAL GATE 55,CARE ESTABLISHMENT,AMH - Hunts & Fens,Hunts Mental Health Team,Supported Living
Cambridgeshire County Council,02-Jul-21,51301598616,-813.42,CARDINAL GATE 55,CARE ESTABLISHMENT,AMH - Hunts & Fens,Hunts Mental Health Team,Supported Living
Cambridgeshire County Council,02-Jul-21,51301598616,-813.42,CARDINAL GATE 55,CARE ESTABLISHMENT,AMH - Hunts & Fens,Hunts Mental Health Team,Supported Living
Cambridgeshire County Council,02-Jul-21,51301598616,-813.42,CARDINAL GATE 55,CARE ESTABLISHMENT,AMH - Hunts & Fens,Hunts Mental Health Team,Supported Living
Cambridgeshire County Council,02-Jul-21,51301598616,-813.42,CARDINAL GATE 55,CARE ESTABLISHMENT,AMH - Hunts & Fens,Hunts Mental Health Team,Supported Living
Cambridgeshire County Council,02-Jul-21,51301598616,-813.42,CARDINAL GATE 55,CARE ESTABLISHMENT,AMH - Hunts & Fens,Hunts Mental Health Team,Supported Living
Cambridgeshire County Council,02-Jul-21,51301598616,-813.42,CARDINAL GATE 55,CARE ESTABLISHMENT,AMH - Hunts & Fens,Hunts Mental Health Team,Supported Living
Cambridgeshire County Council,02-Jul-21,51301598616,-813.42,CARDINAL GATE 55,CARE ESTABLISHMENT,AMH - Hunts & Fens,Hunts Mental Health Team,Supported Living
Cambridgeshire County Council,02-Jul-21,51301598616,-813.42,CARDINAL GATE 55,CARE ESTABLISHMENT,AMH - Hunts & Fens,Hunts Mental Health Team,Supported Living
Cambridgeshire County Council,02-Jul-21,51301598616,-813.42,CARDINAL GATE 55,CARE ESTABLISHMENT,AMH - Hunts & Fens,Hunts Mental Health Team,Supported Living
Cambridgeshire County Council,02-Jul-21,51301598616,-813.42,CARDINAL GATE 55,CARE ESTABLISHMENT,AMH - Hunts & Fens,Hunts Mental Health Team,Supported Living
Cambridgeshire County Council,02-Jul-21,51301598616,-813.42,CARDINAL GATE 55,CARE ESTABLISHMENT,AMH - Hunts & Fens,Hunts Mental Health Team,Supported Living
Cambridgeshire County Council,02-Jul-21,51301598616,-813.42,CARDINAL GATE 55,CARE ESTABLISHMENT,AMH - Hunts & Fens,Hunts Mental Health Team,Supported Living
Cambridgeshire County Council,02-Jul-21,51301598616,-813.42,CARDINAL GATE 55,CARE ESTABLISHMENT,AMH - Hunts & Fens,Hunts Mental Health Team,Supported Living
Cambridgeshire County Council,02-Jul-21,51301598616,-813.42,CARDINAL GATE 55,CARE ESTABLISHMENT,AMH - Hunts & Fens,Hunts Mental Health Team,Supported Living
Cambridgeshire County Council,02-Jul-21,51301598616,-813.42,CARDINAL GATE 55,CARE ESTABLISHMENT,AMH - Hunts & Fens,Hunts Mental Health Team,Supported Living
Cambridgeshire County Council,02-Jul-21,51301598616,-813.42,CARDINAL GATE 55,CARE ESTABLISHMENT,AMH - Hunts & Fens,Hunts Mental Health Team,Supported Living
Cambridgeshire County Council,02-Jul-21,51301598648,-706.00,CAMBRIDGESHIRE HOMECARE (J&M CARE LTD),CARE ESTABLISHMENT,OPMH - Hunts & Fens,Older People Mental Health Fenland,Domiciliary Care
Cambridgeshire County Council,02-Jul-21,51301598648,-706.00,CAMBRIDGESHIRE HOMECARE (J&M CARE LTD),CARE ESTABLISHMENT,OPMH - Hunts & Fens,Older People Mental Health Fenland,Domiciliary Care
Cambridgeshire County Council,02-Jul-21,51301598648,-706.00,CAMBRIDGESHIRE HOMECARE (J&M CARE LTD),CARE ESTABLISHMENT,OPMH - Hunts & Fens,Older People Mental Health Fenland,Domiciliary Care
Cambridgeshire County Council,02-Jul-21,51301598648,-706.00,CAMBRIDGESHIRE HOMECARE (J&M CARE LTD),CARE ESTABLISHMENT,OPMH - Hunts & Fens,Older People Mental Health Fenland,Domiciliary Care
Cambridgeshire County Council,02-Jul-21,51301598648,-706.00,CAMBRIDGESHIRE HOMECARE (J&M CARE LTD),CARE ESTABLISHMENT,OPMH - Hunts & Fens,Older People Mental Health Fenland,Domiciliary Care
Cambridgeshire County Council,02-Jul-21,51301598648,-706.00,CAMBRIDGESHIRE HOMECARE (J&M CARE LTD),CARE ESTABLISHMENT,OPMH - Hunts & Fens,Older People Mental Health Fenland,Domiciliary Care
Cambridgeshire County Council,02-Jul-21,51301598648,-706.00,CAMBRIDGESHIRE HOMECARE (J&M CARE LTD),CARE ESTABLISHMENT,OPMH - Hunts & Fens,Older People Mental Health Fenland,Domiciliary Care
Cambridgeshire County Council,02-Jul-21,51301598648,-706.00,CAMBRIDGESHIRE HOMECARE (J&M CARE LTD),CARE ESTABLISHMENT,OPMH - Hunts & Fens,Older People Mental Health Fenland,Domiciliary Care
Cambridgeshire County Council,02-Jul-21,51301598648,-706.00,CAMBRIDGESHIRE HOMECARE (J&M CARE LTD),CARE ESTABLISHMENT,OPMH - Hunts & Fens,Older People Mental Health Fenland,Domiciliary Care
Cambridgeshire County Council,02-Jul-21,51301598648,-706.00,CAMBRIDGESHIRE HOMECARE (J&M CARE LTD),CARE ESTABLISHMENT,OPMH - Hunts & Fens,Older People Mental Health Fenland,Domiciliary Care
Cambridgeshire County Council,02-Jul-21,51301598639,-676.52,WESTMINSTER HOMECARE LIMITED,CARE ESTABLISHMENT,LD - South Locality - Cost of Care,LD - South Cambs - Care,Domiciliary Care
Cambridgeshire County Council,02-Jul-21,51301598639,-676.40,WESTMINSTER HOMECARE LIMITED,CARE ESTABLISHMENT,LD - South Locality - Cost of Care,LD - South Cambs - Care,Domiciliary Care
Cambridgeshire County Council,02-Jul-21,51301598639,-676.40,WESTMINSTER HOMECARE LIMITED,CARE ESTABLISHMENT,LD - South Locality - Cost of Care,LD - South Cambs - Care,Domiciliary Care
Cambridgeshire County Council,02-Jul-21,51301598639,-676.40,WESTMINSTER HOMECARE LIMITED,CARE ESTABLISHMENT,LD - South Locality - Cost of Care,LD - South Cambs - Care,Domiciliary Care
Cambridgeshire County Council,02-Jul-21,51301598639,-676.40,WESTMINSTER HOMECARE LIMITED,CARE ESTABLISHMENT,LD - South Locality - Cost of Care,LD - South Cambs - Care,Domiciliary Care
Cambridgeshire County Council,02-Jul-21,51301598639,-676.40,WESTMINSTER HOMECARE LIMITED,CARE ESTABLISHMENT,LD - South Locality - Cost of Care,LD - South Cambs - Care,Domiciliary Care
Cambridgeshire County Council,02-Jul-21,51301598639,-676.40,WESTMINSTER HOMECARE LIMITED,CARE ESTABLISHMENT,LD - South Locality - Cost of Care,LD - South Cambs - Care,Domiciliary Care
Cambridgeshire County Council,02-Jul-21,51301598639,-676.40,WESTMINSTER HOMECARE LIMITED,CARE ESTABLISHMENT,LD - South Locality - Cost of Care,LD - South Cambs - Care,Domiciliary Care
Cambridgeshire County Council,02-Jul-21,51301598639,-676.40,WESTMINSTER HOMECARE LIMITED,CARE ESTABLISHMENT,LD - South Locality - Cost of Care,LD - South Cambs - Care,Domiciliary Care
Cambridgeshire County Council,02-Jul-21,51301598639,-676.40,WESTMINSTER HOMECARE LIMITED,CARE ESTABLISHMENT,LD - South Locality - Cost of Care,LD - South Cambs - Care,Domiciliary Care
Cambridgeshire County Council,02-Jul-21,51301598639,-676.40,WESTMINSTER HOMECARE LIMITED,CARE ESTABLISHMENT,LD - South Locality - Cost of Care,LD - South Cambs - Care,Domiciliary Care
Cambridgeshire County Council,02-Jul-21,51301598639,-674.44,WESTMINSTER HOMECARE LIMITED,CARE ESTABLISHMENT,LD - South Locality - Cost of Care,LD - South Cambs - Care,Domiciliary Care
Cambridgeshire County Council,02-Jul-21,51301598639,-669.56,WESTMINSTER HOMECARE LIMITED,CARE ESTABLISHMENT,LD - South Locality - Cost of Care,LD - South Cambs - Care,Domiciliary Care
Cambridgeshire County Council,02-Jul-21,51301598639,-669.56,WESTMINSTER HOMECARE LIMITED,CARE ESTABLISHMENT,LD - South Locality - Cost of Care,LD - South Cambs - Care,Domiciliary Care
Cambridgeshire County Council,02-Jul-21,51301598639,-669.56,WESTMINSTER HOMECARE LIMITED,CARE ESTABLISHMENT,LD - South Locality - Cost of Care,LD - South Cambs - Care,Domiciliary Care
Cambridgeshire County Council,02-Jul-21,51301598639,-669.56,WESTMINSTER HOMECARE LIMITED,CARE ESTABLISHMENT,LD - South Locality - Cost of Care,LD - South Cambs - Care,Domiciliary Care
Cambridgeshire County Council,02-Jul-21,51301598639,-669.56,WESTMINSTER HOMECARE LIMITED,CARE ESTABLISHMENT,LD - South Locality - Cost of Care,LD - South Cambs - Care,Domiciliary Care
Cambridgeshire County Council,02-Jul-21,51301598639,-669.56,WESTMINSTER HOMECARE LIMITED,CARE ESTABLISHMENT,LD - South Locality - Cost of Care,LD - South Cambs - Care,Domiciliary Care
Cambridgeshire County Council,02-Jul-21,51301598639,-669.56,WESTMINSTER HOMECARE LIMITED,CARE ESTABLISHMENT,LD - South Locality - Cost of Care,LD - South Cambs - Care,Domiciliary Care
Cambridgeshire County Council,02-Jul-21,51301598639,-669.56,WESTMINSTER HOMECARE LIMITED,CARE ESTABLISHMENT,LD - South Locality - Cost of Care,LD - South Cambs - Care,Domiciliary Care
Cambridgeshire County Council,02-Jul-21,51301598639,-669.56,WESTMINSTER HOMECARE LIMITED,CARE ESTABLISHMENT,LD - South Locality - Cost of Care,LD - South Cambs - Care,Domiciliary Care
Cambridgeshire County Council,02-Jul-21,51301598639,-669.56,WESTMINSTER HOMECARE LIMITED,CARE ESTABLISHMENT,LD - South Locality - Cost of Care,LD - South Cambs - Care,Domiciliary Care
Cambridgeshire County Council,02-Jul-21,51301598639,-669.56,WESTMINSTER HOMECARE LIMITED,CARE ESTABLISHMENT,LD - South Locality - Cost of Care,LD - South Cambs - Care,Domiciliary Care
Cambridgeshire County Council,02-Jul-21,51301598639,-669.56,WESTMINSTER HOMECARE LIMITED,CARE ESTABLISHMENT,LD - South Locality - Cost of Care,LD - South Cambs - Care,Domiciliary Care
Cambridgeshire County Council,02-Jul-21,51301598639,-669.56,WESTMINSTER HOMECARE LIMITED,CARE ESTABLISHMENT,LD - South Locality - Cost of Care,LD - South Cambs - Care,Domiciliary Care
Cambridgeshire County Council,02-Jul-21,51301598639,-669.56,WESTMINSTER HOMECARE LIMITED,CARE ESTABLISHMENT,LD - South Locality - Cost of Care,LD - South Cambs - Care,Domiciliary Care
Cambridgeshire County Council,02-Jul-21,51301598639,-669.56,WESTMINSTER HOMECARE LIMITED,CARE ESTABLISHMENT,LD - South Locality - Cost of Care,LD - South Cambs - Care,Domiciliary Care
Cambridgeshire County Council,02-Jul-21,51301598639,-669.56,WESTMINSTER HOMECARE LIMITED,CARE ESTABLISHMENT,LD - South Locality - Cost of Care,LD - South Cambs - Care,Domiciliary Care
Cambridgeshire County Council,02-Jul-21,51301598639,-669.56,WESTMINSTER HOMECARE LIMITED,CARE ESTABLISHMENT,LD - South Locality - Cost of Care,LD - South Cambs - Care,Domiciliary Care
Cambridgeshire County Council,02-Jul-21,51301598639,-669.56,WESTMINSTER HOMECARE LIMITED,CARE ESTABLISHMENT,LD - South Locality - Cost of Care,LD - South Cambs - Care,Domiciliary Care
Cambridgeshire County Council,02-Jul-21,51301598639,-669.56,WESTMINSTER HOMECARE LIMITED,CARE ESTABLISHMENT,LD - South Locality - Cost of Care,LD - South Cambs - Care,Domiciliary Care
Cambridgeshire County Council,02-Jul-21,51301598639,-669.56,WESTMINSTER HOMECARE LIMITED,CARE ESTABLISHMENT,LD - South Locality - Cost of Care,LD - South Cambs - Care,Domiciliary Care
Cambridgeshire County Council,02-Jul-21,51301598639,-669.56,WESTMINSTER HOMECARE LIMITED,CARE ESTABLISHMENT,LD - South Locality - Cost of Care,LD - South Cambs - Care,Domiciliary Care
Cambridgeshire County Council,02-Jul-21,51301598639,-669.56,WESTMINSTER HOMECARE LIMITED,CARE ESTABLISHMENT,LD - South Locality - Cost of Care,LD - South Cambs - Care,Domiciliary Care
Cambridgeshire County Council,02-Jul-21,51301598639,-669.56,WESTMINSTER HOMECARE LIMITED,CARE ESTABLISHMENT,LD - South Locality - Cost of Care,LD - South Cambs - Care,Domiciliary Care
Cambridgeshire County Council,02-Jul-21,51301598639,-669.56,WESTMINSTER HOMECARE LIMITED,CARE ESTABLISHMENT,LD - South Locality - Cost of Care,LD - South Cambs - Care,Domiciliary Care
Cambridgeshire County Council,02-Jul-21,51301598639,-669.56,WESTMINSTER HOMECARE LIMITED,CARE ESTABLISHMENT,LD - South Locality - Cost of Care,LD - South Cambs - Care,Domiciliary Care
Cambridgeshire County Council,02-Jul-21,51301598639,-669.56,WESTMINSTER HOMECARE LIMITED,CARE ESTABLISHMENT,LD - South Locality - Cost of Care,LD - South Cambs - Care,Domiciliary Care
Cambridgeshire County Council,02-Jul-21,51301598639,-669.56,WESTMINSTER HOMECARE LIMITED,CARE ESTABLISHMENT,LD - South Locality - Cost of Care,LD - South Cambs - Care,Domiciliary Care
Cambridgeshire County Council,02-Jul-21,51301598639,-669.56,WESTMINSTER HOMECARE LIMITED,CARE ESTABLISHMENT,LD - South Locality - Cost of Care,LD - South Cambs - Care,Domiciliary Care
Cambridgeshire County Council,02-Jul-21,51301598639,-669.56,WESTMINSTER HOMECARE LIMITED,CARE ESTABLISHMENT,LD - South Locality - Cost of Care,LD - South Cambs - Care,Domiciliary Care
Cambridgeshire County Council,02-Jul-21,51301598639,-669.56,WESTMINSTER HOMECARE LIMITED,CARE ESTABLISHMENT,LD - South Locality - Cost of Care,LD - South Cambs - Care,Domiciliary Care
Cambridgeshire County Council,02-Jul-21,51301598639,-669.56,WESTMINSTER HOMECARE LIMITED,CARE ESTABLISHMENT,LD - South Locality - Cost of Care,LD - South Cambs - Care,Domiciliary Care
Cambridgeshire County Council,02-Jul-21,51301598639,-669.56,WESTMINSTER HOMECARE LIMITED,CARE ESTABLISHMENT,LD - South Locality - Cost of Care,LD - South Cambs - Care,Domiciliary Care
Cambridgeshire County Council,02-Jul-21,51301598639,-669.56,WESTMINSTER HOMECARE LIMITED,CARE ESTABLISHMENT,LD - South Locality - Cost of Care,LD - South Cambs - Care,Domiciliary Care
Cambridgeshire County Council,02-Jul-21,51301598639,-669.56,WESTMINSTER HOMECARE LIMITED,CARE ESTABLISHMENT,LD - South Locality - Cost of Care,LD - South Cambs - Care,Domiciliary Care
Cambridgeshire County Council,02-Jul-21,51301598622,-652.34,THE EDMUND TRUST,CARE ESTABLISHMENT,LD - East Locality - Cost of Care,LD - East Cambs - Care,Supported Living
Cambridgeshire County Council,02-Jul-21,51301598639,-648.66,WESTMINSTER HOMECARE LIMITED,CARE ESTABLISHMENT,LD - South Locality - Cost of Care,LD - South Cambs - Care,Domiciliary Care
Cambridgeshire County Council,02-Jul-21,51301598639,-648.66,WESTMINSTER HOMECARE LIMITED,CARE ESTABLISHMENT,LD - South Locality - Cost of Care,LD - South Cambs - Care,Domiciliary Care
Cambridgeshire County Council,02-Jul-21,51301598639,-648.66,WESTMINSTER HOMECARE LIMITED,CARE ESTABLISHMENT,LD - South Locality - Cost of Care,LD - South Cambs - Care,Domiciliary Care
Cambridgeshire County Council,02-Jul-21,51301598639,-648.66,WESTMINSTER HOMECARE LIMITED,CARE ESTABLISHMENT,LD - South Locality - Cost of Care,LD - South Cambs - Care,Domiciliary Care
Cambridgeshire County Council,02-Jul-21,51301598639,-648.66,WESTMINSTER HOMECARE LIMITED,CARE ESTABLISHMENT,LD - South Locality - Cost of Care,LD - South Cambs - Care,Domiciliary Care
Cambridgeshire County Council,02-Jul-21,51301598639,-648.66,WESTMINSTER HOMECARE LIMITED,CARE ESTABLISHMENT,LD - South Locality - Cost of Care,LD - South Cambs - Care,Domiciliary Care
Cambridgeshire County Council,02-Jul-21,51301598639,-648.66,WESTMINSTER HOMECARE LIMITED,CARE ESTABLISHMENT,LD - South Locality - Cost of Care,LD - South Cambs - Care,Domiciliary Care
Cambridgeshire County Council,02-Jul-21,51301598662,-623.00,MIHOMECARE LTD (THE CARE AGENCY),CARE ESTABLISHMENT,OP - East Cambs Locality - Cost of Care,East Cambs - O P Team - Care,Domiciliary Care
Cambridgeshire County Council,02-Jul-21,51301598662,-623.00,MIHOMECARE LTD (THE CARE AGENCY),CARE ESTABLISHMENT,OP - East Cambs Locality - Cost of Care,East Cambs - O P Team - Care,Domiciliary Care
Cambridgeshire County Council,02-Jul-21,51301598662,-623.00,MIHOMECARE LTD (THE CARE AGENCY),CARE ESTABLISHMENT,OP - East Cambs Locality - Cost of Care,East Cambs - O P Team - Care,Domiciliary Care
Cambridgeshire County Council,02-Jul-21,51301598662,-623.00,MIHOMECARE LTD (THE CARE AGENCY),CARE ESTABLISHMENT,OP - East Cambs Locality - Cost of Care,East Cambs - O P Team - Care,Domiciliary Care
Cambridgeshire County Council,02-Jul-21,51301598662,-623.00,MIHOMECARE LTD (THE CARE AGENCY),CARE ESTABLISHMENT,OP - East Cambs Locality - Cost of Care,East Cambs - O P Team - Care,Domiciliary Care
Cambridgeshire County Council,02-Jul-21,51301598662,-623.00,MIHOMECARE LTD (THE CARE AGENCY),CARE ESTABLISHMENT,OP - East Cambs Locality - Cost of Care,East Cambs - O P Team - Care,Domiciliary Care
Cambridgeshire County Council,02-Jul-21,51301598662,-623.00,MIHOMECARE LTD (THE CARE AGENCY),CARE ESTABLISHMENT,OP - East Cambs Locality - Cost of Care,East Cambs - O P Team - Care,Domiciliary Care
Cambridgeshire County Council,02-Jul-21,51301598662,-623.00,MIHOMECARE LTD (THE CARE AGENCY),CARE ESTABLISHMENT,OP - East Cambs Locality - Cost of Care,East Cambs - O P Team - Care,Domiciliary Care
Cambridgeshire County Council,02-Jul-21,51301598662,-623.00,MIHOMECARE LTD (THE CARE AGENCY),CARE ESTABLISHMENT,OP - East Cambs Locality - Cost of Care,East Cambs - O P Team - Care,Domiciliary Care
Cambridgeshire County Council,02-Jul-21,51301598662,-623.00,MIHOMECARE LTD (THE CARE AGENCY),CARE ESTABLISHMENT,OP - East Cambs Locality - Cost of Care,East Cambs - O P Team - Care,Domiciliary Care
Cambridgeshire County Council,02-Jul-21,51301598662,-621.20,MIHOMECARE LTD (THE CARE AGENCY),CARE ESTABLISHMENT,OP - East Cambs Locality - Cost of Care,East Cambs - O P Team - Care,Domiciliary Care
Cambridgeshire County Council,02-Jul-21,51301598662,-616.70,MIHOMECARE LTD (THE CARE AGENCY),CARE ESTABLISHMENT,OP - East Cambs Locality - Cost of Care,East Cambs - O P Team - Care,Domiciliary Care
Cambridgeshire County Council,02-Jul-21,51301598662,-616.70,MIHOMECARE LTD (THE CARE AGENCY),CARE ESTABLISHMENT,OP - East Cambs Locality - Cost of Care,East Cambs - O P Team - Care,Domiciliary Care
Cambridgeshire County Council,02-Jul-21,51301598662,-616.70,MIHOMECARE LTD (THE CARE AGENCY),CARE ESTABLISHMENT,OP - East Cambs Locality - Cost of Care,East Cambs - O P Team - Care,Domiciliary Care
Cambridgeshire County Council,02-Jul-21,51301598662,-616.70,MIHOMECARE LTD (THE CARE AGENCY),CARE ESTABLISHMENT,OP - East Cambs Locality - Cost of Care,East Cambs - O P Team - Care,Domiciliary Care
Cambridgeshire County Council,02-Jul-21,51301598662,-616.70,MIHOMECARE LTD (THE CARE AGENCY),CARE ESTABLISHMENT,OP - East Cambs Locality - Cost of Care,East Cambs - O P Team - Care,Domiciliary Care
Cambridgeshire County Council,02-Jul-21,51301598662,-616.70,MIHOMECARE LTD (THE CARE AGENCY),CARE ESTABLISHMENT,OP - East Cambs Locality - Cost of Care,East Cambs - O P Team - Care,Domiciliary Care
Cambridgeshire County Council,02-Jul-21,51301598662,-616.70,MIHOMECARE LTD (THE CARE AGENCY),CARE ESTABLISHMENT,OP - East Cambs Locality - Cost of Care,East Cambs - O P Team - Care,Domiciliary Care
Cambridgeshire County Council,02-Jul-21,51301598643,-616.70,MIHOMECARE LTD (FENLAND PREMIER CARE),CARE ESTABLISHMENT,OP - East Cambs Locality - Cost of Care,East Cambs - O P Team - Care,Domiciliary Care
Cambridgeshire County Council,02-Jul-21,51301598661,-616.70,MIHOMECARE LTD (FENLAND PREMIER CARE),CARE ESTABLISHMENT,OP - East Cambs Locality - Cost of Care,East Cambs - O P Team - Care,Domiciliary Care
Cambridgeshire County Council,02-Jul-21,51301598661,-616.70,MIHOMECARE LTD (FENLAND PREMIER CARE),CARE ESTABLISHMENT,OP - East Cambs Locality - Cost of Care,East Cambs - O P Team - Care,Domiciliary Care
Cambridgeshire County Council,02-Jul-21,51301598643,-616.70,MIHOMECARE LTD (FENLAND PREMIER CARE),CARE ESTABLISHMENT,OP - East Cambs Locality - Cost of Care,East Cambs - O P Team - Care,Domiciliary Care
Cambridgeshire County Council,02-Jul-21,51301598643,-616.70,MIHOMECARE LTD (FENLAND PREMIER CARE),CARE ESTABLISHMENT,OP - East Cambs Locality - Cost of Care,East Cambs - O P Team - Care,Domiciliary Care
Cambridgeshire County Council,02-Jul-21,51301598643,-616.70,MIHOMECARE LTD (FENLAND PREMIER CARE),CARE ESTABLISHMENT,OP - East Cambs Locality - Cost of Care,East Cambs - O P Team - Care,Domiciliary Care
Cambridgeshire County Council,02-Jul-21,51301598643,-616.70,MIHOMECARE LTD (FENLAND PREMIER CARE),CARE ESTABLISHMENT,OP - East Cambs Locality - Cost of Care,East Cambs - O P Team - Care,Domiciliary Care
Cambridgeshire County Council,02-Jul-21,51301598643,-616.70,MIHOMECARE LTD (FENLAND PREMIER CARE),CARE ESTABLISHMENT,OP - East Cambs Locality - Cost of Care,East Cambs - O P Team - Care,Domiciliary Care
Cambridgeshire County Council,02-Jul-21,51301598643,-616.70,MIHOMECARE LTD (FENLAND PREMIER CARE),CARE ESTABLISHMENT,OP - East Cambs Locality - Cost of Care,East Cambs - O P Team - Care,Domiciliary Care
Cambridgeshire County Council,02-Jul-21,51301598643,-616.70,MIHOMECARE LTD (FENLAND PREMIER CARE),CARE ESTABLISHMENT,OP - East Cambs Locality - Cost of Care,East Cambs - O P Team - Care,Domiciliary Care
Cambridgeshire County Council,02-Jul-21,51301598643,-616.70,MIHOMECARE LTD (FENLAND PREMIER CARE),CARE ESTABLISHMENT,OP - East Cambs Locality - Cost of Care,East Cambs - O P Team - Care,Domiciliary Care
Cambridgeshire County Council,02-Jul-21,51301598643,-616.70,MIHOMECARE LTD (FENLAND PREMIER CARE),CARE ESTABLISHMENT,OP - East Cambs Locality - Cost of Care,East Cambs - O P Team - Care,Domiciliary Care
Cambridgeshire County Council,02-Jul-21,51301598643,-616.70,MIHOMECARE LTD (FENLAND PREMIER CARE),CARE ESTABLISHMENT,OP - East Cambs Locality - Cost of Care,East Cambs - O P Team - Care,Domiciliary Care
Cambridgeshire County Council,02-Jul-21,51301598643,-616.70,MIHOMECARE LTD (FENLAND PREMIER CARE),CARE ESTABLISHMENT,OP - East Cambs Locality - Cost of Care,East Cambs - O P Team - Care,Domiciliary Care
Cambridgeshire County Council,02-Jul-21,51301598643,-616.70,MIHOMECARE LTD (FENLAND PREMIER CARE),CARE ESTABLISHMENT,OP - East Cambs Locality - Cost of Care,East Cambs - O P Team - Care,Domiciliary Care
Cambridgeshire County Council,02-Jul-21,51301598643,-616.70,MIHOMECARE LTD (FENLAND PREMIER CARE),CARE ESTABLISHMENT,OP - East Cambs Locality - Cost of Care,East Cambs - O P Team - Care,Domiciliary Care
Cambridgeshire County Council,02-Jul-21,51301598643,-616.70,MIHOMECARE LTD (FENLAND PREMIER CARE),CARE ESTABLISHMENT,OP - East Cambs Locality - Cost of Care,East Cambs - O P Team - Care,Domiciliary Care
Cambridgeshire County Council,02-Jul-21,51301598643,-616.70,MIHOMECARE LTD (FENLAND PREMIER CARE),CARE ESTABLISHMENT,OP - East Cambs Locality - Cost of Care,East Cambs - O P Team - Care,Domiciliary Care
Cambridgeshire County Council,02-Jul-21,51301598643,-616.70,MIHOMECARE LTD (FENLAND PREMIER CARE),CARE ESTABLISHMENT,OP - East Cambs Locality - Cost of Care,East Cambs - O P Team - Care,Domiciliary Care
Cambridgeshire County Council,02-Jul-21,51301598643,-616.70,MIHOMECARE LTD (FENLAND PREMIER CARE),CARE ESTABLISHMENT,OP - East Cambs Locality - Cost of Care,East Cambs - O P Team - Care,Domiciliary Care
Cambridgeshire County Council,02-Jul-21,51301598661,-616.70,MIHOMECARE LTD (FENLAND PREMIER CARE),CARE ESTABLISHMENT,OP - East Cambs Locality - Cost of Care,East Cambs - O P Team - Care,Domiciliary Care
Cambridgeshire County Council,02-Jul-21,51301598643,-608.45,MIHOMECARE LTD (FENLAND PREMIER CARE),CARE ESTABLISHMENT,OP - East Cambs Locality - Cost of Care,East Cambs - O P Team - Care,Domiciliary Care
Cambridgeshire County Council,02-Jul-21,51301598643,-597.45,MIHOMECARE LTD (FENLAND PREMIER CARE),CARE ESTABLISHMENT,OP - East Cambs Locality - Cost of Care,East Cambs - O P Team - Care,Domiciliary Care
Cambridgeshire County Council,02-Jul-21,51301598643,-597.45,MIHOMECARE LTD (FENLAND PREMIER CARE),CARE ESTABLISHMENT,OP - East Cambs Locality - Cost of Care,East Cambs - O P Team - Care,Domiciliary Care
Cambridgeshire County Council,02-Jul-21,51301598643,-597.45,MIHOMECARE LTD (FENLAND PREMIER CARE),CARE ESTABLISHMENT,OP - East Cambs Locality - Cost of Care,East Cambs - O P Team - Care,Domiciliary Care
Cambridgeshire County Council,02-Jul-21,51301598643,-597.45,MIHOMECARE LTD (FENLAND PREMIER CARE),CARE ESTABLISHMENT,OP - East Cambs Locality - Cost of Care,East Cambs - O P Team - Care,Domiciliary Care
Cambridgeshire County Council,02-Jul-21,51301598643,-597.45,MIHOMECARE LTD (FENLAND PREMIER CARE),CARE ESTABLISHMENT,OP - East Cambs Locality - Cost of Care,East Cambs - O P Team - Care,Domiciliary Care
Cambridgeshire County Council,02-Jul-21,51301598643,-597.45,MIHOMECARE LTD (FENLAND PREMIER CARE),CARE ESTABLISHMENT,OP - East Cambs Locality - Cost of Care,East Cambs - O P Team - Care,Domiciliary Care
Cambridgeshire County Council,02-Jul-21,51301598643,-597.45,MIHOMECARE LTD (FENLAND PREMIER CARE),CARE ESTABLISHMENT,OP - East Cambs Locality - Cost of Care,East Cambs - O P Team - Care,Domiciliary Care
Cambridgeshire County Council,02-Jul-21,51301598643,-597.45,MIHOMECARE LTD (FENLAND PREMIER CARE),CARE ESTABLISHMENT,OP - East Cambs Locality - Cost of Care,East Cambs - O P Team - Care,Domiciliary Care
Cambridgeshire County Council,02-Jul-21,51301598643,-597.45,MIHOMECARE LTD (FENLAND PREMIER CARE),CARE ESTABLISHMENT,OP - East Cambs Locality - Cost of Care,East Cambs - O P Team - Care,Domiciliary Care
Cambridgeshire County Council,02-Jul-21,51301598643,-597.45,MIHOMECARE LTD (FENLAND PREMIER CARE),CARE ESTABLISHMENT,OP - East Cambs Locality - Cost of Care,East Cambs - O P Team - Care,Domiciliary Care
Cambridgeshire County Council,02-Jul-21,51301598643,-597.45,MIHOMECARE LTD (FENLAND PREMIER CARE),CARE ESTABLISHMENT,OP - East Cambs Locality - Cost of Care,East Cambs - O P Team - Care,Domiciliary Care
Cambridgeshire County Council,02-Jul-21,51301598643,-597.45,MIHOMECARE LTD (FENLAND PREMIER CARE),CARE ESTABLISHMENT,OP - East Cambs Locality - Cost of Care,East Cambs - O P Team - Care,Domiciliary Care
Cambridgeshire County Council,02-Jul-21,51301598643,-597.45,MIHOMECARE LTD (FENLAND PREMIER CARE),CARE ESTABLISHMENT,OP - East Cambs Locality - Cost of Care,East Cambs - O P Team - Care,Domiciliary Care
Cambridgeshire County Council,02-Jul-21,51301598643,-597.45,MIHOMECARE LTD (FENLAND PREMIER CARE),CARE ESTABLISHMENT,OP - East Cambs Locality - Cost of Care,East Cambs - O P Team - Care,Domiciliary Care
Cambridgeshire County Council,02-Jul-21,51301598643,-597.45,MIHOMECARE LTD (FENLAND PREMIER CARE),CARE ESTABLISHMENT,OP - East Cambs Locality - Cost of Care,East Cambs - O P Team - Care,Domiciliary Care
Cambridgeshire County Council,02-Jul-21,51301598643,-597.45,MIHOMECARE LTD (FENLAND PREMIER CARE),CARE ESTABLISHMENT,OP - East Cambs Locality - Cost of Care,East Cambs - O P Team - Care,Domiciliary Care
Cambridgeshire County Council,02-Jul-21,51301598643,-597.45,MIHOMECARE LTD (FENLAND PREMIER CARE),CARE ESTABLISHMENT,OP - East Cambs Locality - Cost of Care,East Cambs - O P Team - Care,Domiciliary Care
Cambridgeshire County Council,02-Jul-21,51301598643,-597.45,MIHOMECARE LTD (FENLAND PREMIER CARE),CARE ESTABLISHMENT,OP - East Cambs Locality - Cost of Care,East Cambs - O P Team - Care,Domiciliary Care
Cambridgeshire County Council,02-Jul-21,51301598643,-597.45,MIHOMECARE LTD (FENLAND PREMIER CARE),CARE ESTABLISHMENT,OP - East Cambs Locality - Cost of Care,East Cambs - O P Team - Care,Domiciliary Care
Cambridgeshire County Council,02-Jul-21,51301598643,-597.45,MIHOMECARE LTD (FENLAND PREMIER CARE),CARE ESTABLISHMENT,OP - East Cambs Locality - Cost of Care,East Cambs - O P Team - Care,Domiciliary Care
Cambridgeshire County Council,02-Jul-21,51301598643,-597.45,MIHOMECARE LTD (FENLAND PREMIER CARE),CARE ESTABLISHMENT,OP - East Cambs Locality - Cost of Care,East Cambs - O P Team - Care,Domiciliary Care
Cambridgeshire County Council,02-Jul-21,51301598643,-597.45,MIHOMECARE LTD (FENLAND PREMIER CARE),CARE ESTABLISHMENT,OP - East Cambs Locality - Cost of Care,East Cambs - O P Team - Care,Domiciliary Care
Cambridgeshire County Council,02-Jul-21,51301598643,-597.45,MIHOMECARE LTD (FENLAND PREMIER CARE),CARE ESTABLISHMENT,OP - East Cambs Locality - Cost of Care,East Cambs - O P Team - Care,Domiciliary Care
Cambridgeshire County Council,02-Jul-21,51301598643,-597.45,MIHOMECARE LTD (FENLAND PREMIER CARE),CARE ESTABLISHMENT,OP - East Cambs Locality - Cost of Care,East Cambs - O P Team - Care,Domiciliary Care
Cambridgeshire County Council,02-Jul-21,51301598643,-597.45,MIHOMECARE LTD (FENLAND PREMIER CARE),CARE ESTABLISHMENT,OP - East Cambs Locality - Cost of Care,East Cambs - O P Team - Care,Domiciliary Care
Cambridgeshire County Council,02-Jul-21,51301598643,-597.45,MIHOMECARE LTD (FENLAND PREMIER CARE),CARE ESTABLISHMENT,OP - East Cambs Locality - Cost of Care,East Cambs - O P Team - Care,Domiciliary Care
Cambridgeshire County Council,02-Jul-21,51301598643,-597.45,MIHOMECARE LTD (FENLAND PREMIER CARE),CARE ESTABLISHMENT,OP - East Cambs Locality - Cost of Care,East Cambs - O P Team - Care,Domiciliary Care
Cambridgeshire County Council,02-Jul-21,51301598643,-597.45,MIHOMECARE LTD (FENLAND PREMIER CARE),CARE ESTABLISHMENT,OP - East Cambs Locality - Cost of Care,East Cambs - O P Team - Care,Domiciliary Care
Cambridgeshire County Council,02-Jul-21,51301598643,-597.45,MIHOMECARE LTD (FENLAND PREMIER CARE),CARE ESTABLISHMENT,OP - East Cambs Locality - Cost of Care,East Cambs - O P Team - Care,Domiciliary Care
Cambridgeshire County Council,02-Jul-21,51301598643,-597.45,MIHOMECARE LTD (FENLAND PREMIER CARE),CARE ESTABLISHMENT,OP - East Cambs Locality - Cost of Care,East Cambs - O P Team - Care,Domiciliary Care
Cambridgeshire County Council,02-Jul-21,51301598639,-591.17,WESTMINSTER HOMECARE LIMITED,CARE ESTABLISHMENT,LD - South Locality - Cost of Care,LD - South Cambs - Care,Domiciliary Care
Cambridgeshire County Council,02-Jul-21,51301598639,-591.17,WESTMINSTER HOMECARE LIMITED,CARE ESTABLISHMENT,LD - South Locality - Cost of Care,LD - South Cambs - Care,Domiciliary Care
Cambridgeshire County Council,02-Jul-21,51301598639,-591.17,WESTMINSTER HOMECARE LIMITED,CARE ESTABLISHMENT,LD - South Locality - Cost of Care,LD - South Cambs - Care,Domiciliary Care
Cambridgeshire County Council,02-Jul-21,51301598639,-591.17,WESTMINSTER HOMECARE LIMITED,CARE ESTABLISHMENT,LD - South Locality - Cost of Care,LD - South Cambs - Care,Domiciliary Care
Cambridgeshire County Council,02-Jul-21,51301598639,-591.17,WESTMINSTER HOMECARE LIMITED,CARE ESTABLISHMENT,LD - South Locality - Cost of Care,LD - South Cambs - Care,Domiciliary Care
Cambridgeshire County Council,02-Jul-21,51301598639,-591.17,WESTMINSTER HOMECARE LIMITED,CARE ESTABLISHMENT,LD - South Locality - Cost of Care,LD - South Cambs - Care,Domiciliary Care
Cambridgeshire County Council,02-Jul-21,51301598639,-591.17,WESTMINSTER HOMECARE LIMITED,CARE ESTABLISHMENT,LD - South Locality - Cost of Care,LD - South Cambs - Care,Domiciliary Care
Cambridgeshire County Council,02-Jul-21,51301598639,-591.17,WESTMINSTER HOMECARE LIMITED,CARE ESTABLISHMENT,LD - South Locality - Cost of Care,LD - South Cambs - Care,Domiciliary Care
Cambridgeshire County Council,02-Jul-21,51301598639,-591.17,WESTMINSTER HOMECARE LIMITED,CARE ESTABLISHMENT,LD - South Locality - Cost of Care,LD - South Cambs - Care,Domiciliary Care
Cambridgeshire County Council,02-Jul-21,51301598639,-591.17,WESTMINSTER HOMECARE LIMITED,CARE ESTABLISHMENT,LD - South Locality - Cost of Care,LD - South Cambs - Care,Domiciliary Care
Cambridgeshire County Council,02-Jul-21,51301598639,-591.17,WESTMINSTER HOMECARE LIMITED,CARE ESTABLISHMENT,LD - South Locality - Cost of Care,LD - South Cambs - Care,Domiciliary Care
Cambridgeshire County Council,02-Jul-21,51301598639,-591.17,WESTMINSTER HOMECARE LIMITED,CARE ESTABLISHMENT,LD - South Locality - Cost of Care,LD - South Cambs - Care,Domiciliary Care
Cambridgeshire County Council,02-Jul-21,51301598639,-591.17,WESTMINSTER HOMECARE LIMITED,CARE ESTABLISHMENT,LD - South Locality - Cost of Care,LD - South Cambs - Care,Domiciliary Care
Cambridgeshire County Council,02-Jul-21,51301598639,-591.17,WESTMINSTER HOMECARE LIMITED,CARE ESTABLISHMENT,LD - South Locality - Cost of Care,LD - South Cambs - Care,Domiciliary Care
Cambridgeshire County Council,02-Jul-21,51301598639,-591.17,WESTMINSTER HOMECARE LIMITED,CARE ESTABLISHMENT,LD - South Locality - Cost of Care,LD - South Cambs - Care,Domiciliary Care
Cambridgeshire County Council,02-Jul-21,51301598639,-591.17,WESTMINSTER HOMECARE LIMITED,CARE ESTABLISHMENT,LD - South Locality - Cost of Care,LD - South Cambs - Care,Domiciliary Care
Cambridgeshire County Council,02-Jul-21,51301598639,-591.17,WESTMINSTER HOMECARE LIMITED,CARE ESTABLISHMENT,LD - South Locality - Cost of Care,LD - South Cambs - Care,Domiciliary Care
Cambridgeshire County Council,02-Jul-21,51301598639,-591.17,WESTMINSTER HOMECARE LIMITED,CARE ESTABLISHMENT,LD - South Locality - Cost of Care,LD - South Cambs - Care,Domiciliary Care
Cambridgeshire County Council,02-Jul-21,51301598639,-591.17,WESTMINSTER HOMECARE LIMITED,CARE ESTABLISHMENT,LD - South Locality - Cost of Care,LD - South Cambs - Care,Domiciliary Care
Cambridgeshire County Council,02-Jul-21,51301598639,-591.17,WESTMINSTER HOMECARE LIMITED,CARE ESTABLISHMENT,LD - South Locality - Cost of Care,LD - South Cambs - Care,Domiciliary Care
Cambridgeshire County Council,02-Jul-21,51301598639,-591.17,WESTMINSTER HOMECARE LIMITED,CARE ESTABLISHMENT,LD - South Locality - Cost of Care,LD - South Cambs - Care,Domiciliary Care
Cambridgeshire County Council,02-Jul-21,51301598639,-591.17,WESTMINSTER HOMECARE LIMITED,CARE ESTABLISHMENT,LD - South Locality - Cost of Care,LD - South Cambs - Care,Domiciliary Care
Cambridgeshire County Council,02-Jul-21,51301598644,-553.46,CAMB CARE LTD,CARE ESTABLISHMENT,OP - Hunts Locality - Cost of Care,Hunts OP Team - Care,Domiciliary Care
Cambridgeshire County Council,02-Jul-21,51301598644,-553.46,CAMB CARE LTD,CARE ESTABLISHMENT,OP - Hunts Locality - Cost of Care,Hunts OP Team - Care,Domiciliary Care
Cambridgeshire County Council,02-Jul-21,51301598644,-553.46,CAMB CARE LTD,CARE ESTABLISHMENT,OP - Hunts Locality - Cost of Care,Hunts OP Team - Care,Domiciliary Care
Cambridgeshire County Council,02-Jul-21,51301598644,-553.46,CAMB CARE LTD,CARE ESTABLISHMENT,OP - Hunts Locality - Cost of Care,Hunts OP Team - Care,Domiciliary Care
Cambridgeshire County Council,02-Jul-21,51301598644,-553.46,CAMB CARE LTD,CARE ESTABLISHMENT,OP - Hunts Locality - Cost of Care,Hunts OP Team - Care,Domiciliary Care
Cambridgeshire County Council,02-Jul-21,51301598644,-553.46,CAMB CARE LTD,CARE ESTABLISHMENT,OP - Hunts Locality - Cost of Care,Hunts OP Team - Care,Domiciliary Care
Cambridgeshire County Council,02-Jul-21,51301598644,-553.46,CAMB CARE LTD,CARE ESTABLISHMENT,OP - Hunts Locality - Cost of Care,Hunts OP Team - Care,Domiciliary Care
Cambridgeshire County Council,02-Jul-21,51301598644,-553.46,CAMB CARE LTD,CARE ESTABLISHMENT,OP - Hunts Locality - Cost of Care,Hunts OP Team - Care,Domiciliary Care
Cambridgeshire County Council,02-Jul-21,51301598644,-553.46,CAMB CARE LTD,CARE ESTABLISHMENT,OP - Hunts Locality - Cost of Care,Hunts OP Team - Care,Domiciliary Care
Cambridgeshire County Council,02-Jul-21,51301598644,-553.46,CAMB CARE LTD,CARE ESTABLISHMENT,OP - Hunts Locality - Cost of Care,Hunts OP Team - Care,Domiciliary Care
Cambridgeshire County Council,02-Jul-21,51301598644,-551.93,CAMB CARE LTD,CARE ESTABLISHMENT,OP - Hunts Locality - Cost of Care,Hunts OP Team - Care,Domiciliary Care
Cambridgeshire County Council,02-Jul-21,51301598644,-548.10,CAMB CARE LTD,CARE ESTABLISHMENT,OP - Hunts Locality - Cost of Care,Hunts OP Team - Care,Domiciliary Care
Cambridgeshire County Council,02-Jul-21,51301598644,-548.10,CAMB CARE LTD,CARE ESTABLISHMENT,OP - Hunts Locality - Cost of Care,Hunts OP Team - Care,Domiciliary Care
Cambridgeshire County Council,02-Jul-21,51301598644,-548.10,CAMB CARE LTD,CARE ESTABLISHMENT,OP - Hunts Locality - Cost of Care,Hunts OP Team - Care,Domiciliary Care
Cambridgeshire County Council,02-Jul-21,51301598644,-548.10,CAMB CARE LTD,CARE ESTABLISHMENT,OP - Hunts Locality - Cost of Care,Hunts OP Team - Care,Domiciliary Care
Cambridgeshire County Council,02-Jul-21,51301598644,-548.10,CAMB CARE LTD,CARE ESTABLISHMENT,OP - Hunts Locality - Cost of Care,Hunts OP Team - Care,Domiciliary Care
Cambridgeshire County Council,02-Jul-21,51301598644,-548.10,CAMB CARE LTD,CARE ESTABLISHMENT,OP - Hunts Locality - Cost of Care,Hunts OP Team - Care,Domiciliary Care
Cambridgeshire County Council,02-Jul-21,51301598644,-548.10,CAMB CARE LTD,CARE ESTABLISHMENT,OP - Hunts Locality - Cost of Care,Hunts OP Team - Care,Domiciliary Care
Cambridgeshire County Council,02-Jul-21,51301598644,-548.10,CAMB CARE LTD,CARE ESTABLISHMENT,OP - Hunts Locality - Cost of Care,Hunts OP Team - Care,Domiciliary Care
Cambridgeshire County Council,02-Jul-21,51301598644,-548.10,CAMB CARE LTD,CARE ESTABLISHMENT,OP - Hunts Locality - Cost of Care,Hunts OP Team - Care,Domiciliary Care
Cambridgeshire County Council,02-Jul-21,51301598644,-548.10,CAMB CARE LTD,CARE ESTABLISHMENT,OP - Hunts Locality - Cost of Care,Hunts OP Team - Care,Domiciliary Care
Cambridgeshire County Council,02-Jul-21,51301598644,-548.10,CAMB CARE LTD,CARE ESTABLISHMENT,OP - Hunts Locality - Cost of Care,Hunts OP Team - Care,Domiciliary Care
Cambridgeshire County Council,02-Jul-21,51301598644,-548.10,CAMB CARE LTD,CARE ESTABLISHMENT,OP - Hunts Locality - Cost of Care,Hunts OP Team - Care,Domiciliary Care
Cambridgeshire County Council,02-Jul-21,51301598644,-548.10,CAMB CARE LTD,CARE ESTABLISHMENT,OP - Hunts Locality - Cost of Care,Hunts OP Team - Care,Domiciliary Care
Cambridgeshire County Council,02-Jul-21,51301598644,-548.10,CAMB CARE LTD,CARE ESTABLISHMENT,OP - Hunts Locality - Cost of Care,Hunts OP Team - Care,Domiciliary Care
Cambridgeshire County Council,02-Jul-21,51301598644,-548.10,CAMB CARE LTD,CARE ESTABLISHMENT,OP - Hunts Locality - Cost of Care,Hunts OP Team - Care,Domiciliary Care
Cambridgeshire County Council,02-Jul-21,51301598644,-548.10,CAMB CARE LTD,CARE ESTABLISHMENT,OP - Hunts Locality - Cost of Care,Hunts OP Team - Care,Domiciliary Care
Cambridgeshire County Council,02-Jul-21,51301598644,-548.10,CAMB CARE LTD,CARE ESTABLISHMENT,OP - Hunts Locality - Cost of Care,Hunts OP Team - Care,Domiciliary Care
Cambridgeshire County Council,02-Jul-21,51301598644,-548.10,CAMB CARE LTD,CARE ESTABLISHMENT,OP - Hunts Locality - Cost of Care,Hunts OP Team - Care,Domiciliary Care
Cambridgeshire County Council,02-Jul-21,51301598644,-548.10,CAMB CARE LTD,CARE ESTABLISHMENT,OP - Hunts Locality - Cost of Care,Hunts OP Team - Care,Domiciliary Care
Cambridgeshire County Council,02-Jul-21,51301598644,-548.10,CAMB CARE LTD,CARE ESTABLISHMENT,OP - Hunts Locality - Cost of Care,Hunts OP Team - Care,Domiciliary Care
Cambridgeshire County Council,02-Jul-21,51301598644,-548.10,CAMB CARE LTD,CARE ESTABLISHMENT,OP - Hunts Locality - Cost of Care,Hunts OP Team - Care,Domiciliary Care
Cambridgeshire County Council,02-Jul-21,51301598644,-548.10,CAMB CARE LTD,CARE ESTABLISHMENT,OP - Hunts Locality - Cost of Care,Hunts OP Team - Care,Domiciliary Care
Cambridgeshire County Council,02-Jul-21,51301598644,-548.10,CAMB CARE LTD,CARE ESTABLISHMENT,OP - Hunts Locality - Cost of Care,Hunts OP Team - Care,Domiciliary Care
Cambridgeshire County Council,02-Jul-21,51301598644,-548.10,CAMB CARE LTD,CARE ESTABLISHMENT,OP - Hunts Locality - Cost of Care,Hunts OP Team - Care,Domiciliary Care
Cambridgeshire County Council,02-Jul-21,51301598644,-548.10,CAMB CARE LTD,CARE ESTABLISHMENT,OP - Hunts Locality - Cost of Care,Hunts OP Team - Care,Domiciliary Care
Cambridgeshire County Council,02-Jul-21,51301598644,-548.10,CAMB CARE LTD,CARE ESTABLISHMENT,OP - Hunts Locality - Cost of Care,Hunts OP Team - Care,Domiciliary Care
Cambridgeshire County Council,02-Jul-21,51301598644,-548.10,CAMB CARE LTD,CARE ESTABLISHMENT,OP - Hunts Locality - Cost of Care,Hunts OP Team - Care,Domiciliary Care
Cambridgeshire County Council,02-Jul-21,51301598644,-548.10,CAMB CARE LTD,CARE ESTABLISHMENT,OP - Hunts Locality - Cost of Care,Hunts OP Team - Care,Domiciliary Care
Cambridgeshire County Council,02-Jul-21,51301598644,-548.10,CAMB CARE LTD,CARE ESTABLISHMENT,OP - Hunts Locality - Cost of Care,Hunts OP Team - Care,Domiciliary Care
Cambridgeshire County Council,02-Jul-21,51301598644,-548.10,CAMB CARE LTD,CARE ESTABLISHMENT,OP - Hunts Locality - Cost of Care,Hunts OP Team - Care,Domiciliary Care
Cambridgeshire County Council,02-Jul-21,51301598644,-548.10,CAMB CARE LTD,CARE ESTABLISHMENT,OP - Hunts Locality - Cost of Care,Hunts OP Team - Care,Domiciliary Care
Cambridgeshire County Council,02-Jul-21,51301598644,-548.10,CAMB CARE LTD,CARE ESTABLISHMENT,OP - Hunts Locality - Cost of Care,Hunts OP Team - Care,Domiciliary Care
Cambridgeshire County Council,02-Jul-21,51301598644,-548.10,CAMB CARE LTD,CARE ESTABLISHMENT,OP - Hunts Locality - Cost of Care,Hunts OP Team - Care,Domiciliary Care
Cambridgeshire County Council,02-Jul-21,51301598644,-548.10,CAMB CARE LTD,CARE ESTABLISHMENT,OP - Hunts Locality - Cost of Care,Hunts OP Team - Care,Domiciliary Care
Cambridgeshire County Council,02-Jul-21,51301598644,-540.68,CAMB CARE LTD,CARE ESTABLISHMENT,OP - Hunts Locality - Cost of Care,Hunts OP Team - Care,Domiciliary Care
Cambridgeshire County Council,02-Jul-21,51301598644,-530.78,CAMB CARE LTD,CARE ESTABLISHMENT,OP - Hunts Locality - Cost of Care,Hunts OP Team - Care,Domiciliary Care
Cambridgeshire County Council,02-Jul-21,51301598644,-530.78,CAMB CARE LTD,CARE ESTABLISHMENT,OP - Hunts Locality - Cost of Care,Hunts OP Team - Care,Domiciliary Care
Cambridgeshire County Council,02-Jul-21,51301598644,-530.78,CAMB CARE LTD,CARE ESTABLISHMENT,OP - Hunts Locality - Cost of Care,Hunts OP Team - Care,Domiciliary Care
Cambridgeshire County Council,02-Jul-21,51301598644,-530.78,CAMB CARE LTD,CARE ESTABLISHMENT,OP - Hunts Locality - Cost of Care,Hunts OP Team - Care,Domiciliary Care
Cambridgeshire County Council,02-Jul-21,51301598644,-530.78,CAMB CARE LTD,CARE ESTABLISHMENT,OP - Hunts Locality - Cost of Care,Hunts OP Team - Care,Domiciliary Care
Cambridgeshire County Council,02-Jul-21,51301598644,-530.78,CAMB CARE LTD,CARE ESTABLISHMENT,OP - Hunts Locality - Cost of Care,Hunts OP Team - Care,Domiciliary Care
Cambridgeshire County Council,02-Jul-21,51301598644,-530.78,CAMB CARE LTD,CARE ESTABLISHMENT,OP - Hunts Locality - Cost of Care,Hunts OP Team - Care,Domiciliary Care
Cambridgeshire County Council,02-Jul-21,51301598644,-530.78,CAMB CARE LTD,CARE ESTABLISHMENT,OP - Hunts Locality - Cost of Care,Hunts OP Team - Care,Domiciliary Care
Cambridgeshire County Council,02-Jul-21,51301598644,-530.78,CAMB CARE LTD,CARE ESTABLISHMENT,OP - Hunts Locality - Cost of Care,Hunts OP Team - Care,Domiciliary Care
Cambridgeshire County Council,02-Jul-21,51301598644,-530.78,CAMB CARE LTD,CARE ESTABLISHMENT,OP - Hunts Locality - Cost of Care,Hunts OP Team - Care,Domiciliary Care
Cambridgeshire County Council,02-Jul-21,51301598644,-530.78,CAMB CARE LTD,CARE ESTABLISHMENT,OP - Hunts Locality - Cost of Care,Hunts OP Team - Care,Domiciliary Care
Cambridgeshire County Council,02-Jul-21,51301598644,-530.78,CAMB CARE LTD,CARE ESTABLISHMENT,OP - Hunts Locality - Cost of Care,Hunts OP Team - Care,Domiciliary Care
Cambridgeshire County Council,02-Jul-21,51301598644,-530.78,CAMB CARE LTD,CARE ESTABLISHMENT,OP - Hunts Locality - Cost of Care,Hunts OP Team - Care,Domiciliary Care
Cambridgeshire County Council,02-Jul-21,51301598644,-530.78,CAMB CARE LTD,CARE ESTABLISHMENT,OP - Hunts Locality - Cost of Care,Hunts OP Team - Care,Domiciliary Care
Cambridgeshire County Council,02-Jul-21,51301598644,-530.78,CAMB CARE LTD,CARE ESTABLISHMENT,OP - Hunts Locality - Cost of Care,Hunts OP Team - Care,Domiciliary Care
Cambridgeshire County Council,02-Jul-21,51301598644,-530.78,CAMB CARE LTD,CARE ESTABLISHMENT,OP - Hunts Locality - Cost of Care,Hunts OP Team - Care,Domiciliary Care
Cambridgeshire County Council,02-Jul-21,51301598644,-530.78,CAMB CARE LTD,CARE ESTABLISHMENT,OP - Hunts Locality - Cost of Care,Hunts OP Team - Care,Domiciliary Care
Cambridgeshire County Council,02-Jul-21,51301598644,-530.78,CAMB CARE LTD,CARE ESTABLISHMENT,OP - Hunts Locality - Cost of Care,Hunts OP Team - Care,Domiciliary Care
Cambridgeshire County Council,02-Jul-21,51301598644,-530.78,CAMB CARE LTD,CARE ESTABLISHMENT,OP - Hunts Locality - Cost of Care,Hunts OP Team - Care,Domiciliary Care
Cambridgeshire County Council,02-Jul-21,51301598644,-530.78,CAMB CARE LTD,CARE ESTABLISHMENT,OP - Hunts Locality - Cost of Care,Hunts OP Team - Care,Domiciliary Care
Cambridgeshire County Council,02-Jul-21,51301598644,-530.78,CAMB CARE LTD,CARE ESTABLISHMENT,OP - Hunts Locality - Cost of Care,Hunts OP Team - Care,Domiciliary Care
Cambridgeshire County Council,02-Jul-21,51301598644,-530.78,CAMB CARE LTD,CARE ESTABLISHMENT,OP - Hunts Locality - Cost of Care,Hunts OP Team - Care,Domiciliary Care
Cambridgeshire County Council,02-Jul-21,51301598644,-530.78,CAMB CARE LTD,CARE ESTABLISHMENT,OP - Hunts Locality - Cost of Care,Hunts OP Team - Care,Domiciliary Care
Cambridgeshire County Council,02-Jul-21,51301598644,-530.78,CAMB CARE LTD,CARE ESTABLISHMENT,OP - Hunts Locality - Cost of Care,Hunts OP Team - Care,Domiciliary Care
Cambridgeshire County Council,02-Jul-21,51301598644,-530.78,CAMB CARE LTD,CARE ESTABLISHMENT,OP - Hunts Locality - Cost of Care,Hunts OP Team - Care,Domiciliary Care
Cambridgeshire County Council,02-Jul-21,51301598644,-530.78,CAMB CARE LTD,CARE ESTABLISHMENT,OP - Hunts Locality - Cost of Care,Hunts OP Team - Care,Domiciliary Care
Cambridgeshire County Council,02-Jul-21,51301598644,-530.78,CAMB CARE LTD,CARE ESTABLISHMENT,OP - Hunts Locality - Cost of Care,Hunts OP Team - Care,Domiciliary Care
Cambridgeshire County Council,02-Jul-21,51301598644,-530.78,CAMB CARE LTD,CARE ESTABLISHMENT,OP - Hunts Locality - Cost of Care,Hunts OP Team - Care,Domiciliary Care
Cambridgeshire County Council,02-Jul-21,51301598644,-530.78,CAMB CARE LTD,CARE ESTABLISHMENT,OP - Hunts Locality - Cost of Care,Hunts OP Team - Care,Domiciliary Care
Cambridgeshire County Council,02-Jul-21,51301598644,-530.78,CAMB CARE LTD,CARE ESTABLISHMENT,OP - Hunts Locality - Cost of Care,Hunts OP Team - Care,Domiciliary Care
Cambridgeshire County Council,02-Jul-21,51301598661,-528.60,MIHOMECARE LTD (FENLAND PREMIER CARE),CARE ESTABLISHMENT,OP - East Cambs Locality - Cost of Care,East Cambs - O P Team - Care,Domiciliary Care
Cambridgeshire County Council,02-Jul-21,51301598648,-504.29,CAMBRIDGESHIRE HOMECARE (J&M CARE LTD),CARE ESTABLISHMENT,OPMH - Hunts & Fens,Older People Mental Health Fenland,Domiciliary Care
Cambridgeshire County Council,02-Jul-21,51301598627,503.44,CARDINAL GATE 55,CARE ESTABLISHMENT,AMH - Hunts & Fens,Hunts Mental Health Team,Supported Living
Cambridgeshire County Council,02-Jul-21,51301598411,504.00,IMPERIAL COLLEGE PROJECTS LIMITED,TRADE SUPPLIER,Coroners,Coroners General,Testing
Cambridgeshire County Council,02-Jul-21,51301598648,509.34,CAMBRIDGESHIRE HOMECARE (J&M CARE LTD),CARE ESTABLISHMENT,OPMH - Hunts & Fens,Older People Mental Health Fenland,Domiciliary Care
Cambridgeshire County Council,02-Jul-21,51301598628,522.10,Olive Care Solutions (Supported Living a/c only),CARE ESTABLISHMENT,LD - South Locality - Cost of Care,LD - South Cambs - Special Needs,Supported Living
Cambridgeshire County Council,02-Jul-21,51301598661,528.60,MIHOMECARE LTD (FENLAND PREMIER CARE),CARE ESTABLISHMENT,OP - East Cambs Locality - Cost of Care,East Cambs - O P Team - Care,Domiciliary Care
Cambridgeshire County Council,02-Jul-21,51301598644,530.78,CAMB CARE LTD,CARE ESTABLISHMENT,OP - Hunts Locality - Cost of Care,Hunts OP Team - Care,Domiciliary Care
Cambridgeshire County Council,02-Jul-21,51301598644,530.78,CAMB CARE LTD,CARE ESTABLISHMENT,OP - Hunts Locality - Cost of Care,Hunts OP Team - Care,Domiciliary Care
Cambridgeshire County Council,02-Jul-21,51301598644,530.78,CAMB CARE LTD,CARE ESTABLISHMENT,OP - Hunts Locality - Cost of Care,Hunts OP Team - Care,Domiciliary Care
Cambridgeshire County Council,02-Jul-21,51301598644,530.78,CAMB CARE LTD,CARE ESTABLISHMENT,OP - Hunts Locality - Cost of Care,Hunts OP Team - Care,Domiciliary Care
Cambridgeshire County Council,02-Jul-21,51301598644,530.78,CAMB CARE LTD,CARE ESTABLISHMENT,OP - Hunts Locality - Cost of Care,Hunts OP Team - Care,Domiciliary Care
Cambridgeshire County Council,02-Jul-21,51301598644,530.78,CAMB CARE LTD,CARE ESTABLISHMENT,OP - Hunts Locality - Cost of Care,Hunts OP Team - Care,Domiciliary Care
Cambridgeshire County Council,02-Jul-21,51301598644,530.78,CAMB CARE LTD,CARE ESTABLISHMENT,OP - Hunts Locality - Cost of Care,Hunts OP Team - Care,Domiciliary Care
Cambridgeshire County Council,02-Jul-21,51301598644,530.78,CAMB CARE LTD,CARE ESTABLISHMENT,OP - Hunts Locality - Cost of Care,Hunts OP Team - Care,Domiciliary Care
Cambridgeshire County Council,02-Jul-21,51301598644,530.78,CAMB CARE LTD,CARE ESTABLISHMENT,OP - Hunts Locality - Cost of Care,Hunts OP Team - Care,Domiciliary Care
Cambridgeshire County Council,02-Jul-21,51301598644,530.78,CAMB CARE LTD,CARE ESTABLISHMENT,OP - Hunts Locality - Cost of Care,Hunts OP Team - Care,Domiciliary Care
Cambridgeshire County Council,02-Jul-21,51301598644,530.78,CAMB CARE LTD,CARE ESTABLISHMENT,OP - Hunts Locality - Cost of Care,Hunts OP Team - Care,Domiciliary Care
Cambridgeshire County Council,02-Jul-21,51301598644,530.78,CAMB CARE LTD,CARE ESTABLISHMENT,OP - Hunts Locality - Cost of Care,Hunts OP Team - Care,Domiciliary Care
Cambridgeshire County Council,02-Jul-21,51301598644,530.78,CAMB CARE LTD,CARE ESTABLISHMENT,OP - Hunts Locality - Cost of Care,Hunts OP Team - Care,Domiciliary Care
Cambridgeshire County Council,02-Jul-21,51301598644,530.78,CAMB CARE LTD,CARE ESTABLISHMENT,OP - Hunts Locality - Cost of Care,Hunts OP Team - Care,Domiciliary Care
Cambridgeshire County Council,02-Jul-21,51301598644,530.78,CAMB CARE LTD,CARE ESTABLISHMENT,OP - Hunts Locality - Cost of Care,Hunts OP Team - Care,Domiciliary Care
Cambridgeshire County Council,02-Jul-21,51301598644,530.78,CAMB CARE LTD,CARE ESTABLISHMENT,OP - Hunts Locality - Cost of Care,Hunts OP Team - Care,Domiciliary Care
Cambridgeshire County Council,02-Jul-21,51301598644,530.78,CAMB CARE LTD,CARE ESTABLISHMENT,OP - Hunts Locality - Cost of Care,Hunts OP Team - Care,Domiciliary Care
Cambridgeshire County Council,02-Jul-21,51301598644,530.78,CAMB CARE LTD,CARE ESTABLISHMENT,OP - Hunts Locality - Cost of Care,Hunts OP Team - Care,Domiciliary Care
Cambridgeshire County Council,02-Jul-21,51301598644,530.78,CAMB CARE LTD,CARE ESTABLISHMENT,OP - Hunts Locality - Cost of Care,Hunts OP Team - Care,Domiciliary Care
Cambridgeshire County Council,02-Jul-21,51301598644,530.78,CAMB CARE LTD,CARE ESTABLISHMENT,OP - Hunts Locality - Cost of Care,Hunts OP Team - Care,Domiciliary Care
Cambridgeshire County Council,02-Jul-21,51301598644,530.78,CAMB CARE LTD,CARE ESTABLISHMENT,OP - Hunts Locality - Cost of Care,Hunts OP Team - Care,Domiciliary Care
Cambridgeshire County Council,02-Jul-21,51301598644,530.78,CAMB CARE LTD,CARE ESTABLISHMENT,OP - Hunts Locality - Cost of Care,Hunts OP Team - Care,Domiciliary Care
Cambridgeshire County Council,02-Jul-21,51301598644,530.78,CAMB CARE LTD,CARE ESTABLISHMENT,OP - Hunts Locality - Cost of Care,Hunts OP Team - Care,Domiciliary Care
Cambridgeshire County Council,02-Jul-21,51301598644,530.78,CAMB CARE LTD,CARE ESTABLISHMENT,OP - Hunts Locality - Cost of Care,Hunts OP Team - Care,Domiciliary Care
Cambridgeshire County Council,02-Jul-21,51301598644,530.78,CAMB CARE LTD,CARE ESTABLISHMENT,OP - Hunts Locality - Cost of Care,Hunts OP Team - Care,Domiciliary Care
Cambridgeshire County Council,02-Jul-21,51301598644,530.78,CAMB CARE LTD,CARE ESTABLISHMENT,OP - Hunts Locality - Cost of Care,Hunts OP Team - Care,Domiciliary Care
Cambridgeshire County Council,02-Jul-21,51301598644,530.78,CAMB CARE LTD,CARE ESTABLISHMENT,OP - Hunts Locality - Cost of Care,Hunts OP Team - Care,Domiciliary Care
Cambridgeshire County Council,02-Jul-21,51301598644,530.78,CAMB CARE LTD,CARE ESTABLISHMENT,OP - Hunts Locality - Cost of Care,Hunts OP Team - Care,Domiciliary Care
Cambridgeshire County Council,02-Jul-21,51301598644,530.78,CAMB CARE LTD,CARE ESTABLISHMENT,OP - Hunts Locality - Cost of Care,Hunts OP Team - Care,Domiciliary Care
Cambridgeshire County Council,02-Jul-21,51301598644,530.78,CAMB CARE LTD,CARE ESTABLISHMENT,OP - Hunts Locality - Cost of Care,Hunts OP Team - Care,Domiciliary Care
Cambridgeshire County Council,02-Jul-21,51301598662,534.00,MIHOMECARE LTD (THE CARE AGENCY),CARE ESTABLISHMENT,OP - East Cambs Locality - Cost of Care,East Cambs - O P Team - Care,Domiciliary Care
Cambridgeshire County Council,02-Jul-21,51301598644,540.68,CAMB CARE LTD,CARE ESTABLISHMENT,OP - Hunts Locality - Cost of Care,Hunts OP Team - Care,Domiciliary Care
Cambridgeshire County Council,02-Jul-21,51301598644,548.10,CAMB CARE LTD,CARE ESTABLISHMENT,OP - Hunts Locality - Cost of Care,Hunts OP Team - Care,Domiciliary Care
Cambridgeshire County Council,02-Jul-21,51301598644,548.10,CAMB CARE LTD,CARE ESTABLISHMENT,OP - Hunts Locality - Cost of Care,Hunts OP Team - Care,Domiciliary Care
Cambridgeshire County Council,02-Jul-21,51301598644,548.10,CAMB CARE LTD,CARE ESTABLISHMENT,OP - Hunts Locality - Cost of Care,Hunts OP Team - Care,Domiciliary Care
Cambridgeshire County Council,02-Jul-21,51301598644,548.10,CAMB CARE LTD,CARE ESTABLISHMENT,OP - Hunts Locality - Cost of Care,Hunts OP Team - Care,Domiciliary Care
Cambridgeshire County Council,02-Jul-21,51301598644,548.10,CAMB CARE LTD,CARE ESTABLISHMENT,OP - Hunts Locality - Cost of Care,Hunts OP Team - Care,Domiciliary Care
Cambridgeshire County Council,02-Jul-21,51301598644,548.10,CAMB CARE LTD,CARE ESTABLISHMENT,OP - Hunts Locality - Cost of Care,Hunts OP Team - Care,Domiciliary Care
Cambridgeshire County Council,02-Jul-21,51301598644,548.10,CAMB CARE LTD,CARE ESTABLISHMENT,OP - Hunts Locality - Cost of Care,Hunts OP Team - Care,Domiciliary Care
Cambridgeshire County Council,02-Jul-21,51301598644,548.10,CAMB CARE LTD,CARE ESTABLISHMENT,OP - Hunts Locality - Cost of Care,Hunts OP Team - Care,Domiciliary Care
Cambridgeshire County Council,02-Jul-21,51301598644,548.10,CAMB CARE LTD,CARE ESTABLISHMENT,OP - Hunts Locality - Cost of Care,Hunts OP Team - Care,Domiciliary Care
Cambridgeshire County Council,02-Jul-21,51301598644,548.10,CAMB CARE LTD,CARE ESTABLISHMENT,OP - Hunts Locality - Cost of Care,Hunts OP Team - Care,Domiciliary Care
Cambridgeshire County Council,02-Jul-21,51301598644,548.10,CAMB CARE LTD,CARE ESTABLISHMENT,OP - Hunts Locality - Cost of Care,Hunts OP Team - Care,Domiciliary Care
Cambridgeshire County Council,02-Jul-21,51301598644,548.10,CAMB CARE LTD,CARE ESTABLISHMENT,OP - Hunts Locality - Cost of Care,Hunts OP Team - Care,Domiciliary Care
Cambridgeshire County Council,02-Jul-21,51301598644,548.10,CAMB CARE LTD,CARE ESTABLISHMENT,OP - Hunts Locality - Cost of Care,Hunts OP Team - Care,Domiciliary Care
Cambridgeshire County Council,02-Jul-21,51301598644,548.10,CAMB CARE LTD,CARE ESTABLISHMENT,OP - Hunts Locality - Cost of Care,Hunts OP Team - Care,Domiciliary Care
Cambridgeshire County Council,02-Jul-21,51301598644,548.10,CAMB CARE LTD,CARE ESTABLISHMENT,OP - Hunts Locality - Cost of Care,Hunts OP Team - Care,Domiciliary Care
Cambridgeshire County Council,02-Jul-21,51301598644,548.10,CAMB CARE LTD,CARE ESTABLISHMENT,OP - Hunts Locality - Cost of Care,Hunts OP Team - Care,Domiciliary Care
Cambridgeshire County Council,02-Jul-21,51301598644,548.10,CAMB CARE LTD,CARE ESTABLISHMENT,OP - Hunts Locality - Cost of Care,Hunts OP Team - Care,Domiciliary Care
Cambridgeshire County Council,02-Jul-21,51301598644,548.10,CAMB CARE LTD,CARE ESTABLISHMENT,OP - Hunts Locality - Cost of Care,Hunts OP Team - Care,Domiciliary Care
Cambridgeshire County Council,02-Jul-21,51301598644,548.10,CAMB CARE LTD,CARE ESTABLISHMENT,OP - Hunts Locality - Cost of Care,Hunts OP Team - Care,Domiciliary Care
Cambridgeshire County Council,02-Jul-21,51301598644,548.10,CAMB CARE LTD,CARE ESTABLISHMENT,OP - Hunts Locality - Cost of Care,Hunts OP Team - Care,Domiciliary Care
Cambridgeshire County Council,02-Jul-21,51301598644,548.10,CAMB CARE LTD,CARE ESTABLISHMENT,OP - Hunts Locality - Cost of Care,Hunts OP Team - Care,Domiciliary Care
Cambridgeshire County Council,02-Jul-21,51301598644,548.10,CAMB CARE LTD,CARE ESTABLISHMENT,OP - Hunts Locality - Cost of Care,Hunts OP Team - Care,Domiciliary Care
Cambridgeshire County Council,02-Jul-21,51301598644,548.10,CAMB CARE LTD,CARE ESTABLISHMENT,OP - Hunts Locality - Cost of Care,Hunts OP Team - Care,Domiciliary Care
Cambridgeshire County Council,02-Jul-21,51301598644,548.10,CAMB CARE LTD,CARE ESTABLISHMENT,OP - Hunts Locality - Cost of Care,Hunts OP Team - Care,Domiciliary Care
Cambridgeshire County Council,02-Jul-21,51301598644,548.10,CAMB CARE LTD,CARE ESTABLISHMENT,OP - Hunts Locality - Cost of Care,Hunts OP Team - Care,Domiciliary Care
Cambridgeshire County Council,02-Jul-21,51301598644,548.10,CAMB CARE LTD,CARE ESTABLISHMENT,OP - Hunts Locality - Cost of Care,Hunts OP Team - Care,Domiciliary Care
Cambridgeshire County Council,02-Jul-21,51301598644,548.10,CAMB CARE LTD,CARE ESTABLISHMENT,OP - Hunts Locality - Cost of Care,Hunts OP Team - Care,Domiciliary Care
Cambridgeshire County Council,02-Jul-21,51301598644,548.10,CAMB CARE LTD,CARE ESTABLISHMENT,OP - Hunts Locality - Cost of Care,Hunts OP Team - Care,Domiciliary Care
Cambridgeshire County Council,02-Jul-21,51301598644,548.10,CAMB CARE LTD,CARE ESTABLISHMENT,OP - Hunts Locality - Cost of Care,Hunts OP Team - Care,Domiciliary Care
Cambridgeshire County Council,02-Jul-21,51301598644,548.10,CAMB CARE LTD,CARE ESTABLISHMENT,OP - Hunts Locality - Cost of Care,Hunts OP Team - Care,Domiciliary Care
Cambridgeshire County Council,02-Jul-21,51301598644,548.10,CAMB CARE LTD,CARE ESTABLISHMENT,OP - Hunts Locality - Cost of Care,Hunts OP Team - Care,Domiciliary Care
Cambridgeshire County Council,02-Jul-21,51301598644,548.10,CAMB CARE LTD,CARE ESTABLISHMENT,OP - Hunts Locality - Cost of Care,Hunts OP Team - Care,Domiciliary Care
Cambridgeshire County Council,02-Jul-21,51301598644,548.10,CAMB CARE LTD,CARE ESTABLISHMENT,OP - Hunts Locality - Cost of Care,Hunts OP Team - Care,Domiciliary Care
Cambridgeshire County Council,02-Jul-21,51301598644,548.10,CAMB CARE LTD,CARE ESTABLISHMENT,OP - Hunts Locality - Cost of Care,Hunts OP Team - Care,Domiciliary Care
Cambridgeshire County Council,02-Jul-21,51301598644,551.93,CAMB CARE LTD,CARE ESTABLISHMENT,OP - Hunts Locality - Cost of Care,Hunts OP Team - Care,Domiciliary Care
Cambridgeshire County Council,02-Jul-21,51301598644,553.46,CAMB CARE LTD,CARE ESTABLISHMENT,OP - Hunts Locality - Cost of Care,Hunts OP Team - Care,Domiciliary Care
Cambridgeshire County Council,02-Jul-21,51301598644,553.46,CAMB CARE LTD,CARE ESTABLISHMENT,OP - Hunts Locality - Cost of Care,Hunts OP Team - Care,Domiciliary Care
Cambridgeshire County Council,02-Jul-21,51301598644,553.46,CAMB CARE LTD,CARE ESTABLISHMENT,OP - Hunts Locality - Cost of Care,Hunts OP Team - Care,Domiciliary Care
Cambridgeshire County Council,02-Jul-21,51301598644,553.46,CAMB CARE LTD,CARE ESTABLISHMENT,OP - Hunts Locality - Cost of Care,Hunts OP Team - Care,Domiciliary Care
Cambridgeshire County Council,02-Jul-21,51301598644,553.46,CAMB CARE LTD,CARE ESTABLISHMENT,OP - Hunts Locality - Cost of Care,Hunts OP Team - Care,Domiciliary Care
Cambridgeshire County Council,02-Jul-21,51301598644,553.46,CAMB CARE LTD,CARE ESTABLISHMENT,OP - Hunts Locality - Cost of Care,Hunts OP Team - Care,Domiciliary Care
Cambridgeshire County Council,02-Jul-21,51301598644,553.46,CAMB CARE LTD,CARE ESTABLISHMENT,OP - Hunts Locality - Cost of Care,Hunts OP Team - Care,Domiciliary Care
Cambridgeshire County Council,02-Jul-21,51301598644,553.46,CAMB CARE LTD,CARE ESTABLISHMENT,OP - Hunts Locality - Cost of Care,Hunts OP Team - Care,Domiciliary Care
Cambridgeshire County Council,02-Jul-21,51301598644,553.46,CAMB CARE LTD,CARE ESTABLISHMENT,OP - Hunts Locality - Cost of Care,Hunts OP Team - Care,Domiciliary Care
Cambridgeshire County Council,02-Jul-21,51301598644,553.46,CAMB CARE LTD,CARE ESTABLISHMENT,OP - Hunts Locality - Cost of Care,Hunts OP Team - Care,Domiciliary Care
Cambridgeshire County Council,02-Jul-21,51301598568,558.00,RANDSTAD PUBLIC SERVICES (EDU),EDUCATION,Out of School Tuition,Out of School Provision - Education and Settings,Independent School Placements
Cambridgeshire County Council,02-Jul-21,51301584936,576.00,Chiptech International ltd,TRADE SUPPLIER,Assistive Telecare & Technology,Cambs Lifeline Project,Specialist Equipment For Service Delivery
Cambridgeshire County Council,02-Jul-21,51301598639,579.77,WESTMINSTER HOMECARE LIMITED,CARE ESTABLISHMENT,LD - South Locality - Cost of Care,LD - South Cambs - Care,Domiciliary Care
Cambridgeshire County Council,02-Jul-21,51301598410,580.00,IMPERIAL COLLEGE PROJECTS LIMITED,TRADE SUPPLIER,Coroners,Coroners General,Testing
Cambridgeshire County Council,02-Jul-21,51301598639,591.17,WESTMINSTER HOMECARE LIMITED,CARE ESTABLISHMENT,LD - South Locality - Cost of Care,LD - South Cambs - Care,Domiciliary Care
Cambridgeshire County Council,02-Jul-21,51301598639,591.17,WESTMINSTER HOMECARE LIMITED,CARE ESTABLISHMENT,LD - South Locality - Cost of Care,LD - South Cambs - Care,Domiciliary Care
Cambridgeshire County Council,02-Jul-21,51301598639,591.17,WESTMINSTER HOMECARE LIMITED,CARE ESTABLISHMENT,LD - South Locality - Cost of Care,LD - South Cambs - Care,Domiciliary Care
Cambridgeshire County Council,02-Jul-21,51301598639,591.17,WESTMINSTER HOMECARE LIMITED,CARE ESTABLISHMENT,LD - South Locality - Cost of Care,LD - South Cambs - Care,Domiciliary Care
Cambridgeshire County Council,02-Jul-21,51301598639,591.17,WESTMINSTER HOMECARE LIMITED,CARE ESTABLISHMENT,LD - South Locality - Cost of Care,LD - South Cambs - Care,Domiciliary Care
Cambridgeshire County Council,02-Jul-21,51301598639,591.17,WESTMINSTER HOMECARE LIMITED,CARE ESTABLISHMENT,LD - South Locality - Cost of Care,LD - South Cambs - Care,Domiciliary Care
Cambridgeshire County Council,02-Jul-21,51301598639,591.17,WESTMINSTER HOMECARE LIMITED,CARE ESTABLISHMENT,LD - South Locality - Cost of Care,LD - South Cambs - Care,Domiciliary Care
Cambridgeshire County Council,02-Jul-21,51301598639,591.17,WESTMINSTER HOMECARE LIMITED,CARE ESTABLISHMENT,LD - South Locality - Cost of Care,LD - South Cambs - Care,Domiciliary Care
Cambridgeshire County Council,02-Jul-21,51301598639,591.17,WESTMINSTER HOMECARE LIMITED,CARE ESTABLISHMENT,LD - South Locality - Cost of Care,LD - South Cambs - Care,Domiciliary Care
Cambridgeshire County Council,02-Jul-21,51301598639,591.17,WESTMINSTER HOMECARE LIMITED,CARE ESTABLISHMENT,LD - South Locality - Cost of Care,LD - South Cambs - Care,Domiciliary Care
Cambridgeshire County Council,02-Jul-21,51301598639,591.17,WESTMINSTER HOMECARE LIMITED,CARE ESTABLISHMENT,LD - South Locality - Cost of Care,LD - South Cambs - Care,Domiciliary Care
Cambridgeshire County Council,02-Jul-21,51301598639,591.17,WESTMINSTER HOMECARE LIMITED,CARE ESTABLISHMENT,LD - South Locality - Cost of Care,LD - South Cambs - Care,Domiciliary Care
Cambridgeshire County Council,02-Jul-21,51301598639,591.17,WESTMINSTER HOMECARE LIMITED,CARE ESTABLISHMENT,LD - South Locality - Cost of Care,LD - South Cambs - Care,Domiciliary Care
Cambridgeshire County Council,02-Jul-21,51301598639,591.17,WESTMINSTER HOMECARE LIMITED,CARE ESTABLISHMENT,LD - South Locality - Cost of Care,LD - South Cambs - Care,Domiciliary Care
Cambridgeshire County Council,02-Jul-21,51301598639,591.17,WESTMINSTER HOMECARE LIMITED,CARE ESTABLISHMENT,LD - South Locality - Cost of Care,LD - South Cambs - Care,Domiciliary Care
Cambridgeshire County Council,02-Jul-21,51301598639,591.17,WESTMINSTER HOMECARE LIMITED,CARE ESTABLISHMENT,LD - South Locality - Cost of Care,LD - South Cambs - Care,Domiciliary Care
Cambridgeshire County Council,02-Jul-21,51301598639,591.17,WESTMINSTER HOMECARE LIMITED,CARE ESTABLISHMENT,LD - South Locality - Cost of Care,LD - South Cambs - Care,Domiciliary Care
Cambridgeshire County Council,02-Jul-21,51301598639,591.17,WESTMINSTER HOMECARE LIMITED,CARE ESTABLISHMENT,LD - South Locality - Cost of Care,LD - South Cambs - Care,Domiciliary Care
Cambridgeshire County Council,02-Jul-21,51301598639,591.17,WESTMINSTER HOMECARE LIMITED,CARE ESTABLISHMENT,LD - South Locality - Cost of Care,LD - South Cambs - Care,Domiciliary Care
Cambridgeshire County Council,02-Jul-21,51301598639,591.17,WESTMINSTER HOMECARE LIMITED,CARE ESTABLISHMENT,LD - South Locality - Cost of Care,LD - South Cambs - Care,Domiciliary Care
Cambridgeshire County Council,02-Jul-21,51301598639,591.17,WESTMINSTER HOMECARE LIMITED,CARE ESTABLISHMENT,LD - South Locality - Cost of Care,LD - South Cambs - Care,Domiciliary Care
Cambridgeshire County Council,02-Jul-21,51301598639,591.17,WESTMINSTER HOMECARE LIMITED,CARE ESTABLISHMENT,LD - South Locality - Cost of Care,LD - South Cambs - Care,Domiciliary Care
Cambridgeshire County Council,02-Jul-21,51301598639,591.17,WESTMINSTER HOMECARE LIMITED,CARE ESTABLISHMENT,LD - South Locality - Cost of Care,LD - South Cambs - Care,Domiciliary Care
Cambridgeshire County Council,02-Jul-21,51301598620,595.98,CAMBRIDGESHIRE DEAF ASSOCIATION,CHARITY,Physical Disablity - Cost of Care,Countywide PD Service - Care,Domiciliary Care
Cambridgeshire County Council,02-Jul-21,51301598661,597.45,MIHOMECARE LTD (FENLAND PREMIER CARE),CARE ESTABLISHMENT,OP - East Cambs Locality - Cost of Care,East Cambs - O P Team - Care,Domiciliary Care
Cambridgeshire County Council,02-Jul-21,51301598661,597.45,MIHOMECARE LTD (FENLAND PREMIER CARE),CARE ESTABLISHMENT,OP - East Cambs Locality - Cost of Care,East Cambs - O P Team - Care,Domiciliary Care
Cambridgeshire County Council,02-Jul-21,51301598661,597.45,MIHOMECARE LTD (FENLAND PREMIER CARE),CARE ESTABLISHMENT,OP - East Cambs Locality - Cost of Care,East Cambs - O P Team - Care,Domiciliary Care
Cambridgeshire County Council,02-Jul-21,51301598661,597.45,MIHOMECARE LTD (FENLAND PREMIER CARE),CARE ESTABLISHMENT,OP - East Cambs Locality - Cost of Care,East Cambs - O P Team - Care,Domiciliary Care
Cambridgeshire County Council,02-Jul-21,51301598661,597.45,MIHOMECARE LTD (FENLAND PREMIER CARE),CARE ESTABLISHMENT,OP - East Cambs Locality - Cost of Care,East Cambs - O P Team - Care,Domiciliary Care
Cambridgeshire County Council,02-Jul-21,51301598661,597.45,MIHOMECARE LTD (FENLAND PREMIER CARE),CARE ESTABLISHMENT,OP - East Cambs Locality - Cost of Care,East Cambs - O P Team - Care,Domiciliary Care
Cambridgeshire County Council,02-Jul-21,51301598661,597.45,MIHOMECARE LTD (FENLAND PREMIER CARE),CARE ESTABLISHMENT,OP - East Cambs Locality - Cost of Care,East Cambs - O P Team - Care,Domiciliary Care
Cambridgeshire County Council,02-Jul-21,51301598661,597.45,MIHOMECARE LTD (FENLAND PREMIER CARE),CARE ESTABLISHMENT,OP - East Cambs Locality - Cost of Care,East Cambs - O P Team - Care,Domiciliary Care
Cambridgeshire County Council,02-Jul-21,51301598661,597.45,MIHOMECARE LTD (FENLAND PREMIER CARE),CARE ESTABLISHMENT,OP - East Cambs Locality - Cost of Care,East Cambs - O P Team - Care,Domiciliary Care
Cambridgeshire County Council,02-Jul-21,51301598661,597.45,MIHOMECARE LTD (FENLAND PREMIER CARE),CARE ESTABLISHMENT,OP - East Cambs Locality - Cost of Care,East Cambs - O P Team - Care,Domiciliary Care
Cambridgeshire County Council,02-Jul-21,51301598661,597.45,MIHOMECARE LTD (FENLAND PREMIER CARE),CARE ESTABLISHMENT,OP - East Cambs Locality - Cost of Care,East Cambs - O P Team - Care,Domiciliary Care
Cambridgeshire County Council,02-Jul-21,51301598661,597.45,MIHOMECARE LTD (FENLAND PREMIER CARE),CARE ESTABLISHMENT,OP - East Cambs Locality - Cost of Care,East Cambs - O P Team - Care,Domiciliary Care
Cambridgeshire County Council,02-Jul-21,51301598661,597.45,MIHOMECARE LTD (FENLAND PREMIER CARE),CARE ESTABLISHMENT,OP - East Cambs Locality - Cost of Care,East Cambs - O P Team - Care,Domiciliary Care
Cambridgeshire County Council,02-Jul-21,51301598661,597.45,MIHOMECARE LTD (FENLAND PREMIER CARE),CARE ESTABLISHMENT,OP - East Cambs Locality - Cost of Care,East Cambs - O P Team - Care,Domiciliary Care
Cambridgeshire County Council,02-Jul-21,51301598661,597.45,MIHOMECARE LTD (FENLAND PREMIER CARE),CARE ESTABLISHMENT,OP - East Cambs Locality - Cost of Care,East Cambs - O P Team - Care,Domiciliary Care
Cambridgeshire County Council,02-Jul-21,51301598661,597.45,MIHOMECARE LTD (FENLAND PREMIER CARE),CARE ESTABLISHMENT,OP - East Cambs Locality - Cost of Care,East Cambs - O P Team - Care,Domiciliary Care
Cambridgeshire County Council,02-Jul-21,51301598661,597.45,MIHOMECARE LTD (FENLAND PREMIER CARE),CARE ESTABLISHMENT,OP - East Cambs Locality - Cost of Care,East Cambs - O P Team - Care,Domiciliary Care
Cambridgeshire County Council,02-Jul-21,51301598661,597.45,MIHOMECARE LTD (FENLAND PREMIER CARE),CARE ESTABLISHMENT,OP - East Cambs Locality - Cost of Care,East Cambs - O P Team - Care,Domiciliary Care
Cambridgeshire County Council,02-Jul-21,51301598661,597.45,MIHOMECARE LTD (FENLAND PREMIER CARE),CARE ESTABLISHMENT,OP - East Cambs Locality - Cost of Care,East Cambs - O P Team - Care,Domiciliary Care
Cambridgeshire County Council,02-Jul-21,51301598661,597.45,MIHOMECARE LTD (FENLAND PREMIER CARE),CARE ESTABLISHMENT,OP - East Cambs Locality - Cost of Care,East Cambs - O P Team - Care,Domiciliary Care
Cambridgeshire County Council,02-Jul-21,51301598661,597.45,MIHOMECARE LTD (FENLAND PREMIER CARE),CARE ESTABLISHMENT,OP - East Cambs Locality - Cost of Care,East Cambs - O P Team - Care,Domiciliary Care
Cambridgeshire County Council,02-Jul-21,51301598661,597.45,MIHOMECARE LTD (FENLAND PREMIER CARE),CARE ESTABLISHMENT,OP - East Cambs Locality - Cost of Care,East Cambs - O P Team - Care,Domiciliary Care
Cambridgeshire County Council,02-Jul-21,51301598661,597.45,MIHOMECARE LTD (FENLAND PREMIER CARE),CARE ESTABLISHMENT,OP - East Cambs Locality - Cost of Care,East Cambs - O P Team - Care,Domiciliary Care
Cambridgeshire County Council,02-Jul-21,51301598661,597.45,MIHOMECARE LTD (FENLAND PREMIER CARE),CARE ESTABLISHMENT,OP - East Cambs Locality - Cost of Care,East Cambs - O P Team - Care,Domiciliary Care
Cambridgeshire County Council,02-Jul-21,51301598661,597.45,MIHOMECARE LTD (FENLAND PREMIER CARE),CARE ESTABLISHMENT,OP - East Cambs Locality - Cost of Care,East Cambs - O P Team - Care,Domiciliary Care
Cambridgeshire County Council,02-Jul-21,51301598661,597.45,MIHOMECARE LTD (FENLAND PREMIER CARE),CARE ESTABLISHMENT,OP - East Cambs Locality - Cost of Care,East Cambs - O P Team - Care,Domiciliary Care
Cambridgeshire County Council,02-Jul-21,51301598661,597.45,MIHOMECARE LTD (FENLAND PREMIER CARE),CARE ESTABLISHMENT,OP - East Cambs Locality - Cost of Care,East Cambs - O P Team - Care,Domiciliary Care
Cambridgeshire County Council,02-Jul-21,51301598661,597.45,MIHOMECARE LTD (FENLAND PREMIER CARE),CARE ESTABLISHMENT,OP - East Cambs Locality - Cost of Care,East Cambs - O P Team - Care,Domiciliary Care
Cambridgeshire County Council,02-Jul-21,51301598661,597.45,MIHOMECARE LTD (FENLAND PREMIER CARE),CARE ESTABLISHMENT,OP - East Cambs Locality - Cost of Care,East Cambs - O P Team - Care,Domiciliary Care
Cambridgeshire County Council,02-Jul-21,51301598661,597.45,MIHOMECARE LTD (FENLAND PREMIER CARE),CARE ESTABLISHMENT,OP - East Cambs Locality - Cost of Care,East Cambs - O P Team - Care,Domiciliary Care
Cambridgeshire County Council,02-Jul-21,51301598661,608.45,MIHOMECARE LTD (FENLAND PREMIER CARE),CARE ESTABLISHMENT,OP - East Cambs Locality - Cost of Care,East Cambs - O P Team - Care,Domiciliary Care
Cambridgeshire County Council,02-Jul-21,51301598648,611.21,CAMBRIDGESHIRE HOMECARE (J&M CARE LTD),CARE ESTABLISHMENT,OPMH - Hunts & Fens,Older People Mental Health Fenland,Domiciliary Care
Cambridgeshire County Council,02-Jul-21,51301598661,616.70,MIHOMECARE LTD (FENLAND PREMIER CARE),CARE ESTABLISHMENT,OP - East Cambs Locality - Cost of Care,East Cambs - O P Team - Care,Domiciliary Care
Cambridgeshire County Council,02-Jul-21,51301598661,616.70,MIHOMECARE LTD (FENLAND PREMIER CARE),CARE ESTABLISHMENT,OP - East Cambs Locality - Cost of Care,East Cambs - O P Team - Care,Domiciliary Care
Cambridgeshire County Council,02-Jul-21,51301598661,616.70,MIHOMECARE LTD (FENLAND PREMIER CARE),CARE ESTABLISHMENT,OP - East Cambs Locality - Cost of Care,East Cambs - O P Team - Care,Domiciliary Care
Cambridgeshire County Council,02-Jul-21,51301598661,616.70,MIHOMECARE LTD (FENLAND PREMIER CARE),CARE ESTABLISHMENT,OP - East Cambs Locality - Cost of Care,East Cambs - O P Team - Care,Domiciliary Care
Cambridgeshire County Council,02-Jul-21,51301598661,616.70,MIHOMECARE LTD (FENLAND PREMIER CARE),CARE ESTABLISHMENT,OP - East Cambs Locality - Cost of Care,East Cambs - O P Team - Care,Domiciliary Care
Cambridgeshire County Council,02-Jul-21,51301598661,616.70,MIHOMECARE LTD (FENLAND PREMIER CARE),CARE ESTABLISHMENT,OP - East Cambs Locality - Cost of Care,East Cambs - O P Team - Care,Domiciliary Care
Cambridgeshire County Council,02-Jul-21,51301598661,616.70,MIHOMECARE LTD (FENLAND PREMIER CARE),CARE ESTABLISHMENT,OP - East Cambs Locality - Cost of Care,East Cambs - O P Team - Care,Domiciliary Care
Cambridgeshire County Council,02-Jul-21,51301598661,616.70,MIHOMECARE LTD (FENLAND PREMIER CARE),CARE ESTABLISHMENT,OP - East Cambs Locality - Cost of Care,East Cambs - O P Team - Care,Domiciliary Care
Cambridgeshire County Council,02-Jul-21,51301598661,616.70,MIHOMECARE LTD (FENLAND PREMIER CARE),CARE ESTABLISHMENT,OP - East Cambs Locality - Cost of Care,East Cambs - O P Team - Care,Domiciliary Care
Cambridgeshire County Council,02-Jul-21,51301598661,616.70,MIHOMECARE LTD (FENLAND PREMIER CARE),CARE ESTABLISHMENT,OP - East Cambs Locality - Cost of Care,East Cambs - O P Team - Care,Domiciliary Care
Cambridgeshire County Council,02-Jul-21,51301598661,616.70,MIHOMECARE LTD (FENLAND PREMIER CARE),CARE ESTABLISHMENT,OP - East Cambs Locality - Cost of Care,East Cambs - O P Team - Care,Domiciliary Care
Cambridgeshire County Council,02-Jul-21,51301598661,616.70,MIHOMECARE LTD (FENLAND PREMIER CARE),CARE ESTABLISHMENT,OP - East Cambs Locality - Cost of Care,East Cambs - O P Team - Care,Domiciliary Care
Cambridgeshire County Council,02-Jul-21,51301598661,616.70,MIHOMECARE LTD (FENLAND PREMIER CARE),CARE ESTABLISHMENT,OP - East Cambs Locality - Cost of Care,East Cambs - O P Team - Care,Domiciliary Care
Cambridgeshire County Council,02-Jul-21,51301598661,616.70,MIHOMECARE LTD (FENLAND PREMIER CARE),CARE ESTABLISHMENT,OP - East Cambs Locality - Cost of Care,East Cambs - O P Team - Care,Domiciliary Care
Cambridgeshire County Council,02-Jul-21,51301598661,616.70,MIHOMECARE LTD (FENLAND PREMIER CARE),CARE ESTABLISHMENT,OP - East Cambs Locality - Cost of Care,East Cambs - O P Team - Care,Domiciliary Care
Cambridgeshire County Council,02-Jul-21,51301598661,616.70,MIHOMECARE LTD (FENLAND PREMIER CARE),CARE ESTABLISHMENT,OP - East Cambs Locality - Cost of Care,East Cambs - O P Team - Care,Domiciliary Care
Cambridgeshire County Council,02-Jul-21,51301598661,616.70,MIHOMECARE LTD (FENLAND PREMIER CARE),CARE ESTABLISHMENT,OP - East Cambs Locality - Cost of Care,East Cambs - O P Team - Care,Domiciliary Care
Cambridgeshire County Council,02-Jul-21,51301598661,616.70,MIHOMECARE LTD (FENLAND PREMIER CARE),CARE ESTABLISHMENT,OP - East Cambs Locality - Cost of Care,East Cambs - O P Team - Care,Domiciliary Care
Cambridgeshire County Council,02-Jul-21,51301598661,616.70,MIHOMECARE LTD (FENLAND PREMIER CARE),CARE ESTABLISHMENT,OP - East Cambs Locality - Cost of Care,East Cambs - O P Team - Care,Domiciliary Care
Cambridgeshire County Council,02-Jul-21,51301598661,616.70,MIHOMECARE LTD (FENLAND PREMIER CARE),CARE ESTABLISHMENT,OP - East Cambs Locality - Cost of Care,East Cambs - O P Team - Care,Domiciliary Care
Cambridgeshire County Council,02-Jul-21,51301598661,616.70,MIHOMECARE LTD (FENLAND PREMIER CARE),CARE ESTABLISHMENT,OP - East Cambs Locality - Cost of Care,East Cambs - O P Team - Care,Domiciliary Care
Cambridgeshire County Council,02-Jul-21,51301598662,616.70,MIHOMECARE LTD (THE CARE AGENCY),CARE ESTABLISHMENT,OP - East Cambs Locality - Cost of Care,East Cambs - O P Team - Care,Domiciliary Care
Cambridgeshire County Council,02-Jul-21,51301598662,616.70,MIHOMECARE LTD (THE CARE AGENCY),CARE ESTABLISHMENT,OP - East Cambs Locality - Cost of Care,East Cambs - O P Team - Care,Domiciliary Care
Cambridgeshire County Council,02-Jul-21,51301598662,616.70,MIHOMECARE LTD (THE CARE AGENCY),CARE ESTABLISHMENT,OP - East Cambs Locality - Cost of Care,East Cambs - O P Team - Care,Domiciliary Care
Cambridgeshire County Council,02-Jul-21,51301598662,616.70,MIHOMECARE LTD (THE CARE AGENCY),CARE ESTABLISHMENT,OP - East Cambs Locality - Cost of Care,East Cambs - O P Team - Care,Domiciliary Care
Cambridgeshire County Council,02-Jul-21,51301598662,616.70,MIHOMECARE LTD (THE CARE AGENCY),CARE ESTABLISHMENT,OP - East Cambs Locality - Cost of Care,East Cambs - O P Team - Care,Domiciliary Care
Cambridgeshire County Council,02-Jul-21,51301598662,616.70,MIHOMECARE LTD (THE CARE AGENCY),CARE ESTABLISHMENT,OP - East Cambs Locality - Cost of Care,East Cambs - O P Team - Care,Domiciliary Care
Cambridgeshire County Council,02-Jul-21,51301598662,616.70,MIHOMECARE LTD (THE CARE AGENCY),CARE ESTABLISHMENT,OP - East Cambs Locality - Cost of Care,East Cambs - O P Team - Care,Domiciliary Care
Cambridgeshire County Council,02-Jul-21,51301598662,621.20,MIHOMECARE LTD (THE CARE AGENCY),CARE ESTABLISHMENT,OP - East Cambs Locality - Cost of Care,East Cambs - O P Team - Care,Domiciliary Care
Cambridgeshire County Council,02-Jul-21,51301598662,623.00,MIHOMECARE LTD (THE CARE AGENCY),CARE ESTABLISHMENT,OP - East Cambs Locality - Cost of Care,East Cambs - O P Team - Care,Domiciliary Care
Cambridgeshire County Council,02-Jul-21,51301598662,623.00,MIHOMECARE LTD (THE CARE AGENCY),CARE ESTABLISHMENT,OP - East Cambs Locality - Cost of Care,East Cambs - O P Team - Care,Domiciliary Care
Cambridgeshire County Council,02-Jul-21,51301598662,623.00,MIHOMECARE LTD (THE CARE AGENCY),CARE ESTABLISHMENT,OP - East Cambs Locality - Cost of Care,East Cambs - O P Team - Care,Domiciliary Care
Cambridgeshire County Council,02-Jul-21,51301598662,623.00,MIHOMECARE LTD (THE CARE AGENCY),CARE ESTABLISHMENT,OP - East Cambs Locality - Cost of Care,East Cambs - O P Team - Care,Domiciliary Care
Cambridgeshire County Council,02-Jul-21,51301598662,623.00,MIHOMECARE LTD (THE CARE AGENCY),CARE ESTABLISHMENT,OP - East Cambs Locality - Cost of Care,East Cambs - O P Team - Care,Domiciliary Care
Cambridgeshire County Council,02-Jul-21,51301598662,623.00,MIHOMECARE LTD (THE CARE AGENCY),CARE ESTABLISHMENT,OP - East Cambs Locality - Cost of Care,East Cambs - O P Team - Care,Domiciliary Care
Cambridgeshire County Council,02-Jul-21,51301598662,623.00,MIHOMECARE LTD (THE CARE AGENCY),CARE ESTABLISHMENT,OP - East Cambs Locality - Cost of Care,East Cambs - O P Team - Care,Domiciliary Care
Cambridgeshire County Council,02-Jul-21,51301598662,623.00,MIHOMECARE LTD (THE CARE AGENCY),CARE ESTABLISHMENT,OP - East Cambs Locality - Cost of Care,East Cambs - O P Team - Care,Domiciliary Care
Cambridgeshire County Council,02-Jul-21,51301598662,623.00,MIHOMECARE LTD (THE CARE AGENCY),CARE ESTABLISHMENT,OP - East Cambs Locality - Cost of Care,East Cambs - O P Team - Care,Domiciliary Care
Cambridgeshire County Council,02-Jul-21,51301598662,623.00,MIHOMECARE LTD (THE CARE AGENCY),CARE ESTABLISHMENT,OP - East Cambs Locality - Cost of Care,East Cambs - O P Team - Care,Domiciliary Care
Cambridgeshire County Council,02-Jul-21,51301598639,648.66,WESTMINSTER HOMECARE LIMITED,CARE ESTABLISHMENT,LD - South Locality - Cost of Care,LD - South Cambs - Care,Domiciliary Care
Cambridgeshire County Council,02-Jul-21,51301598639,648.66,WESTMINSTER HOMECARE LIMITED,CARE ESTABLISHMENT,LD - South Locality - Cost of Care,LD - South Cambs - Care,Domiciliary Care
Cambridgeshire County Council,02-Jul-21,51301598639,648.66,WESTMINSTER HOMECARE LIMITED,CARE ESTABLISHMENT,LD - South Locality - Cost of Care,LD - South Cambs - Care,Domiciliary Care
Cambridgeshire County Council,02-Jul-21,51301598639,648.66,WESTMINSTER HOMECARE LIMITED,CARE ESTABLISHMENT,LD - South Locality - Cost of Care,LD - South Cambs - Care,Domiciliary Care
Cambridgeshire County Council,02-Jul-21,51301598639,648.66,WESTMINSTER HOMECARE LIMITED,CARE ESTABLISHMENT,LD - South Locality - Cost of Care,LD - South Cambs - Care,Domiciliary Care
Cambridgeshire County Council,02-Jul-21,51301598639,648.66,WESTMINSTER HOMECARE LIMITED,CARE ESTABLISHMENT,LD - South Locality - Cost of Care,LD - South Cambs - Care,Domiciliary Care
Cambridgeshire County Council,02-Jul-21,51301598639,648.66,WESTMINSTER HOMECARE LIMITED,CARE ESTABLISHMENT,LD - South Locality - Cost of Care,LD - South Cambs - Care,Domiciliary Care
Cambridgeshire County Council,02-Jul-21,51301598672,650.00,Redacted Personal Data,INDIVIDUAL,Regional Adoption Agency,Regional Adoption Agency,Professional Fees and Hired Services
Cambridgeshire County Council,02-Jul-21,51301598520,660.00,RANDSTAD PUBLIC SERVICES (EDU),EDUCATION,Out of School Tuition,Out of School Provision - Education and Settings,Independent School Placements
Cambridgeshire County Council,02-Jul-21,51301598639,669.56,WESTMINSTER HOMECARE LIMITED,CARE ESTABLISHMENT,LD - South Locality - Cost of Care,LD - South Cambs - Care,Domiciliary Care
Cambridgeshire County Council,02-Jul-21,51301598639,669.56,WESTMINSTER HOMECARE LIMITED,CARE ESTABLISHMENT,LD - South Locality - Cost of Care,LD - South Cambs - Care,Domiciliary Care
Cambridgeshire County Council,02-Jul-21,51301598639,669.56,WESTMINSTER HOMECARE LIMITED,CARE ESTABLISHMENT,LD - South Locality - Cost of Care,LD - South Cambs - Care,Domiciliary Care
Cambridgeshire County Council,02-Jul-21,51301598639,669.56,WESTMINSTER HOMECARE LIMITED,CARE ESTABLISHMENT,LD - South Locality - Cost of Care,LD - South Cambs - Care,Domiciliary Care
Cambridgeshire County Council,02-Jul-21,51301598639,669.56,WESTMINSTER HOMECARE LIMITED,CARE ESTABLISHMENT,LD - South Locality - Cost of Care,LD - South Cambs - Care,Domiciliary Care
Cambridgeshire County Council,02-Jul-21,51301598639,669.56,WESTMINSTER HOMECARE LIMITED,CARE ESTABLISHMENT,LD - South Locality - Cost of Care,LD - South Cambs - Care,Domiciliary Care
Cambridgeshire County Council,02-Jul-21,51301598639,669.56,WESTMINSTER HOMECARE LIMITED,CARE ESTABLISHMENT,LD - South Locality - Cost of Care,LD - South Cambs - Care,Domiciliary Care
Cambridgeshire County Council,02-Jul-21,51301598639,669.56,WESTMINSTER HOMECARE LIMITED,CARE ESTABLISHMENT,LD - South Locality - Cost of Care,LD - South Cambs - Care,Domiciliary Care
Cambridgeshire County Council,02-Jul-21,51301598639,669.56,WESTMINSTER HOMECARE LIMITED,CARE ESTABLISHMENT,LD - South Locality - Cost of Care,LD - South Cambs - Care,Domiciliary Care
Cambridgeshire County Council,02-Jul-21,51301598639,669.56,WESTMINSTER HOMECARE LIMITED,CARE ESTABLISHMENT,LD - South Locality - Cost of Care,LD - South Cambs - Care,Domiciliary Care
Cambridgeshire County Council,02-Jul-21,51301598639,669.56,WESTMINSTER HOMECARE LIMITED,CARE ESTABLISHMENT,LD - South Locality - Cost of Care,LD - South Cambs - Care,Domiciliary Care
Cambridgeshire County Council,02-Jul-21,51301598639,669.56,WESTMINSTER HOMECARE LIMITED,CARE ESTABLISHMENT,LD - South Locality - Cost of Care,LD - South Cambs - Care,Domiciliary Care
Cambridgeshire County Council,02-Jul-21,51301598639,669.56,WESTMINSTER HOMECARE LIMITED,CARE ESTABLISHMENT,LD - South Locality - Cost of Care,LD - South Cambs - Care,Domiciliary Care
Cambridgeshire County Council,02-Jul-21,51301598639,669.56,WESTMINSTER HOMECARE LIMITED,CARE ESTABLISHMENT,LD - South Locality - Cost of Care,LD - South Cambs - Care,Domiciliary Care
Cambridgeshire County Council,02-Jul-21,51301598639,669.56,WESTMINSTER HOMECARE LIMITED,CARE ESTABLISHMENT,LD - South Locality - Cost of Care,LD - South Cambs - Care,Domiciliary Care
Cambridgeshire County Council,02-Jul-21,51301598639,669.56,WESTMINSTER HOMECARE LIMITED,CARE ESTABLISHMENT,LD - South Locality - Cost of Care,LD - South Cambs - Care,Domiciliary Care
Cambridgeshire County Council,02-Jul-21,51301598639,669.56,WESTMINSTER HOMECARE LIMITED,CARE ESTABLISHMENT,LD - South Locality - Cost of Care,LD - South Cambs - Care,Domiciliary Care
Cambridgeshire County Council,02-Jul-21,51301598639,669.56,WESTMINSTER HOMECARE LIMITED,CARE ESTABLISHMENT,LD - South Locality - Cost of Care,LD - South Cambs - Care,Domiciliary Care
Cambridgeshire County Council,02-Jul-21,51301598639,669.56,WESTMINSTER HOMECARE LIMITED,CARE ESTABLISHMENT,LD - South Locality - Cost of Care,LD - South Cambs - Care,Domiciliary Care
Cambridgeshire County Council,02-Jul-21,51301598639,669.56,WESTMINSTER HOMECARE LIMITED,CARE ESTABLISHMENT,LD - South Locality - Cost of Care,LD - South Cambs - Care,Domiciliary Care
Cambridgeshire County Council,02-Jul-21,51301598639,669.56,WESTMINSTER HOMECARE LIMITED,CARE ESTABLISHMENT,LD - South Locality - Cost of Care,LD - South Cambs - Care,Domiciliary Care
Cambridgeshire County Council,02-Jul-21,51301598639,669.56,WESTMINSTER HOMECARE LIMITED,CARE ESTABLISHMENT,LD - South Locality - Cost of Care,LD - South Cambs - Care,Domiciliary Care
Cambridgeshire County Council,02-Jul-21,51301598639,669.56,WESTMINSTER HOMECARE LIMITED,CARE ESTABLISHMENT,LD - South Locality - Cost of Care,LD - South Cambs - Care,Domiciliary Care
Cambridgeshire County Council,02-Jul-21,51301598639,669.56,WESTMINSTER HOMECARE LIMITED,CARE ESTABLISHMENT,LD - South Locality - Cost of Care,LD - South Cambs - Care,Domiciliary Care
Cambridgeshire County Council,02-Jul-21,51301598639,669.56,WESTMINSTER HOMECARE LIMITED,CARE ESTABLISHMENT,LD - South Locality - Cost of Care,LD - South Cambs - Care,Domiciliary Care
Cambridgeshire County Council,02-Jul-21,51301598639,669.56,WESTMINSTER HOMECARE LIMITED,CARE ESTABLISHMENT,LD - South Locality - Cost of Care,LD - South Cambs - Care,Domiciliary Care
Cambridgeshire County Council,02-Jul-21,51301598639,669.56,WESTMINSTER HOMECARE LIMITED,CARE ESTABLISHMENT,LD - South Locality - Cost of Care,LD - South Cambs - Care,Domiciliary Care
Cambridgeshire County Council,02-Jul-21,51301598639,669.56,WESTMINSTER HOMECARE LIMITED,CARE ESTABLISHMENT,LD - South Locality - Cost of Care,LD - South Cambs - Care,Domiciliary Care
Cambridgeshire County Council,02-Jul-21,51301598639,669.56,WESTMINSTER HOMECARE LIMITED,CARE ESTABLISHMENT,LD - South Locality - Cost of Care,LD - South Cambs - Care,Domiciliary Care
Cambridgeshire County Council,02-Jul-21,51301598639,669.56,WESTMINSTER HOMECARE LIMITED,CARE ESTABLISHMENT,LD - South Locality - Cost of Care,LD - South Cambs - Care,Domiciliary Care
Cambridgeshire County Council,02-Jul-21,51301598639,669.56,WESTMINSTER HOMECARE LIMITED,CARE ESTABLISHMENT,LD - South Locality - Cost of Care,LD - South Cambs - Care,Domiciliary Care
Cambridgeshire County Council,02-Jul-21,51301598639,669.56,WESTMINSTER HOMECARE LIMITED,CARE ESTABLISHMENT,LD - South Locality - Cost of Care,LD - South Cambs - Care,Domiciliary Care
Cambridgeshire County Council,02-Jul-21,51301598639,669.56,WESTMINSTER HOMECARE LIMITED,CARE ESTABLISHMENT,LD - South Locality - Cost of Care,LD - South Cambs - Care,Domiciliary Care
Cambridgeshire County Council,02-Jul-21,51301598639,669.56,WESTMINSTER HOMECARE LIMITED,CARE ESTABLISHMENT,LD - South Locality - Cost of Care,LD - South Cambs - Care,Domiciliary Care
Cambridgeshire County Council,02-Jul-21,51301598624,671.72,THE EDMUND TRUST,CARE ESTABLISHMENT,LD - City Locality - Cost of Care,LD - City - Care,Supported Living
Cambridgeshire County Council,02-Jul-21,51301598639,674.44,WESTMINSTER HOMECARE LIMITED,CARE ESTABLISHMENT,LD - South Locality - Cost of Care,LD - South Cambs - Care,Domiciliary Care
Cambridgeshire County Council,02-Jul-21,51301598639,676.40,WESTMINSTER HOMECARE LIMITED,CARE ESTABLISHMENT,LD - South Locality - Cost of Care,LD - South Cambs - Care,Domiciliary Care
Cambridgeshire County Council,02-Jul-21,51301598639,676.40,WESTMINSTER HOMECARE LIMITED,CARE ESTABLISHMENT,LD - South Locality - Cost of Care,LD - South Cambs - Care,Domiciliary Care
Cambridgeshire County Council,02-Jul-21,51301598639,676.40,WESTMINSTER HOMECARE LIMITED,CARE ESTABLISHMENT,LD - South Locality - Cost of Care,LD - South Cambs - Care,Domiciliary Care
Cambridgeshire County Council,02-Jul-21,51301598639,676.40,WESTMINSTER HOMECARE LIMITED,CARE ESTABLISHMENT,LD - South Locality - Cost of Care,LD - South Cambs - Care,Domiciliary Care
Cambridgeshire County Council,02-Jul-21,51301598639,676.40,WESTMINSTER HOMECARE LIMITED,CARE ESTABLISHMENT,LD - South Locality - Cost of Care,LD - South Cambs - Care,Domiciliary Care
Cambridgeshire County Council,02-Jul-21,51301598639,676.40,WESTMINSTER HOMECARE LIMITED,CARE ESTABLISHMENT,LD - South Locality - Cost of Care,LD - South Cambs - Care,Domiciliary Care
Cambridgeshire County Council,02-Jul-21,51301598639,676.40,WESTMINSTER HOMECARE LIMITED,CARE ESTABLISHMENT,LD - South Locality - Cost of Care,LD - South Cambs - Care,Domiciliary Care
Cambridgeshire County Council,02-Jul-21,51301598639,676.40,WESTMINSTER HOMECARE LIMITED,CARE ESTABLISHMENT,LD - South Locality - Cost of Care,LD - South Cambs - Care,Domiciliary Care
Cambridgeshire County Council,02-Jul-21,51301598639,676.40,WESTMINSTER HOMECARE LIMITED,CARE ESTABLISHMENT,LD - South Locality - Cost of Care,LD - South Cambs - Care,Domiciliary Care
Cambridgeshire County Council,02-Jul-21,51301598639,676.40,WESTMINSTER HOMECARE LIMITED,CARE ESTABLISHMENT,LD - South Locality - Cost of Care,LD - South Cambs - Care,Domiciliary Care
Cambridgeshire County Council,02-Jul-21,51301598618,700.00,ARIA COURT,CARE ESTABLISHMENT,OP - Fenland Locality - Cost of Care,Older People - Fenland - Care,Rehabilitation And Respite Care
Cambridgeshire County Council,02-Jul-21,51301598618,700.00,ARIA COURT,CARE ESTABLISHMENT,OP - Fenland Locality - Cost of Care,Older People - Fenland - Care,Rehabilitation And Respite Care
Cambridgeshire County Council,02-Jul-21,51301598618,700.00,ARIA COURT,CARE ESTABLISHMENT,OP - Fenland Locality - Cost of Care,Older People - Fenland - Care,Rehabilitation And Respite Care
Cambridgeshire County Council,02-Jul-21,51301598618,700.00,ARIA COURT,CARE ESTABLISHMENT,OP - Fenland Locality - Cost of Care,Older People - Fenland - Care,Rehabilitation And Respite Care
Cambridgeshire County Council,02-Jul-21,51301598618,700.00,ARIA COURT,CARE ESTABLISHMENT,OP - Fenland Locality - Cost of Care,Older People - Fenland - Care,Rehabilitation And Respite Care
Cambridgeshire County Council,02-Jul-21,51301598618,700.00,ARIA COURT,CARE ESTABLISHMENT,OP - Fenland Locality - Cost of Care,Older People - Fenland - Care,Rehabilitation And Respite Care
Cambridgeshire County Council,02-Jul-21,51301598618,700.00,ARIA COURT,CARE ESTABLISHMENT,OP - Fenland Locality - Cost of Care,Older People - Fenland - Care,Rehabilitation And Respite Care
Cambridgeshire County Council,02-Jul-21,51301598622,701.30,THE EDMUND TRUST,CARE ESTABLISHMENT,LD - East Locality - Cost of Care,LD - East Cambs - Care,Supported Living
Cambridgeshire County Council,02-Jul-21,51301598648,713.08,CAMBRIDGESHIRE HOMECARE (J&M CARE LTD),CARE ESTABLISHMENT,OPMH - Hunts & Fens,Older People Mental Health Fenland,Domiciliary Care
Cambridgeshire County Council,02-Jul-21,51301598648,713.08,CAMBRIDGESHIRE HOMECARE (J&M CARE LTD),CARE ESTABLISHMENT,OPMH - Hunts & Fens,Older People Mental Health Fenland,Domiciliary Care
Cambridgeshire County Council,02-Jul-21,51301598648,713.08,CAMBRIDGESHIRE HOMECARE (J&M CARE LTD),CARE ESTABLISHMENT,OPMH - Hunts & Fens,Older People Mental Health Fenland,Domiciliary Care
Cambridgeshire County Council,02-Jul-21,51301598648,713.08,CAMBRIDGESHIRE HOMECARE (J&M CARE LTD),CARE ESTABLISHMENT,OPMH - Hunts & Fens,Older People Mental Health Fenland,Domiciliary Care
Cambridgeshire County Council,02-Jul-21,51301598648,713.08,CAMBRIDGESHIRE HOMECARE (J&M CARE LTD),CARE ESTABLISHMENT,OPMH - Hunts & Fens,Older People Mental Health Fenland,Domiciliary Care
Cambridgeshire County Council,02-Jul-21,51301598648,713.08,CAMBRIDGESHIRE HOMECARE (J&M CARE LTD),CARE ESTABLISHMENT,OPMH - Hunts & Fens,Older People Mental Health Fenland,Domiciliary Care
Cambridgeshire County Council,02-Jul-21,51301598648,713.08,CAMBRIDGESHIRE HOMECARE (J&M CARE LTD),CARE ESTABLISHMENT,OPMH - Hunts & Fens,Older People Mental Health Fenland,Domiciliary Care
Cambridgeshire County Council,02-Jul-21,51301598648,713.08,CAMBRIDGESHIRE HOMECARE (J&M CARE LTD),CARE ESTABLISHMENT,OPMH - Hunts & Fens,Older People Mental Health Fenland,Domiciliary Care
Cambridgeshire County Council,02-Jul-21,51301598648,713.08,CAMBRIDGESHIRE HOMECARE (J&M CARE LTD),CARE ESTABLISHMENT,OPMH - Hunts & Fens,Older People Mental Health Fenland,Domiciliary Care
Cambridgeshire County Council,02-Jul-21,51301598648,713.08,CAMBRIDGESHIRE HOMECARE (J&M CARE LTD),CARE ESTABLISHMENT,OPMH - Hunts & Fens,Older People Mental Health Fenland,Domiciliary Care
Cambridgeshire County Council,02-Jul-21,51301598691,720.00,1st Staff Limited,COMPANY,Out of School Tuition,Out of School Provision - Education and Settings,Independent School Placements
Cambridgeshire County Council,02-Jul-21,51301598624,783.67,THE EDMUND TRUST,CARE ESTABLISHMENT,LD - City Locality - Cost of Care,LD - City - Care,Supported Living
Cambridgeshire County Council,02-Jul-21,51301598624,783.67,THE EDMUND TRUST,CARE ESTABLISHMENT,LD - City Locality - Cost of Care,LD - City - Care,Supported Living
Cambridgeshire County Council,02-Jul-21,51301598624,783.67,THE EDMUND TRUST,CARE ESTABLISHMENT,LD - City Locality - Cost of Care,LD - City - Care,Supported Living
Cambridgeshire County Council,02-Jul-21,51301598629,800.00,BROWN'S FIELD HOUSE (ABBEYFIELD SOCIETY),CARE ESTABLISHMENT,OP - East Cambs Locality - Cost of Care,East Cambs - O P Team - Care,Rehabilitation And Respite Care
Cambridgeshire County Council,02-Jul-21,51301598629,800.00,BROWN'S FIELD HOUSE (ABBEYFIELD SOCIETY),CARE ESTABLISHMENT,OP - East Cambs Locality - Cost of Care,East Cambs - O P Team - Care,Rehabilitation And Respite Care
Cambridgeshire County Council,02-Jul-21,51301598627,824.63,CARDINAL GATE 55,CARE ESTABLISHMENT,AMH - Hunts & Fens,Hunts Mental Health Team,Supported Living
Cambridgeshire County Council,02-Jul-21,51301598627,824.63,CARDINAL GATE 55,CARE ESTABLISHMENT,AMH - Hunts & Fens,Hunts Mental Health Team,Supported Living
Cambridgeshire County Council,02-Jul-21,51301598627,824.63,CARDINAL GATE 55,CARE ESTABLISHMENT,AMH - Hunts & Fens,Hunts Mental Health Team,Supported Living
Cambridgeshire County Council,02-Jul-21,51301598627,824.63,CARDINAL GATE 55,CARE ESTABLISHMENT,AMH - Hunts & Fens,Hunts Mental Health Team,Supported Living
Cambridgeshire County Council,02-Jul-21,51301598627,824.63,CARDINAL GATE 55,CARE ESTABLISHMENT,AMH - Hunts & Fens,Hunts Mental Health Team,Supported Living
Cambridgeshire County Council,02-Jul-21,51301598627,824.63,CARDINAL GATE 55,CARE ESTABLISHMENT,AMH - Hunts & Fens,Hunts Mental Health Team,Supported Living
Cambridgeshire County Council,02-Jul-21,51301598627,824.63,CARDINAL GATE 55,CARE ESTABLISHMENT,AMH - Hunts & Fens,Hunts Mental Health Team,Supported Living
Cambridgeshire County Council,02-Jul-21,51301598627,824.63,CARDINAL GATE 55,CARE ESTABLISHMENT,AMH - Hunts & Fens,Hunts Mental Health Team,Supported Living
Cambridgeshire County Council,02-Jul-21,51301598627,824.63,CARDINAL GATE 55,CARE ESTABLISHMENT,AMH - Hunts & Fens,Hunts Mental Health Team,Supported Living
Cambridgeshire County Council,02-Jul-21,51301598627,824.63,CARDINAL GATE 55,CARE ESTABLISHMENT,AMH - Hunts & Fens,Hunts Mental Health Team,Supported Living
Cambridgeshire County Council,02-Jul-21,51301598627,824.63,CARDINAL GATE 55,CARE ESTABLISHMENT,AMH - Hunts & Fens,Hunts Mental Health Team,Supported Living
Cambridgeshire County Council,02-Jul-21,51301598627,824.63,CARDINAL GATE 55,CARE ESTABLISHMENT,AMH - Hunts & Fens,Hunts Mental Health Team,Supported Living
Cambridgeshire County Council,02-Jul-21,51301598627,824.63,CARDINAL GATE 55,CARE ESTABLISHMENT,AMH - Hunts & Fens,Hunts Mental Health Team,Supported Living
Cambridgeshire County Council,02-Jul-21,51301598627,824.63,CARDINAL GATE 55,CARE ESTABLISHMENT,AMH - Hunts & Fens,Hunts Mental Health Team,Supported Living
Cambridgeshire County Council,02-Jul-21,51301598627,824.63,CARDINAL GATE 55,CARE ESTABLISHMENT,AMH - Hunts & Fens,Hunts Mental Health Team,Supported Living
Cambridgeshire County Council,02-Jul-21,51301598627,824.63,CARDINAL GATE 55,CARE ESTABLISHMENT,AMH - Hunts & Fens,Hunts Mental Health Team,Supported Living
Cambridgeshire County Council,02-Jul-21,51301598627,824.63,CARDINAL GATE 55,CARE ESTABLISHMENT,AMH - Hunts & Fens,Hunts Mental Health Team,Supported Living
Cambridgeshire County Council,02-Jul-21,51301598627,824.63,CARDINAL GATE 55,CARE ESTABLISHMENT,AMH - Hunts & Fens,Hunts Mental Health Team,Supported Living
Cambridgeshire County Council,02-Jul-21,51301598627,824.63,CARDINAL GATE 55,CARE ESTABLISHMENT,AMH - Hunts & Fens,Hunts Mental Health Team,Supported Living
Cambridgeshire County Council,02-Jul-21,51301598627,824.63,CARDINAL GATE 55,CARE ESTABLISHMENT,AMH - Hunts & Fens,Hunts Mental Health Team,Supported Living
Cambridgeshire County Council,02-Jul-21,51301598627,824.63,CARDINAL GATE 55,CARE ESTABLISHMENT,AMH - Hunts & Fens,Hunts Mental Health Team,Supported Living
Cambridgeshire County Council,02-Jul-21,51301598627,824.63,CARDINAL GATE 55,CARE ESTABLISHMENT,AMH - Hunts & Fens,Hunts Mental Health Team,Supported Living
Cambridgeshire County Council,02-Jul-21,51301598627,824.63,CARDINAL GATE 55,CARE ESTABLISHMENT,AMH - Hunts & Fens,Hunts Mental Health Team,Supported Living
Cambridgeshire County Council,02-Jul-21,51301598627,824.63,CARDINAL GATE 55,CARE ESTABLISHMENT,AMH - Hunts & Fens,Hunts Mental Health Team,Supported Living
Cambridgeshire County Council,02-Jul-21,51301598627,824.63,CARDINAL GATE 55,CARE ESTABLISHMENT,AMH - Hunts & Fens,Hunts Mental Health Team,Supported Living
Cambridgeshire County Council,02-Jul-21,51301598627,824.63,CARDINAL GATE 55,CARE ESTABLISHMENT,AMH - Hunts & Fens,Hunts Mental Health Team,Supported Living
Cambridgeshire County Council,02-Jul-21,51301598627,824.63,CARDINAL GATE 55,CARE ESTABLISHMENT,AMH - Hunts & Fens,Hunts Mental Health Team,Supported Living
Cambridgeshire County Council,02-Jul-21,51301598627,824.63,CARDINAL GATE 55,CARE ESTABLISHMENT,AMH - Hunts & Fens,Hunts Mental Health Team,Supported Living
Cambridgeshire County Council,02-Jul-21,51301598627,824.63,CARDINAL GATE 55,CARE ESTABLISHMENT,AMH - Hunts & Fens,Hunts Mental Health Team,Supported Living
Cambridgeshire County Council,02-Jul-21,51301598627,824.63,CARDINAL GATE 55,CARE ESTABLISHMENT,AMH - Hunts & Fens,Hunts Mental Health Team,Supported Living
Cambridgeshire County Council,02-Jul-21,51301598627,824.63,CARDINAL GATE 55,CARE ESTABLISHMENT,AMH - Hunts & Fens,Hunts Mental Health Team,Supported Living
Cambridgeshire County Council,02-Jul-21,51301598627,824.63,CARDINAL GATE 55,CARE ESTABLISHMENT,AMH - Hunts & Fens,Hunts Mental Health Team,Supported Living
Cambridgeshire County Council,02-Jul-21,51301598627,824.63,CARDINAL GATE 55,CARE ESTABLISHMENT,AMH - Hunts & Fens,Hunts Mental Health Team,Supported Living
Cambridgeshire County Council,02-Jul-21,51301598627,824.63,CARDINAL GATE 55,CARE ESTABLISHMENT,AMH - Hunts & Fens,Hunts Mental Health Team,Supported Living
Cambridgeshire County Council,02-Jul-21,51301598627,824.63,CARDINAL GATE 55,CARE ESTABLISHMENT,AMH - Hunts & Fens,Hunts Mental Health Team,Supported Living
Cambridgeshire County Council,02-Jul-21,51301598627,824.63,CARDINAL GATE 55,CARE ESTABLISHMENT,AMH - Hunts & Fens,Hunts Mental Health Team,Supported Living
Cambridgeshire County Council,02-Jul-21,51301598627,824.63,CARDINAL GATE 55,CARE ESTABLISHMENT,AMH - Hunts & Fens,Hunts Mental Health Team,Supported Living
Cambridgeshire County Council,02-Jul-21,51301598627,824.63,CARDINAL GATE 55,CARE ESTABLISHMENT,AMH - Hunts & Fens,Hunts Mental Health Team,Supported Living
Cambridgeshire County Council,02-Jul-21,51301598627,824.63,CARDINAL GATE 55,CARE ESTABLISHMENT,AMH - Hunts & Fens,Hunts Mental Health Team,Supported Living
Cambridgeshire County Council,02-Jul-21,51301598627,824.63,CARDINAL GATE 55,CARE ESTABLISHMENT,AMH - Hunts & Fens,Hunts Mental Health Team,Supported Living
Cambridgeshire County Council,02-Jul-21,51301598627,824.63,CARDINAL GATE 55,CARE ESTABLISHMENT,AMH - Hunts & Fens,Hunts Mental Health Team,Supported Living
Cambridgeshire County Council,02-Jul-21,51301598627,824.63,CARDINAL GATE 55,CARE ESTABLISHMENT,AMH - Hunts & Fens,Hunts Mental Health Team,Supported Living
Cambridgeshire County Council,02-Jul-21,51301598627,824.63,CARDINAL GATE 55,CARE ESTABLISHMENT,AMH - Hunts & Fens,Hunts Mental Health Team,Supported Living
Cambridgeshire County Council,02-Jul-21,51301598616,845.96,CARDINAL GATE 55,CARE ESTABLISHMENT,AMH - Hunts & Fens,Hunts Mental Health Team,Supported Living
Cambridgeshire County Council,02-Jul-21,51301598616,845.96,CARDINAL GATE 55,CARE ESTABLISHMENT,AMH - Hunts & Fens,Hunts Mental Health Team,Supported Living
Cambridgeshire County Council,02-Jul-21,51301598616,845.96,CARDINAL GATE 55,CARE ESTABLISHMENT,AMH - Hunts & Fens,Hunts Mental Health Team,Supported Living
Cambridgeshire County Council,02-Jul-21,51301598616,845.96,CARDINAL GATE 55,CARE ESTABLISHMENT,AMH - Hunts & Fens,Hunts Mental Health Team,Supported Living
Cambridgeshire County Council,02-Jul-21,51301598616,845.96,CARDINAL GATE 55,CARE ESTABLISHMENT,AMH - Hunts & Fens,Hunts Mental Health Team,Supported Living
Cambridgeshire County Council,02-Jul-21,51301598616,845.96,CARDINAL GATE 55,CARE ESTABLISHMENT,AMH - Hunts & Fens,Hunts Mental Health Team,Supported Living
Cambridgeshire County Council,02-Jul-21,51301598616,845.96,CARDINAL GATE 55,CARE ESTABLISHMENT,AMH - Hunts & Fens,Hunts Mental Health Team,Supported Living
Cambridgeshire County Council,02-Jul-21,51301598616,845.96,CARDINAL GATE 55,CARE ESTABLISHMENT,AMH - Hunts & Fens,Hunts Mental Health Team,Supported Living
Cambridgeshire County Council,02-Jul-21,51301598616,845.96,CARDINAL GATE 55,CARE ESTABLISHMENT,AMH - Hunts & Fens,Hunts Mental Health Team,Supported Living
Cambridgeshire County Council,02-Jul-21,51301598616,845.96,CARDINAL GATE 55,CARE ESTABLISHMENT,AMH - Hunts & Fens,Hunts Mental Health Team,Supported Living
Cambridgeshire County Council,02-Jul-21,51301598616,845.96,CARDINAL GATE 55,CARE ESTABLISHMENT,AMH - Hunts & Fens,Hunts Mental Health Team,Supported Living
Cambridgeshire County Council,02-Jul-21,51301598616,845.96,CARDINAL GATE 55,CARE ESTABLISHMENT,AMH - Hunts & Fens,Hunts Mental Health Team,Supported Living
Cambridgeshire County Council,02-Jul-21,51301598616,845.96,CARDINAL GATE 55,CARE ESTABLISHMENT,AMH - Hunts & Fens,Hunts Mental Health Team,Supported Living
Cambridgeshire County Council,02-Jul-21,51301598616,845.96,CARDINAL GATE 55,CARE ESTABLISHMENT,AMH - Hunts & Fens,Hunts Mental Health Team,Supported Living
Cambridgeshire County Council,02-Jul-21,51301598616,845.96,CARDINAL GATE 55,CARE ESTABLISHMENT,AMH - Hunts & Fens,Hunts Mental Health Team,Supported Living
Cambridgeshire County Council,02-Jul-21,51301598616,845.96,CARDINAL GATE 55,CARE ESTABLISHMENT,AMH - Hunts & Fens,Hunts Mental Health Team,Supported Living
Cambridgeshire County Council,02-Jul-21,51301598616,845.96,CARDINAL GATE 55,CARE ESTABLISHMENT,AMH - Hunts & Fens,Hunts Mental Health Team,Supported Living
Cambridgeshire County Council,02-Jul-21,51301598616,845.96,CARDINAL GATE 55,CARE ESTABLISHMENT,AMH - Hunts & Fens,Hunts Mental Health Team,Supported Living
Cambridgeshire County Council,02-Jul-21,51301598616,845.96,CARDINAL GATE 55,CARE ESTABLISHMENT,AMH - Hunts & Fens,Hunts Mental Health Team,Supported Living
Cambridgeshire County Council,02-Jul-21,51301598627,881.02,CARDINAL GATE 55,CARE ESTABLISHMENT,AMH - Hunts & Fens,Hunts Mental Health Team,Supported Living
Cambridgeshire County Council,02-Jul-21,51301598627,881.02,CARDINAL GATE 55,CARE ESTABLISHMENT,AMH - Hunts & Fens,Hunts Mental Health Team,Supported Living
Cambridgeshire County Council,02-Jul-21,51301598777,"1,019.52",LGSS LAW LTD,TRADE SUPPLIER,Insurance Fund,Liability,Insurance Claims Paid
Cambridgeshire County Council,02-Jul-21,51301586195,"1,050.00",Psychology Direct Ltd,EDUCATION,SEND Specialist Services - Education Psychology,SEND Specialist Services - Education Psychology,Professional Fees and Hired Services
Cambridgeshire County Council,02-Jul-21,51301598606,"1,084.22",TMP (UK) LTD T/A TMP WORLDWIDE,TRADE SUPPLIER,Permitting,TTRO Orders,Advertising / Publicity (non Recruitment)
Cambridgeshire County Council,02-Jul-21,51301598608,"1,143.55",TMP (UK) LTD T/A TMP WORLDWIDE,TRADE SUPPLIER,Permitting,TTRO Orders,Advertising / Publicity (non Recruitment)
Cambridgeshire County Council,02-Jul-21,51301598694,"1,200.00",TRUMPINGTON PARK PRIMARY SCHOOL,EDUCATION,EY - Oasis,Trumpington Park Early Years,Electricity
Cambridgeshire County Council,02-Jul-21,51301598695,"1,200.00",TRUMPINGTON PARK PRIMARY SCHOOL,EDUCATION,EY - Oasis,Trumpington Park Early Years,Electricity
Cambridgeshire County Council,02-Jul-21,51301593067,"1,217.99",DODDINGTON PARISH COUNCIL,OTHER PUBLIC BODIES,Highways Maintenance,Highways Maintenance - Works,Village Maintenance
Cambridgeshire County Council,02-Jul-21,51301593066,"1,232.83",COMBERTON PARISH COUNCIL,OTHER PUBLIC BODIES,Highways Maintenance,Highways Maintenance - Works,Village Maintenance
Cambridgeshire County Council,02-Jul-21,51301585109,"1,296.00",Matchtech,COMPANY,PD - General,Major Infrastructure Delivery,Agency Staff
Cambridgeshire County Council,02-Jul-21,51301598602,"1,330.00",Counselling Solutions,COMPANY,Regional Adoption Agency,Adoption Support Fund,Professional Fees and Hired Services
Cambridgeshire County Council,02-Jul-21,51301598775,"1,384.00",Adoptionplus,CARE ESTABLISHMENT,Regional Adoption Agency,Regional Adoption Agency,Professional Fees and Hired Services
Cambridgeshire County Council,02-Jul-21,51301598601,"1,555.20",FRESH START IN EDUCATION,CARE ESTABLISHMENT,Out of School Tuition,Out of School Provision - Education and Settings,Independent School Placements
Cambridgeshire County Council,02-Jul-21,51301598622,"1,636.37",THE EDMUND TRUST,CARE ESTABLISHMENT,LD - East Locality - Cost of Care,LD - East Cambs - Care,Supported Living
Cambridgeshire County Council,02-Jul-21,51301598622,"1,636.37",THE EDMUND TRUST,CARE ESTABLISHMENT,LD - East Locality - Cost of Care,LD - East Cambs - Care,Supported Living
Cambridgeshire County Council,02-Jul-21,51301598622,"1,636.37",THE EDMUND TRUST,CARE ESTABLISHMENT,LD - East Locality - Cost of Care,LD - East Cambs - Care,Supported Living
Cambridgeshire County Council,02-Jul-21,51301598622,"1,636.37",THE EDMUND TRUST,CARE ESTABLISHMENT,LD - East Locality - Cost of Care,LD - East Cambs - Care,Supported Living
Cambridgeshire County Council,02-Jul-21,51301598622,"1,636.37",THE EDMUND TRUST,CARE ESTABLISHMENT,LD - East Locality - Cost of Care,LD - East Cambs - Care,Supported Living
Cambridgeshire County Council,02-Jul-21,51301598622,"1,636.37",THE EDMUND TRUST,CARE ESTABLISHMENT,LD - East Locality - Cost of Care,LD - East Cambs - Care,Supported Living
Cambridgeshire County Council,02-Jul-21,51301598622,"1,636.37",THE EDMUND TRUST,CARE ESTABLISHMENT,LD - East Locality - Cost of Care,LD - East Cambs - Care,Supported Living
Cambridgeshire County Council,02-Jul-21,51301598622,"1,636.37",THE EDMUND TRUST,CARE ESTABLISHMENT,LD - East Locality - Cost of Care,LD - East Cambs - Care,Supported Living
Cambridgeshire County Council,02-Jul-21,51301598622,"1,636.37",THE EDMUND TRUST,CARE ESTABLISHMENT,LD - East Locality - Cost of Care,LD - East Cambs - Care,Supported Living
Cambridgeshire County Council,02-Jul-21,51301598622,"1,636.37",THE EDMUND TRUST,CARE ESTABLISHMENT,LD - East Locality - Cost of Care,LD - East Cambs - Care,Supported Living
Cambridgeshire County Council,02-Jul-21,51301598622,"1,636.37",THE EDMUND TRUST,CARE ESTABLISHMENT,LD - East Locality - Cost of Care,LD - East Cambs - Care,Supported Living
Cambridgeshire County Council,02-Jul-21,51301586367,"2,167.87",Computer Futures,PARTNERSHIP,PH Public Health Directorate,Public Health Strategic Management,Agency Staff
Cambridgeshire County Council,02-Jul-21,51301598634,"2,220.00",Redacted Personal Data,INDIVIDUAL,OP - City & South Locality - Cost of Care,Older People - City & South - Care,Direct Payments
Cambridgeshire County Council,02-Jul-21,51301598684,"2,534.40",Tutor Doctor,EDUCATION,Out of School Tuition,Out of School Provision - Education and Settings,Independent School Placements
Cambridgeshire County Council,02-Jul-21,51301598593,"2,576.00",PRIORY HOSPITAL SCHOOL,EDUCATION,Recoupment,Procurement - Out-County Hospitals,Independent School Placements
Cambridgeshire County Council,02-Jul-21,51301586505,"2,691.00",PRESTIGE GIFTWARE LTD,TRADE SUPPLIER,Road Safety,"Education, Training and Publicity",Educational Materials
Cambridgeshire County Council,02-Jul-21,51301598769,"2,904.00",G-MAP Services Ltd,CARE ESTABLISHMENT,LAC Placements,Placements - residential disability,Agency Placements - Out of  County
Cambridgeshire County Council,02-Jul-21,51301584912,"2,932.50",Matchtech,COMPANY,PD - General,Major Infrastructure Delivery,Agency Staff
Cambridgeshire County Council,02-Jul-21,51301584915,"2,940.00",Matchtech,COMPANY,PD - General,Major Infrastructure Delivery,Agency Staff
Cambridgeshire County Council,02-Jul-21,51301598596,"3,040.00",Elysium Health Care Ltd,EDUCATION,Recoupment,Procurement - Out-County Hospitals,Independent School Placements
Cambridgeshire County Council,02-Jul-21,51301598714,"3,236.79",ST CHRISTOPHER'S FELLOWSHIP,CARE ESTABLISHMENT,LAC Placements,Placements - independent fostering,Agency Placements - In County
Cambridgeshire County Council,02-Jul-21,51301598594,"3,325.00",ELLERN MEDE SCHOOL,EDUCATION,Recoupment,Procurement - Out-County Hospitals,Independent School Placements
Cambridgeshire County Council,02-Jul-21,51301598709,"3,502.50",KASPER LTD,CARE ESTABLISHMENT,LAC Placements,Placements - independent fostering,Agency Placements - Out of  County
Cambridgeshire County Council,02-Jul-21,51301598719,"3,510.00",Affinity Fostering Services Ltd,CARE ESTABLISHMENT,LAC Placements,Placements - independent fostering,Agency Placements - Out of  County
Cambridgeshire County Council,02-Jul-21,51301598717,"3,510.00",Affinity Fostering Services Ltd,CARE ESTABLISHMENT,LAC Placements,Placements - independent fostering,Agency Placements - Out of  County
Cambridgeshire County Council,02-Jul-21,51301598721,"3,510.00",Affinity Fostering Services Ltd,CARE ESTABLISHMENT,LAC Placements,Placements - independent fostering,Agency Placements - Out of  County
Cambridgeshire County Council,02-Jul-21,51301598731,"3,575.40",FUTURES FOR CHILDREN LTD,CARE ESTABLISHMENT,LAC Placements,Placements - independent fostering,Agency Placements - Out of  County
Cambridgeshire County Council,02-Jul-21,51301598716,"3,600.00",ST CHRISTOPHER'S FELLOWSHIP,CARE ESTABLISHMENT,LAC Placements,Placements - independent fostering,Agency Placements - Out of  County
Cambridgeshire County Council,02-Jul-21,51301598738,"3,660.00",CREDO CARE,CARE ESTABLISHMENT,LAC Placements,Placements - independent fostering,Agency Placements - Out of  County
Cambridgeshire County Council,02-Jul-21,51301585107,"3,758.24",Matchtech,COMPANY,PD - General,Major Infrastructure Delivery,Agency Staff
Cambridgeshire County Council,02-Jul-21,51301598588,"3,857.14",Affinity Fostering Services Ltd,CARE ESTABLISHMENT,LAC Placements,Placements - independent fostering,Agency Placements - Out of  County
Cambridgeshire County Council,02-Jul-21,51301598726,"3,857.14",Affinity Fostering Services Ltd,CARE ESTABLISHMENT,LAC Placements,Placements - independent fostering,Agency Placements - Out of  County
Cambridgeshire County Council,02-Jul-21,51301586369,"3,981.60",INSIGHT DIRECT (UK) LTD,TRADE SUPPLIER,Corporate IT Managed,Hardware & Infrastructure,Computer hardware - purchase
Cambridgeshire County Council,02-Jul-21,51301598711,"4,264.29",MOSAIC FOSTER CARE LTD,CARE ESTABLISHMENT,LAC Placements,Placements - independent fostering,Agency Placements - Out of  County
Cambridgeshire County Council,02-Jul-21,51301586446,"4,639.95",SAVILLS COMMERCIAL LTD,TRADE SUPPLIER,Grafham Water,Grafham Water Centre,Rents and Leases
Cambridgeshire County Council,02-Jul-21,51301598739,"4,714.29",CREDO CARE,CARE ESTABLISHMENT,LAC Placements,Placements - independent fostering,Agency Placements - Out of  County
Cambridgeshire County Council,02-Jul-21,51301598733,"4,774.00",Crystal Care Solutions Ltd,CARE ESTABLISHMENT,LAC Placements,Placements - residential disability,Agency Placements - Out of  County
Cambridgeshire County Council,02-Jul-21,51301598734,"4,774.00",Crystal Care Solutions Ltd,CARE ESTABLISHMENT,LAC Placements,Placements - residential disability,Agency Placements - Out of  County
Cambridgeshire County Council,02-Jul-21,51301598732,"4,774.00",Crystal Care Solutions Ltd,CARE ESTABLISHMENT,LAC Placements,Placements - residential disability,Agency Placements - Out of  County
Cambridgeshire County Council,02-Jul-21,51301598729,"4,950.71",Regional Fostering Services Ltd,CARE ESTABLISHMENT,LAC Placements,Placements - independent fostering,Agency Placements - Out of  County
Cambridgeshire County Council,02-Jul-21,51301598761,"5,592.00",CREDO CARE,CARE ESTABLISHMENT,LAC Placements,Placements - independent fostering,Agency Placements - Out of  County
Cambridgeshire County Council,02-Jul-21,51301584917,"5,637.60",Matchtech,COMPANY,PD - General,Major Infrastructure Delivery,Agency Staff
Cambridgeshire County Council,02-Jul-21,51301598768,"5,991.43",CREDO CARE,CARE ESTABLISHMENT,LAC Placements,Placements - independent fostering,Agency Placements - Out of  County
Cambridgeshire County Council,02-Jul-21,51301598755,"5,991.43",CREDO CARE,CARE ESTABLISHMENT,LAC Placements,Placements - independent fostering,Agency Placements - Out of  County
Cambridgeshire County Council,02-Jul-21,51301598751,"5,991.43",CREDO CARE,CARE ESTABLISHMENT,LAC Placements,Placements - independent fostering,Agency Placements - Out of  County
Cambridgeshire County Council,02-Jul-21,51301598765,"5,991.43",CREDO CARE,CARE ESTABLISHMENT,LAC Placements,Placements - independent fostering,Agency Placements - Out of  County
Cambridgeshire County Council,02-Jul-21,51301598741,"5,991.43",CREDO CARE,CARE ESTABLISHMENT,LAC Placements,Placements - independent fostering,Agency Placements - Out of  County
Cambridgeshire County Council,02-Jul-21,51301598745,"5,991.43",CREDO CARE,CARE ESTABLISHMENT,LAC Placements,Placements - independent fostering,Agency Placements - Out of  County
Cambridgeshire County Council,02-Jul-21,51301598749,"6,191.14",CREDO CARE,CARE ESTABLISHMENT,LAC Placements,Placements - independent fostering,Agency Placements - Out of  County
Cambridgeshire County Council,02-Jul-21,51301598743,"6,191.14",CREDO CARE,CARE ESTABLISHMENT,LAC Placements,Placements - independent fostering,Agency Placements - Out of  County
Cambridgeshire County Council,02-Jul-21,51301598747,"6,191.14",CREDO CARE,CARE ESTABLISHMENT,LAC Placements,Placements - independent fostering,Agency Placements - Out of  County
Cambridgeshire County Council,02-Jul-21,51301598767,"6,191.14",CREDO CARE,CARE ESTABLISHMENT,LAC Placements,Placements - independent fostering,Agency Placements - Out of  County
Cambridgeshire County Council,02-Jul-21,51301598763,"6,191.14",CREDO CARE,CARE ESTABLISHMENT,LAC Placements,Placements - independent fostering,Agency Placements - Out of  County
Cambridgeshire County Council,02-Jul-21,51301598753,"6,191.14",CREDO CARE,CARE ESTABLISHMENT,LAC Placements,Placements - independent fostering,Agency Placements - Out of  County
Cambridgeshire County Council,02-Jul-21,51301598759,"6,191.14",CREDO CARE,CARE ESTABLISHMENT,LAC Placements,Placements - independent fostering,Agency Placements - Out of  County
Cambridgeshire County Council,02-Jul-21,51301598757,"6,191.14",CREDO CARE,CARE ESTABLISHMENT,LAC Placements,Placements - independent fostering,Agency Placements - Out of  County
Cambridgeshire County Council,02-Jul-21,51301598774,"6,428.57",CALDECOTT FOSTERING LTD,CARE ESTABLISHMENT,LAC Placements,Placements - independent fostering,Agency Placements - Out of  County
Cambridgeshire County Council,02-Jul-21,51301598773,"6,428.70",CALDECOTT FOSTERING LTD,CARE ESTABLISHMENT,LAC Placements,Placements - independent fostering,Agency Placements - Out of  County
Cambridgeshire County Council,02-Jul-21,51301598128,"6,900.00",Ackerman Pierce Limited,COMPANY,Out of School Tuition,Out of School Provision - Education and Settings,Independent School Placements
Cambridgeshire County Council,02-Jul-21,51301585075,"7,200.00",ATKINS LTD,COMPANY,TIPF - Strategy & Scheme Dev,TIPF - Strategy & Scheme Dev,Construction - External Professional Fees
Cambridgeshire County Council,02-Jul-21,51301597435,"9,000.00",Ackerman Pierce Limited,COMPANY,Out of School Tuition,Out of School Provision - Education and Settings,Independent School Placements
Cambridgeshire County Council,02-Jul-21,51301584819,"9,576.00",Panoramic Associates,COMPANY,PH COMF,PH - Contain Outbreak Management Fund,Agency Staff
Cambridgeshire County Council,02-Jul-21,51301584815,"10,032.00",Panoramic Associates,COMPANY,PH COMF,PH - Contain Outbreak Management Fund,Agency Staff
Cambridgeshire County Council,02-Jul-21,51301598772,"10,378.19",MJ Children�s Services,CARE ESTABLISHMENT,LAC Placements,Placements - residential disability,Agency Placements - In County
Cambridgeshire County Council,02-Jul-21,51301598565,"10,825.67",LGSS LAW LTD,TRADE SUPPLIER,School Organisation and Planning,PPOS - Admissions Service,External Legal Fees
Cambridgeshire County Council,02-Jul-21,51301598771,"11,400.00",MJ Children�s Services,CARE ESTABLISHMENT,LAC Placements,Placements - residential disability,Agency Placements - In County
Cambridgeshire County Council,02-Jul-21,51301598585,"13,356.00",Westgate Construction (Hereford) Limited,COMPANY,Highways Development Management,Section 278 Deposits,Developers Funds
Cambridgeshire County Council,02-Jul-21,51301598728,"13,714.29",Florinee Homes Ltd,CARE ESTABLISHMENT,LAC Placements,Placements - residential homes,Agency Placements - In County
Cambridgeshire County Council,02-Jul-21,51301598736,"17,807.14",NEW REFLEXIONS REFLEXION CARE GROUP,CARE ESTABLISHMENT,LAC Placements,Placements - residential homes,Agency Placements - Out of  County
Cambridgeshire County Council,02-Jul-21,51301598730,"18,835.20",4D CARE LIMITED,CARE ESTABLISHMENT,LAC Placements,Placements - residential schools,Agency Placements - In County
Cambridgeshire County Council,02-Jul-21,51301598770,"19,285.50",Higher Hopes Ltd,CARE ESTABLISHMENT,LAC Placements,Placements - residential homes,Agency Placements - In County
Cambridgeshire County Council,02-Jul-21,51301598708,"19,950.00",Active Ark Ltd,CARE ESTABLISHMENT,LAC Placements,Placements - residential homes,Agency Placements - Out of  County
Cambridgeshire County Council,02-Jul-21,51301598707,"19,950.00",Active Ark Ltd,CARE ESTABLISHMENT,LAC Placements,Placements - residential homes,Agency Placements - Out of  County
Cambridgeshire County Council,02-Jul-21,51301598735,"20,225.40",Channels and Choices Ltd,CARE ESTABLISHMENT,LAC Placements,Placements - residential homes,Agency Placements - Out of  County
Cambridgeshire County Council,02-Jul-21,51301598737,"20,614.40",Sankofa Care Ltd,CARE ESTABLISHMENT,LAC Placements,Placements - residential homes,Agency Placements - In County
Cambridgeshire County Council,02-Jul-21,51301592987,"21,345.00",PETERBOROUGH WOMENS AID,CHARITY,Domestic Violence & Sexual Violence,CADA Grant,Grants and Support for other Service Users
Cambridgeshire County Council,02-Jul-21,51301598706,"24,128.57",Childhood First,CARE ESTABLISHMENT,LAC Placements,Placements - residential homes,Agency Placements - Out of  County
Cambridgeshire County Council,02-Jul-21,51301598712,"30,526.20",Cascade (Banks House) Ltd,CARE ESTABLISHMENT,LAC Placements,Placements - residential disability,Agency Placements - In County
Cambridgeshire County Council,02-Jul-21,51301598614,"31,881.96",Beaumont HEALTHCARE LTD,CARE ESTABLISHMENT,Commissioning - Dom Cars,Hancock-Funded Dom-Cars,Domiciliary Care
Cambridgeshire County Council,02-Jul-21,51301598683,"39,759.80",MOTT MACDONALD LTD,TRADE SUPPLIER,GCP - Cambourne to Cambridge (A428),GCP - Cambourne to Cambridge (A428),Construction - External Professional Fees
Cambridgeshire County Council,02-Jul-21,51301598636,"41,064.60",MOTT MACDONALD LTD,TRADE SUPPLIER,GCP - Cambridge South East (A1307),GCP - Cambridge South East (A1307),Construction - External Professional Fees
Cambridgeshire County Council,02-Jul-21,51301598604,"151,188.59","Change, Grow, Live  Services Ltd",COMPANY,Safeguarding East & South Cambs and Cambridge,Family Safeguarding,Grants and Support for other Service Users
Cambridgeshire County Council,05-Jul-21,51301599508,"-3,663.39",Eastern Family Services Ltd t/a Eastern Fostering Services,CARE ESTABLISHMENT,LAC Placements,Placements - independent fostering,Agency Placements - In County
Cambridgeshire County Council,05-Jul-21,51301599132,"-3,442.39",CONIFER LODGE,CARE ESTABLISHMENT,LD - South Locality - Cost of Care,LD - South Cambs - Care,Residential Care
Cambridgeshire County Council,05-Jul-21,51301599132,"-3,442.39",CONIFER LODGE,CARE ESTABLISHMENT,LD - South Locality - Cost of Care,LD - South Cambs - Care,Residential Care
Cambridgeshire County Council,05-Jul-21,51301599132,"-3,442.39",CONIFER LODGE,CARE ESTABLISHMENT,LD - South Locality - Cost of Care,LD - South Cambs - Care,Residential Care
Cambridgeshire County Council,05-Jul-21,51301599132,"-3,442.39",CONIFER LODGE,CARE ESTABLISHMENT,LD - South Locality - Cost of Care,LD - South Cambs - Care,Residential Care
Cambridgeshire County Council,05-Jul-21,51301599132,"-3,442.39",CONIFER LODGE,CARE ESTABLISHMENT,LD - South Locality - Cost of Care,LD - South Cambs - Care,Residential Care
Cambridgeshire County Council,05-Jul-21,51301599132,"-3,442.39",CONIFER LODGE,CARE ESTABLISHMENT,LD - South Locality - Cost of Care,LD - South Cambs - Care,Residential Care
Cambridgeshire County Council,05-Jul-21,51301599132,"-3,442.39",CONIFER LODGE,CARE ESTABLISHMENT,LD - South Locality - Cost of Care,LD - South Cambs - Care,Residential Care
Cambridgeshire County Council,05-Jul-21,51301599132,"-3,442.39",CONIFER LODGE,CARE ESTABLISHMENT,LD - South Locality - Cost of Care,LD - South Cambs - Care,Residential Care
Cambridgeshire County Council,05-Jul-21,51301599132,"-3,442.39",CONIFER LODGE,CARE ESTABLISHMENT,LD - South Locality - Cost of Care,LD - South Cambs - Care,Residential Care
Cambridgeshire County Council,05-Jul-21,51301599132,"-3,442.39",CONIFER LODGE,CARE ESTABLISHMENT,LD - South Locality - Cost of Care,LD - South Cambs - Care,Residential Care
Cambridgeshire County Council,05-Jul-21,51301599132,"-3,442.39",CONIFER LODGE,CARE ESTABLISHMENT,LD - South Locality - Cost of Care,LD - South Cambs - Care,Residential Care
Cambridgeshire County Council,05-Jul-21,51301599132,"-3,442.39",CONIFER LODGE,CARE ESTABLISHMENT,LD - South Locality - Cost of Care,LD - South Cambs - Care,Residential Care
Cambridgeshire County Council,05-Jul-21,51301599132,"-3,442.39",CONIFER LODGE,CARE ESTABLISHMENT,LD - South Locality - Cost of Care,LD - South Cambs - Care,Residential Care
Cambridgeshire County Council,05-Jul-21,51301599132,"-3,442.39",CONIFER LODGE,CARE ESTABLISHMENT,LD - South Locality - Cost of Care,LD - South Cambs - Care,Residential Care
Cambridgeshire County Council,05-Jul-21,51301599132,"-3,442.39",CONIFER LODGE,CARE ESTABLISHMENT,LD - South Locality - Cost of Care,LD - South Cambs - Care,Residential Care
Cambridgeshire County Council,05-Jul-21,51301599132,"-3,442.39",CONIFER LODGE,CARE ESTABLISHMENT,LD - South Locality - Cost of Care,LD - South Cambs - Care,Residential Care
Cambridgeshire County Council,05-Jul-21,51301599132,"-3,442.39",CONIFER LODGE,CARE ESTABLISHMENT,LD - South Locality - Cost of Care,LD - South Cambs - Care,Residential Care
Cambridgeshire County Council,05-Jul-21,51301599132,"-3,442.39",CONIFER LODGE,CARE ESTABLISHMENT,LD - South Locality - Cost of Care,LD - South Cambs - Care,Residential Care
Cambridgeshire County Council,05-Jul-21,51301599132,"-3,442.39",CONIFER LODGE,CARE ESTABLISHMENT,LD - South Locality - Cost of Care,LD - South Cambs - Care,Residential Care
Cambridgeshire County Council,05-Jul-21,51301599132,"-3,442.39",CONIFER LODGE,CARE ESTABLISHMENT,LD - South Locality - Cost of Care,LD - South Cambs - Care,Residential Care
Cambridgeshire County Council,05-Jul-21,51301599132,"-3,442.39",CONIFER LODGE,CARE ESTABLISHMENT,LD - South Locality - Cost of Care,LD - South Cambs - Care,Residential Care
Cambridgeshire County Council,05-Jul-21,51301599132,"-3,442.39",CONIFER LODGE,CARE ESTABLISHMENT,LD - South Locality - Cost of Care,LD - South Cambs - Care,Residential Care
Cambridgeshire County Council,05-Jul-21,51301599132,"-3,442.39",CONIFER LODGE,CARE ESTABLISHMENT,LD - South Locality - Cost of Care,LD - South Cambs - Care,Residential Care
Cambridgeshire County Council,05-Jul-21,51301599132,"-3,442.39",CONIFER LODGE,CARE ESTABLISHMENT,LD - South Locality - Cost of Care,LD - South Cambs - Care,Residential Care
Cambridgeshire County Council,05-Jul-21,51301599132,"-3,442.39",CONIFER LODGE,CARE ESTABLISHMENT,LD - South Locality - Cost of Care,LD - South Cambs - Care,Residential Care
Cambridgeshire County Council,05-Jul-21,51301599132,"-3,442.39",CONIFER LODGE,CARE ESTABLISHMENT,LD - South Locality - Cost of Care,LD - South Cambs - Care,Residential Care
Cambridgeshire County Council,05-Jul-21,51301599132,"-3,442.39",CONIFER LODGE,CARE ESTABLISHMENT,LD - South Locality - Cost of Care,LD - South Cambs - Care,Residential Care
Cambridgeshire County Council,05-Jul-21,51301599132,"-3,442.39",CONIFER LODGE,CARE ESTABLISHMENT,LD - South Locality - Cost of Care,LD - South Cambs - Care,Residential Care
Cambridgeshire County Council,05-Jul-21,51301599132,"-3,442.39",CONIFER LODGE,CARE ESTABLISHMENT,LD - South Locality - Cost of Care,LD - South Cambs - Care,Residential Care
Cambridgeshire County Council,05-Jul-21,51301599132,"-3,442.39",CONIFER LODGE,CARE ESTABLISHMENT,LD - South Locality - Cost of Care,LD - South Cambs - Care,Residential Care
Cambridgeshire County Council,05-Jul-21,51301599132,"-3,442.39",CONIFER LODGE,CARE ESTABLISHMENT,LD - South Locality - Cost of Care,LD - South Cambs - Care,Residential Care
Cambridgeshire County Council,05-Jul-21,51301599132,"-3,442.39",CONIFER LODGE,CARE ESTABLISHMENT,LD - South Locality - Cost of Care,LD - South Cambs - Care,Residential Care
Cambridgeshire County Council,05-Jul-21,51301599132,"-3,442.39",CONIFER LODGE,CARE ESTABLISHMENT,LD - South Locality - Cost of Care,LD - South Cambs - Care,Residential Care
Cambridgeshire County Council,05-Jul-21,51301599132,"-3,442.39",CONIFER LODGE,CARE ESTABLISHMENT,LD - South Locality - Cost of Care,LD - South Cambs - Care,Residential Care
Cambridgeshire County Council,05-Jul-21,51301599132,"-3,442.39",CONIFER LODGE,CARE ESTABLISHMENT,LD - South Locality - Cost of Care,LD - South Cambs - Care,Residential Care
Cambridgeshire County Council,05-Jul-21,51301599132,"-3,442.39",CONIFER LODGE,CARE ESTABLISHMENT,LD - South Locality - Cost of Care,LD - South Cambs - Care,Residential Care
Cambridgeshire County Council,05-Jul-21,51301599132,"-3,442.39",CONIFER LODGE,CARE ESTABLISHMENT,LD - South Locality - Cost of Care,LD - South Cambs - Care,Residential Care
Cambridgeshire County Council,05-Jul-21,51301599132,"-3,442.39",CONIFER LODGE,CARE ESTABLISHMENT,LD - South Locality - Cost of Care,LD - South Cambs - Care,Residential Care
Cambridgeshire County Council,05-Jul-21,51301599132,"-3,442.39",CONIFER LODGE,CARE ESTABLISHMENT,LD - South Locality - Cost of Care,LD - South Cambs - Care,Residential Care
Cambridgeshire County Council,05-Jul-21,51301599132,"-3,442.39",CONIFER LODGE,CARE ESTABLISHMENT,LD - South Locality - Cost of Care,LD - South Cambs - Care,Residential Care
Cambridgeshire County Council,05-Jul-21,51301599132,"-3,442.39",CONIFER LODGE,CARE ESTABLISHMENT,LD - South Locality - Cost of Care,LD - South Cambs - Care,Residential Care
Cambridgeshire County Council,05-Jul-21,51301599132,"-3,442.39",CONIFER LODGE,CARE ESTABLISHMENT,LD - South Locality - Cost of Care,LD - South Cambs - Care,Residential Care
Cambridgeshire County Council,05-Jul-21,51301599132,"-3,442.39",CONIFER LODGE,CARE ESTABLISHMENT,LD - South Locality - Cost of Care,LD - South Cambs - Care,Residential Care
Cambridgeshire County Council,05-Jul-21,51301599132,"-3,442.39",CONIFER LODGE,CARE ESTABLISHMENT,LD - South Locality - Cost of Care,LD - South Cambs - Care,Residential Care
Cambridgeshire County Council,05-Jul-21,51301599132,"-3,442.39",CONIFER LODGE,CARE ESTABLISHMENT,LD - South Locality - Cost of Care,LD - South Cambs - Care,Residential Care
Cambridgeshire County Council,05-Jul-21,51301599132,"-3,442.39",CONIFER LODGE,CARE ESTABLISHMENT,LD - South Locality - Cost of Care,LD - South Cambs - Care,Residential Care
Cambridgeshire County Council,05-Jul-21,51301599132,"-3,442.39",CONIFER LODGE,CARE ESTABLISHMENT,LD - South Locality - Cost of Care,LD - South Cambs - Care,Residential Care
Cambridgeshire County Council,05-Jul-21,51301599132,"-3,442.39",CONIFER LODGE,CARE ESTABLISHMENT,LD - South Locality - Cost of Care,LD - South Cambs - Care,Residential Care
Cambridgeshire County Council,05-Jul-21,51301599132,"-2,458.85",CONIFER LODGE,CARE ESTABLISHMENT,LD - South Locality - Cost of Care,LD - South Cambs - Care,Residential Care
Cambridgeshire County Council,05-Jul-21,51301597128,"-2,005.99",CARETECH COMMUNITY SERVICES,CARE ESTABLISHMENT,LD - City Locality - Cost of Care,LD - City - Care,Residential Care
Cambridgeshire County Council,05-Jul-21,51301597128,"-2,005.99",CARETECH COMMUNITY SERVICES,CARE ESTABLISHMENT,LD - City Locality - Cost of Care,LD - City - Care,Residential Care
Cambridgeshire County Council,05-Jul-21,51301597128,"-2,005.99",CARETECH COMMUNITY SERVICES,CARE ESTABLISHMENT,LD - City Locality - Cost of Care,LD - City - Care,Residential Care
Cambridgeshire County Council,05-Jul-21,51301599116,"-1,960.00",CONIFER LODGE,CARE ESTABLISHMENT,LD - South Locality - Cost of Care,LD - South Cambs - Care,Residential Care
Cambridgeshire County Council,05-Jul-21,51301599116,"-1,960.00",CONIFER LODGE,CARE ESTABLISHMENT,LD - South Locality - Cost of Care,LD - South Cambs - Care,Residential Care
Cambridgeshire County Council,05-Jul-21,51301599116,"-1,960.00",CONIFER LODGE,CARE ESTABLISHMENT,LD - South Locality - Cost of Care,LD - South Cambs - Care,Residential Care
Cambridgeshire County Council,05-Jul-21,51301599116,"-1,960.00",CONIFER LODGE,CARE ESTABLISHMENT,LD - South Locality - Cost of Care,LD - South Cambs - Care,Residential Care
Cambridgeshire County Council,05-Jul-21,51301599116,"-1,960.00",CONIFER LODGE,CARE ESTABLISHMENT,LD - South Locality - Cost of Care,LD - South Cambs - Care,Residential Care
Cambridgeshire County Council,05-Jul-21,51301599116,"-1,960.00",CONIFER LODGE,CARE ESTABLISHMENT,LD - South Locality - Cost of Care,LD - South Cambs - Care,Residential Care
Cambridgeshire County Council,05-Jul-21,51301599116,"-1,960.00",CONIFER LODGE,CARE ESTABLISHMENT,LD - South Locality - Cost of Care,LD - South Cambs - Care,Residential Care
Cambridgeshire County Council,05-Jul-21,51301599116,"-1,960.00",CONIFER LODGE,CARE ESTABLISHMENT,LD - South Locality - Cost of Care,LD - South Cambs - Care,Residential Care
Cambridgeshire County Council,05-Jul-21,51301599116,"-1,960.00",CONIFER LODGE,CARE ESTABLISHMENT,LD - South Locality - Cost of Care,LD - South Cambs - Care,Residential Care
Cambridgeshire County Council,05-Jul-21,51301599116,"-1,960.00",CONIFER LODGE,CARE ESTABLISHMENT,LD - South Locality - Cost of Care,LD - South Cambs - Care,Residential Care
Cambridgeshire County Council,05-Jul-21,51301599116,"-1,960.00",CONIFER LODGE,CARE ESTABLISHMENT,LD - South Locality - Cost of Care,LD - South Cambs - Care,Residential Care
Cambridgeshire County Council,05-Jul-21,51301599116,"-1,960.00",CONIFER LODGE,CARE ESTABLISHMENT,LD - South Locality - Cost of Care,LD - South Cambs - Care,Residential Care
Cambridgeshire County Council,05-Jul-21,51301599116,"-1,960.00",CONIFER LODGE,CARE ESTABLISHMENT,LD - South Locality - Cost of Care,LD - South Cambs - Care,Residential Care
Cambridgeshire County Council,05-Jul-21,51301599116,"-1,960.00",CONIFER LODGE,CARE ESTABLISHMENT,LD - South Locality - Cost of Care,LD - South Cambs - Care,Residential Care
Cambridgeshire County Council,05-Jul-21,51301599116,"-1,960.00",CONIFER LODGE,CARE ESTABLISHMENT,LD - South Locality - Cost of Care,LD - South Cambs - Care,Residential Care
Cambridgeshire County Council,05-Jul-21,51301599116,"-1,960.00",CONIFER LODGE,CARE ESTABLISHMENT,LD - South Locality - Cost of Care,LD - South Cambs - Care,Residential Care
Cambridgeshire County Council,05-Jul-21,51301599116,"-1,960.00",CONIFER LODGE,CARE ESTABLISHMENT,LD - South Locality - Cost of Care,LD - South Cambs - Care,Residential Care
Cambridgeshire County Council,05-Jul-21,51301599116,"-1,960.00",CONIFER LODGE,CARE ESTABLISHMENT,LD - South Locality - Cost of Care,LD - South Cambs - Care,Residential Care
Cambridgeshire County Council,05-Jul-21,51301599116,"-1,960.00",CONIFER LODGE,CARE ESTABLISHMENT,LD - South Locality - Cost of Care,LD - South Cambs - Care,Residential Care
Cambridgeshire County Council,05-Jul-21,51301599116,"-1,960.00",CONIFER LODGE,CARE ESTABLISHMENT,LD - South Locality - Cost of Care,LD - South Cambs - Care,Residential Care
Cambridgeshire County Council,05-Jul-21,51301599116,"-1,960.00",CONIFER LODGE,CARE ESTABLISHMENT,LD - South Locality - Cost of Care,LD - South Cambs - Care,Residential Care
Cambridgeshire County Council,05-Jul-21,51301599116,"-1,960.00",CONIFER LODGE,CARE ESTABLISHMENT,LD - South Locality - Cost of Care,LD - South Cambs - Care,Residential Care
Cambridgeshire County Council,05-Jul-21,51301599116,"-1,960.00",CONIFER LODGE,CARE ESTABLISHMENT,LD - South Locality - Cost of Care,LD - South Cambs - Care,Residential Care
Cambridgeshire County Council,05-Jul-21,51301599116,"-1,960.00",CONIFER LODGE,CARE ESTABLISHMENT,LD - South Locality - Cost of Care,LD - South Cambs - Care,Residential Care
Cambridgeshire County Council,05-Jul-21,51301599116,"-1,960.00",CONIFER LODGE,CARE ESTABLISHMENT,LD - South Locality - Cost of Care,LD - South Cambs - Care,Residential Care
Cambridgeshire County Council,05-Jul-21,51301599116,"-1,960.00",CONIFER LODGE,CARE ESTABLISHMENT,LD - South Locality - Cost of Care,LD - South Cambs - Care,Residential Care
Cambridgeshire County Council,05-Jul-21,51301599116,"-1,960.00",CONIFER LODGE,CARE ESTABLISHMENT,LD - South Locality - Cost of Care,LD - South Cambs - Care,Residential Care
Cambridgeshire County Council,05-Jul-21,51301599116,"-1,960.00",CONIFER LODGE,CARE ESTABLISHMENT,LD - South Locality - Cost of Care,LD - South Cambs - Care,Residential Care
Cambridgeshire County Council,05-Jul-21,51301599116,"-1,960.00",CONIFER LODGE,CARE ESTABLISHMENT,LD - South Locality - Cost of Care,LD - South Cambs - Care,Residential Care
Cambridgeshire County Council,05-Jul-21,51301599116,"-1,960.00",CONIFER LODGE,CARE ESTABLISHMENT,LD - South Locality - Cost of Care,LD - South Cambs - Care,Residential Care
Cambridgeshire County Council,05-Jul-21,51301599116,"-1,960.00",CONIFER LODGE,CARE ESTABLISHMENT,LD - South Locality - Cost of Care,LD - South Cambs - Care,Residential Care
Cambridgeshire County Council,05-Jul-21,51301599116,"-1,960.00",CONIFER LODGE,CARE ESTABLISHMENT,LD - South Locality - Cost of Care,LD - South Cambs - Care,Residential Care
Cambridgeshire County Council,05-Jul-21,51301599116,"-1,960.00",CONIFER LODGE,CARE ESTABLISHMENT,LD - South Locality - Cost of Care,LD - South Cambs - Care,Residential Care
Cambridgeshire County Council,05-Jul-21,51301599116,"-1,960.00",CONIFER LODGE,CARE ESTABLISHMENT,LD - South Locality - Cost of Care,LD - South Cambs - Care,Residential Care
Cambridgeshire County Council,05-Jul-21,51301599116,"-1,960.00",CONIFER LODGE,CARE ESTABLISHMENT,LD - South Locality - Cost of Care,LD - South Cambs - Care,Residential Care
Cambridgeshire County Council,05-Jul-21,51301599116,"-1,960.00",CONIFER LODGE,CARE ESTABLISHMENT,LD - South Locality - Cost of Care,LD - South Cambs - Care,Residential Care
Cambridgeshire County Council,05-Jul-21,51301599116,"-1,960.00",CONIFER LODGE,CARE ESTABLISHMENT,LD - South Locality - Cost of Care,LD - South Cambs - Care,Residential Care
Cambridgeshire County Council,05-Jul-21,51301599116,"-1,960.00",CONIFER LODGE,CARE ESTABLISHMENT,LD - South Locality - Cost of Care,LD - South Cambs - Care,Residential Care
Cambridgeshire County Council,05-Jul-21,51301599116,"-1,960.00",CONIFER LODGE,CARE ESTABLISHMENT,LD - South Locality - Cost of Care,LD - South Cambs - Care,Residential Care
Cambridgeshire County Council,05-Jul-21,51301599116,"-1,960.00",CONIFER LODGE,CARE ESTABLISHMENT,LD - South Locality - Cost of Care,LD - South Cambs - Care,Residential Care
Cambridgeshire County Council,05-Jul-21,51301599116,"-1,960.00",CONIFER LODGE,CARE ESTABLISHMENT,LD - South Locality - Cost of Care,LD - South Cambs - Care,Residential Care
Cambridgeshire County Council,05-Jul-21,51301599116,"-1,960.00",CONIFER LODGE,CARE ESTABLISHMENT,LD - South Locality - Cost of Care,LD - South Cambs - Care,Residential Care
Cambridgeshire County Council,05-Jul-21,51301599116,"-1,960.00",CONIFER LODGE,CARE ESTABLISHMENT,LD - South Locality - Cost of Care,LD - South Cambs - Care,Residential Care
Cambridgeshire County Council,05-Jul-21,51301599116,"-1,960.00",CONIFER LODGE,CARE ESTABLISHMENT,LD - South Locality - Cost of Care,LD - South Cambs - Care,Residential Care
Cambridgeshire County Council,05-Jul-21,51301599116,"-1,960.00",CONIFER LODGE,CARE ESTABLISHMENT,LD - South Locality - Cost of Care,LD - South Cambs - Care,Residential Care
Cambridgeshire County Council,05-Jul-21,51301599116,"-1,960.00",CONIFER LODGE,CARE ESTABLISHMENT,LD - South Locality - Cost of Care,LD - South Cambs - Care,Residential Care
Cambridgeshire County Council,05-Jul-21,51301599116,"-1,960.00",CONIFER LODGE,CARE ESTABLISHMENT,LD - South Locality - Cost of Care,LD - South Cambs - Care,Residential Care
Cambridgeshire County Council,05-Jul-21,51301599116,"-1,960.00",CONIFER LODGE,CARE ESTABLISHMENT,LD - South Locality - Cost of Care,LD - South Cambs - Care,Residential Care
Cambridgeshire County Council,05-Jul-21,51301599116,"-1,960.00",CONIFER LODGE,CARE ESTABLISHMENT,LD - South Locality - Cost of Care,LD - South Cambs - Care,Residential Care
Cambridgeshire County Council,05-Jul-21,51301599116,"-1,960.00",CONIFER LODGE,CARE ESTABLISHMENT,LD - South Locality - Cost of Care,LD - South Cambs - Care,Residential Care
Cambridgeshire County Council,05-Jul-21,51301599116,"-1,960.00",CONIFER LODGE,CARE ESTABLISHMENT,LD - South Locality - Cost of Care,LD - South Cambs - Care,Residential Care
Cambridgeshire County Council,05-Jul-21,51301599116,"-1,960.00",CONIFER LODGE,CARE ESTABLISHMENT,LD - South Locality - Cost of Care,LD - South Cambs - Care,Residential Care
Cambridgeshire County Council,05-Jul-21,51301599116,"-1,960.00",CONIFER LODGE,CARE ESTABLISHMENT,LD - South Locality - Cost of Care,LD - South Cambs - Care,Residential Care
Cambridgeshire County Council,05-Jul-21,51301599116,"-1,960.00",CONIFER LODGE,CARE ESTABLISHMENT,LD - South Locality - Cost of Care,LD - South Cambs - Care,Residential Care
Cambridgeshire County Council,05-Jul-21,51301599127,"-1,757.41",CONIFER LODGE,CARE ESTABLISHMENT,LD - Fenland Locality - Cost of Care,LD - Fenland  - Care,Residential Care
Cambridgeshire County Council,05-Jul-21,51301599127,"-1,757.41",CONIFER LODGE,CARE ESTABLISHMENT,LD - Fenland Locality - Cost of Care,LD - Fenland  - Care,Residential Care
Cambridgeshire County Council,05-Jul-21,51301599127,"-1,757.41",CONIFER LODGE,CARE ESTABLISHMENT,LD - Fenland Locality - Cost of Care,LD - Fenland  - Care,Residential Care
Cambridgeshire County Council,05-Jul-21,51301599127,"-1,757.41",CONIFER LODGE,CARE ESTABLISHMENT,LD - Fenland Locality - Cost of Care,LD - Fenland  - Care,Residential Care
Cambridgeshire County Council,05-Jul-21,51301599127,"-1,757.41",CONIFER LODGE,CARE ESTABLISHMENT,LD - Fenland Locality - Cost of Care,LD - Fenland  - Care,Residential Care
Cambridgeshire County Council,05-Jul-21,51301599127,"-1,757.41",CONIFER LODGE,CARE ESTABLISHMENT,LD - Fenland Locality - Cost of Care,LD - Fenland  - Care,Residential Care
Cambridgeshire County Council,05-Jul-21,51301599127,"-1,757.41",CONIFER LODGE,CARE ESTABLISHMENT,LD - Fenland Locality - Cost of Care,LD - Fenland  - Care,Residential Care
Cambridgeshire County Council,05-Jul-21,51301599127,"-1,757.41",CONIFER LODGE,CARE ESTABLISHMENT,LD - Fenland Locality - Cost of Care,LD - Fenland  - Care,Residential Care
Cambridgeshire County Council,05-Jul-21,51301599127,"-1,757.41",CONIFER LODGE,CARE ESTABLISHMENT,LD - Fenland Locality - Cost of Care,LD - Fenland  - Care,Residential Care
Cambridgeshire County Council,05-Jul-21,51301599127,"-1,757.41",CONIFER LODGE,CARE ESTABLISHMENT,LD - Fenland Locality - Cost of Care,LD - Fenland  - Care,Residential Care
Cambridgeshire County Council,05-Jul-21,51301599127,"-1,757.41",CONIFER LODGE,CARE ESTABLISHMENT,LD - Fenland Locality - Cost of Care,LD - Fenland  - Care,Residential Care
Cambridgeshire County Council,05-Jul-21,51301599127,"-1,757.41",CONIFER LODGE,CARE ESTABLISHMENT,LD - Fenland Locality - Cost of Care,LD - Fenland  - Care,Residential Care
Cambridgeshire County Council,05-Jul-21,51301599127,"-1,757.41",CONIFER LODGE,CARE ESTABLISHMENT,LD - Fenland Locality - Cost of Care,LD - Fenland  - Care,Residential Care
Cambridgeshire County Council,05-Jul-21,51301599127,"-1,757.41",CONIFER LODGE,CARE ESTABLISHMENT,LD - Fenland Locality - Cost of Care,LD - Fenland  - Care,Residential Care
Cambridgeshire County Council,05-Jul-21,51301599127,"-1,757.41",CONIFER LODGE,CARE ESTABLISHMENT,LD - Fenland Locality - Cost of Care,LD - Fenland  - Care,Residential Care
Cambridgeshire County Council,05-Jul-21,51301599127,"-1,757.41",CONIFER LODGE,CARE ESTABLISHMENT,LD - Fenland Locality - Cost of Care,LD - Fenland  - Care,Residential Care
Cambridgeshire County Council,05-Jul-21,51301599127,"-1,757.41",CONIFER LODGE,CARE ESTABLISHMENT,LD - Fenland Locality - Cost of Care,LD - Fenland  - Care,Residential Care
Cambridgeshire County Council,05-Jul-21,51301599127,"-1,757.41",CONIFER LODGE,CARE ESTABLISHMENT,LD - Fenland Locality - Cost of Care,LD - Fenland  - Care,Residential Care
Cambridgeshire County Council,05-Jul-21,51301599127,"-1,757.41",CONIFER LODGE,CARE ESTABLISHMENT,LD - Fenland Locality - Cost of Care,LD - Fenland  - Care,Residential Care
Cambridgeshire County Council,05-Jul-21,51301599127,"-1,757.41",CONIFER LODGE,CARE ESTABLISHMENT,LD - Fenland Locality - Cost of Care,LD - Fenland  - Care,Residential Care
Cambridgeshire County Council,05-Jul-21,51301599127,"-1,757.41",CONIFER LODGE,CARE ESTABLISHMENT,LD - Fenland Locality - Cost of Care,LD - Fenland  - Care,Residential Care
Cambridgeshire County Council,05-Jul-21,51301599127,"-1,757.41",CONIFER LODGE,CARE ESTABLISHMENT,LD - Fenland Locality - Cost of Care,LD - Fenland  - Care,Residential Care
Cambridgeshire County Council,05-Jul-21,51301599127,"-1,757.41",CONIFER LODGE,CARE ESTABLISHMENT,LD - Fenland Locality - Cost of Care,LD - Fenland  - Care,Residential Care
Cambridgeshire County Council,05-Jul-21,51301599127,"-1,757.41",CONIFER LODGE,CARE ESTABLISHMENT,LD - Fenland Locality - Cost of Care,LD - Fenland  - Care,Residential Care
